Unique Reference No,Vendor name ,Subjective Mapping 1 (Higher level),Subject Mapping 2 (Lower level),Subjective  Description,Net Amount ,Capital/Revenue,GL Posting Date,Directorate
WC56-0001,11KBW,Third Party Payments,Private Contractor Fees,73014-LEGAL FEES-PRIV CONTRACTOR FEES,"5,700.00",Revenue,01/05/2015,Social Care & Inclusion
WC56-0002,1ST HAND CARE LTD,Third Party Payments,Private Contractor Fees,73025-PROFESSIONAL SERVICES-PRIV CONTRACTOR & OTHER AGENCIES,"1,660.50",Revenue,05/05/2015,Social Care & Inclusion
WC56-0003,1ST HAND CARE LTD,Third Party Payments,Private Contractor Fees,73372-DOMICILIARY CARE,"1,978.00",Revenue,19/05/2015,Social Care & Inclusion
WC56-0004,247 CARS (WILLENHALL) LIMITED,Transport,Hire,52000-WITH DRIVER-HIRE OF VEHICLES,468.00,Revenue,06/05/2015,Childrens
WC56-0005,247 CARS (WILLENHALL) LIMITED,Transport,Hire,52000-WITH DRIVER-HIRE OF VEHICLES,"1,128.00",Revenue,01/05/2015,Childrens
WC56-0006,2D WORKWEAR LTD,Supplies & Services,"Equip,Furniture & Materials",60006-NEW-FURNITURE & EQUIPMENT,"1,199.00",Revenue,08/05/2015,Neighbourhood Services
WC56-0007,5 CARE SERVICES LTD,Third Party Payments,Private Contractor Fees,73372-DOMICILIARY CARE,270.12,Revenue,20/05/2015,Social Care & Inclusion
WC56-0008,5 CARE SERVICES LTD,Third Party Payments,Private Contractor Fees,73372-DOMICILIARY CARE,281.02,Revenue,15/05/2015,Social Care & Inclusion
WC56-0009,5 CARE SERVICES LTD,Third Party Payments,Private Contractor Fees,73372-DOMICILIARY CARE,356.62,Revenue,20/05/2015,Social Care & Inclusion
WC56-0010,5 CARE SERVICES LTD,Third Party Payments,Private Contractor Fees,73372-DOMICILIARY CARE,421.86,Revenue,15/05/2015,Social Care & Inclusion
WC56-0011,5 CARE SERVICES LTD,Third Party Payments,Private Contractor Fees,73372-DOMICILIARY CARE,460.20,Revenue,15/05/2015,Social Care & Inclusion
WC56-0012,5 CARE SERVICES LTD,Third Party Payments,Private Contractor Fees,73372-DOMICILIARY CARE,664.49,Revenue,20/05/2015,Social Care & Inclusion
WC56-0013,5 CARE SERVICES LTD,Third Party Payments,Private Contractor Fees,73372-DOMICILIARY CARE,688.04,Revenue,20/05/2015,Social Care & Inclusion
WC56-0014,5 CARE SERVICES LTD,Third Party Payments,Private Contractor Fees,73372-DOMICILIARY CARE,743.04,Revenue,15/05/2015,Social Care & Inclusion
WC56-0015,5 CARE SERVICES LTD,Third Party Payments,Private Contractor Fees,73372-DOMICILIARY CARE,854.10,Revenue,15/05/2015,Social Care & Inclusion
WC56-0016,5 CARE SERVICES LTD,Third Party Payments,Private Contractor Fees,73372-DOMICILIARY CARE,"29,773.47",Revenue,19/05/2015,Social Care & Inclusion
WC56-0017,A 2 Z TAXIS (A2Z CARS),Transport,Hire,52000-WITH DRIVER-HIRE OF VEHICLES,"1,309.00",Revenue,20/05/2015,Childrens
WC56-0018,REDACTED,Supplies & Services,"Equip,Furniture & Materials",60006-NEW-FURNITURE & EQUIPMENT,47.75,Revenue,05/05/2015,Neighbourhood Services
WC56-0019,REDACTED,Supplies & Services,"Equip,Furniture & Materials",60000-FURNITURE & EQUIPMENT,295.75,Revenue,05/05/2015,Neighbourhood Services
WC56-0020,A D T FIRE AND SECURITY PLC,Premises,Premises-Repairs & Maintenance,40015-ALARM CALL OUTS-OP MTCE,-500.25,Revenue,20/05/2015,Neighbourhood Services
WC56-0021,A D T FIRE AND SECURITY PLC,Supplies & Services,"Equip,Furniture & Materials",60006-NEW-FURNITURE & EQUIPMENT,310.12,Revenue,01/05/2015,Childrens
WC56-0022,A D T FIRE AND SECURITY PLC,Premises,Premises-Repairs & Maintenance,40015-ALARM CALL OUTS-OP MTCE,882.08,Revenue,20/05/2015,Neighbourhood Services
WC56-0023,A D T FIRE AND SECURITY PLC,Supplies & Services,"Equip,Furniture & Materials",60006-NEW-FURNITURE & EQUIPMENT,884.49,Revenue,01/05/2015,Childrens
WC56-0024,A F BLAKEMORE & SON LTD,Supplies & Services,Provisions,61016-FOOD AND BEVERAGES-PROVISIONS,255.19,Revenue,14/05/2015,Social Care & Inclusion
WC56-0025,A F BLAKEMORE & SON LTD,Supplies & Services,Provisions,61016-FOOD AND BEVERAGES-PROVISIONS,258.95,Revenue,18/05/2015,Social Care & Inclusion
WC56-0026,A F BLAKEMORE & SON LTD,Supplies & Services,Provisions,61016-FOOD AND BEVERAGES-PROVISIONS,285.45,Revenue,18/05/2015,Social Care & Inclusion
WC56-0027,A F BLAKEMORE & SON LTD,Supplies & Services,Provisions,61016-FOOD AND BEVERAGES-PROVISIONS,318.08,Revenue,15/05/2015,Social Care & Inclusion
WC56-0028,A F BLAKEMORE & SON LTD,Supplies & Services,Provisions,61009-BEVERAGES-PROVISIONS,374.45,Revenue,27/05/2015,Neighbourhood Services
WC56-0029,A F BLAKEMORE & SON LTD,Supplies & Services,Provisions,61002-DRY FOODS-PROVISIONS,515.21,Revenue,27/05/2015,Neighbourhood Services
WC56-0030,A F BLAKEMORE & SON LTD,Supplies & Services,Provisions,61016-FOOD AND BEVERAGES-PROVISIONS,670.22,Revenue,15/05/2015,Social Care & Inclusion
WC56-0031,A F BLAKEMORE & SON LTD,Supplies & Services,Provisions,61305-CATERING,822.41,Revenue,06/05/2015,Social Care & Inclusion
WC56-0032,A F BLAKEMORE & SON LTD,Supplies & Services,Provisions,61016-FOOD AND BEVERAGES-PROVISIONS,"1,563.24",Revenue,08/05/2015,Neighbourhood Services
WC56-0033,REDACTED,Third Party Payments,Private Contractor Fees,74006-HOLIDAY/CHRISTMAS ALLOWANCE-FOSTER CARERS-OTH AGENCY PROVISION,349.76,Revenue,11/05/2015,Childrens
WC56-0034,REDACTED,Third Party Payments,Private Contractor Fees,74006-HOLIDAY/CHRISTMAS ALLOWANCE-FOSTER CARERS-OTH AGENCY PROVISION,985.76,Revenue,25/05/2015,Childrens
WC56-0035,REDACTED,Supplies & Services,Other Supplies & Services,62515-MISCELLANEOUS SUPPLIES,"1,089.68",Revenue,25/05/2015,Childrens
WC56-0036,A T WEBB & SON LTD,Premises,Premises-Repairs & Maintenance,"40000-REPAIRS,ALTERATIONS & MAINTENANCE-PREM","2,124.00",Revenue,01/05/2015,Neighbourhood Services
WC56-0037,A4E LTD#3,Transfer Payments,Transfer Payments,76423-DIRECT PAYMENTS SUPPORT,"2,128.00",Revenue,13/05/2015,Social Care & Inclusion
WC56-0038,AAINA ASIAN WOMENS GROUP,Supplies & Services,Other Supplies & Services,62515-MISCELLANEOUS SUPPLIES,"2,451.30",Revenue,20/05/2015,Neighbourhood Services
WC56-0039,REDACTED,Transfer Payments,Transfer Payments,76422-DIRECT PAYMENTS TO SOCIAL SERVICES CLIENTS,345.24,Revenue,12/05/2015,Childrens
WC56-0040,ABACUS FOSTERING LTD,Third Party Payments,Private Contractor Fees,74037-INDEPENDENT FOSTER CARE-OTH AGENCY PROVISION,-342.86,Revenue,01/05/2015,Childrens
WC56-0041,ABACUS FOSTERING LTD,Third Party Payments,Private Contractor Fees,74037-INDEPENDENT FOSTER CARE-OTH AGENCY PROVISION,"3,428.57",Revenue,05/05/2015,Childrens
WC56-0042,ABACUS FOSTERING LTD,Third Party Payments,Private Contractor Fees,74037-INDEPENDENT FOSTER CARE-OTH AGENCY PROVISION,"3,542.86",Revenue,20/05/2015,Childrens
WC56-0043,ABACUS FOSTERING LTD,Third Party Payments,Private Contractor Fees,74037-INDEPENDENT FOSTER CARE-OTH AGENCY PROVISION,"11,541.43",Revenue,06/05/2015,Childrens
WC56-0044,REDACTED,Third Party Payments,Private Contractor Fees,74006-HOLIDAY/CHRISTMAS ALLOWANCE-FOSTER CARERS-OTH AGENCY PROVISION,732.29,Revenue,11/05/2015,Childrens
WC56-0045,ABBEY COURT NURSING & RESIDEN,Third Party Payments,Private Contractor Fees,73373-RESIDENTIAL & NURSING CARE PLACEMENTS,"1,333.93",Revenue,27/05/2015,Social Care & Inclusion
WC56-0046,ABBEY COURT NURSING & RESIDEN,Third Party Payments,Private Contractor Fees,73373-RESIDENTIAL & NURSING CARE PLACEMENTS,"1,387.29",Revenue,27/05/2015,Social Care & Inclusion
WC56-0047,ABBEY COURT NURSING & RESIDEN,Third Party Payments,Private Contractor Fees,73373-RESIDENTIAL & NURSING CARE PLACEMENTS,"1,867.50",Revenue,27/05/2015,Social Care & Inclusion
WC56-0048,ABBEY COURT NURSING & RESIDEN,Third Party Payments,Private Contractor Fees,73373-RESIDENTIAL & NURSING CARE PLACEMENTS,"1,867.50",Revenue,27/05/2015,Social Care & Inclusion
WC56-0049,ABBEY HEALTHCARE HOMES LTD,Third Party Payments,Private Contractor Fees,73373-RESIDENTIAL & NURSING CARE PLACEMENTS,"1,661.88",Revenue,27/05/2015,Social Care & Inclusion
WC56-0050,ABBEY HEALTHCARE HOMES LTD,Third Party Payments,Private Contractor Fees,73373-RESIDENTIAL & NURSING CARE PLACEMENTS,"2,243.60",Revenue,27/05/2015,Social Care & Inclusion
WC56-0051,ABBEYMERE CARE CENTRE,Third Party Payments,Private Contractor Fees,73373-RESIDENTIAL & NURSING CARE PLACEMENTS,"1,528.87",Revenue,13/05/2015,Social Care & Inclusion
WC56-0052,ABC FOSTERING,Third Party Payments,Private Contractor Fees,74037-INDEPENDENT FOSTER CARE-OTH AGENCY PROVISION,"2,980.34",Revenue,20/05/2015,Childrens
WC56-0053,ABC FOSTERING,Third Party Payments,Private Contractor Fees,74037-INDEPENDENT FOSTER CARE-OTH AGENCY PROVISION,"3,137.20",Revenue,20/05/2015,Childrens
WC56-0054,ABC TEACHERS LIMITED,Employees,Agency,34305-AGENCY STAFF-EMPLOYEES,347.97,Revenue,07/05/2015,Childrens
WC56-0055,ABC TEACHERS LIMITED,Employees,Agency,34305-AGENCY STAFF-EMPLOYEES,719.95,Revenue,22/05/2015,Childrens
WC56-0056,ABC TEACHERS LIMITED,Employees,Agency,34305-AGENCY STAFF-EMPLOYEES,763.95,Revenue,22/05/2015,Childrens
WC56-0057,ABC TEACHERS LIMITED,Employees,Agency,34305-AGENCY STAFF-EMPLOYEES,905.94,Revenue,07/05/2015,Childrens
WC56-0058,ABC TEACHERS LIMITED,Employees,Agency,34305-AGENCY STAFF-EMPLOYEES,942.92,Revenue,07/05/2015,Childrens
WC56-0059,ABC TEACHERS LIMITED,Employees,Agency,34305-AGENCY STAFF-EMPLOYEES,"1,021.93",Revenue,20/05/2015,Childrens
WC56-0060,ABC TEACHERS LIMITED,Employees,Agency,34305-AGENCY STAFF-EMPLOYEES,"1,021.93",Revenue,20/05/2015,Childrens
WC56-0061,ABC TEACHERS LIMITED,Employees,Agency,34305-AGENCY STAFF-EMPLOYEES,"1,108.91",Revenue,20/05/2015,Childrens
WC56-0062,ABC TEACHERS LIMITED,Employees,Agency,34305-AGENCY STAFF-EMPLOYEES,"1,141.93",Revenue,20/05/2015,Childrens
WC56-0063,REDACTED,Transfer Payments,Transfer Payments,76422-DIRECT PAYMENTS TO SOCIAL SERVICES CLIENTS,"2,357.99",Revenue,12/05/2015,Social Care & Inclusion
WC56-0064,ABLEWELL CARS,Transport,Hire,52000-WITH DRIVER-HIRE OF VEHICLES,300.00,Revenue,08/05/2015,Childrens
WC56-0065,ABLEWELL CARS,Transport,Hire,52000-WITH DRIVER-HIRE OF VEHICLES,302.00,Revenue,08/05/2015,Childrens
WC56-0066,ABLEWELL CARS,Transport,Hire,52000-WITH DRIVER-HIRE OF VEHICLES,330.00,Revenue,08/05/2015,Childrens
WC56-0067,ABLEWELL CARS,Transport,Hire,52000-WITH DRIVER-HIRE OF VEHICLES,330.00,Revenue,08/05/2015,Childrens
WC56-0068,ABLEWELL CARS,Transport,Hire,52000-WITH DRIVER-HIRE OF VEHICLES,530.00,Revenue,08/05/2015,Childrens
WC56-0069,AC EDUCATION,Employees,Training,30030-EXTERNAL TRAINING,"3,360.00",Revenue,06/05/2015,Childrens
WC56-0070,ACCORD HOUSING ASSOCIATION LTD#135,Third Party Payments,Private Contractor Fees,73372-DOMICILIARY CARE,321.76,Revenue,21/05/2015,Social Care & Inclusion
WC56-0071,ACCORD HOUSING ASSOCIATION LTD#135,Third Party Payments,Private Contractor Fees,73372-DOMICILIARY CARE,321.76,Revenue,27/05/2015,Social Care & Inclusion
WC56-0072,ACCORD HOUSING ASSOCIATION LTD#135,Third Party Payments,Private Contractor Fees,73372-DOMICILIARY CARE,354.28,Revenue,21/05/2015,Social Care & Inclusion
WC56-0073,ACCORD HOUSING ASSOCIATION LTD#135,Third Party Payments,Private Contractor Fees,73372-DOMICILIARY CARE,354.28,Revenue,27/05/2015,Social Care & Inclusion
WC56-0074,ACCORD HOUSING ASSOCIATION LTD#135,Third Party Payments,Private Contractor Fees,73374-SUPPORTED & OTHER ACCOMMODATION,411.20,Revenue,01/05/2015,Social Care & Inclusion
WC56-0075,ACCORD HOUSING ASSOCIATION LTD#135,Third Party Payments,Private Contractor Fees,73374-SUPPORTED & OTHER ACCOMMODATION,411.20,Revenue,21/05/2015,Social Care & Inclusion
WC56-0076,ACCORD HOUSING ASSOCIATION LTD#135,Third Party Payments,Private Contractor Fees,73372-DOMICILIARY CARE,411.92,Revenue,01/05/2015,Social Care & Inclusion
WC56-0077,ACCORD HOUSING ASSOCIATION LTD#135,Third Party Payments,Private Contractor Fees,73372-DOMICILIARY CARE,411.92,Revenue,01/05/2015,Social Care & Inclusion
WC56-0078,ACCORD HOUSING ASSOCIATION LTD#135,Third Party Payments,Private Contractor Fees,73372-DOMICILIARY CARE,411.92,Revenue,21/05/2015,Social Care & Inclusion
WC56-0079,ACCORD HOUSING ASSOCIATION LTD#135,Third Party Payments,Private Contractor Fees,73372-DOMICILIARY CARE,444.92,Revenue,21/05/2015,Social Care & Inclusion
WC56-0080,ACCORD HOUSING ASSOCIATION LTD#135,Third Party Payments,Private Contractor Fees,73372-DOMICILIARY CARE,444.92,Revenue,27/05/2015,Social Care & Inclusion
WC56-0081,ACCORD HOUSING ASSOCIATION LTD#135,Third Party Payments,Private Contractor Fees,73372-DOMICILIARY CARE,463.60,Revenue,01/05/2015,Social Care & Inclusion
WC56-0082,ACCORD HOUSING ASSOCIATION LTD#135,Third Party Payments,Private Contractor Fees,73372-DOMICILIARY CARE,463.60,Revenue,21/05/2015,Social Care & Inclusion
WC56-0083,ACCORD HOUSING ASSOCIATION LTD#135,Third Party Payments,Private Contractor Fees,73372-DOMICILIARY CARE,492.40,Revenue,01/05/2015,Social Care & Inclusion
WC56-0084,ACCORD HOUSING ASSOCIATION LTD#135,Third Party Payments,Private Contractor Fees,73372-DOMICILIARY CARE,492.40,Revenue,01/05/2015,Social Care & Inclusion
WC56-0085,ACCORD HOUSING ASSOCIATION LTD#135,Third Party Payments,Private Contractor Fees,73372-DOMICILIARY CARE,492.40,Revenue,21/05/2015,Social Care & Inclusion
WC56-0086,ACCORD HOUSING ASSOCIATION LTD#135,Third Party Payments,Private Contractor Fees,73372-DOMICILIARY CARE,502.32,Revenue,01/05/2015,Social Care & Inclusion
WC56-0087,ACCORD HOUSING ASSOCIATION LTD#135,Third Party Payments,Private Contractor Fees,73372-DOMICILIARY CARE,502.32,Revenue,21/05/2015,Social Care & Inclusion
WC56-0088,ACCORD HOUSING ASSOCIATION LTD#135,Third Party Payments,Private Contractor Fees,73372-DOMICILIARY CARE,531.32,Revenue,21/05/2015,Social Care & Inclusion
WC56-0089,ACCORD HOUSING ASSOCIATION LTD#135,Third Party Payments,Private Contractor Fees,73372-DOMICILIARY CARE,595.44,Revenue,21/05/2015,Social Care & Inclusion
WC56-0090,ACCORD HOUSING ASSOCIATION LTD#135,Transfer Payments,Transfer Payments,76422-DIRECT PAYMENTS TO SOCIAL SERVICES CLIENTS,601.20,Revenue,20/05/2015,Childrens
WC56-0091,ACCORD HOUSING ASSOCIATION LTD#135,Third Party Payments,Private Contractor Fees,73372-DOMICILIARY CARE,634.60,Revenue,20/05/2015,Social Care & Inclusion
WC56-0092,ACCORD HOUSING ASSOCIATION LTD#135,Third Party Payments,Private Contractor Fees,73372-DOMICILIARY CARE,637.37,Revenue,01/05/2015,Social Care & Inclusion
WC56-0093,ACCORD HOUSING ASSOCIATION LTD#135,Third Party Payments,Private Contractor Fees,73372-DOMICILIARY CARE,656.88,Revenue,21/05/2015,Social Care & Inclusion
WC56-0094,ACCORD HOUSING ASSOCIATION LTD#135,Third Party Payments,Private Contractor Fees,73372-DOMICILIARY CARE,656.88,Revenue,27/05/2015,Social Care & Inclusion
WC56-0095,ACCORD HOUSING ASSOCIATION LTD#135,Third Party Payments,Private Contractor Fees,73374-SUPPORTED & OTHER ACCOMMODATION,657.08,Revenue,01/05/2015,Social Care & Inclusion
WC56-0096,ACCORD HOUSING ASSOCIATION LTD#135,Third Party Payments,Private Contractor Fees,73374-SUPPORTED & OTHER ACCOMMODATION,657.08,Revenue,21/05/2015,Social Care & Inclusion
WC56-0097,ACCORD HOUSING ASSOCIATION LTD#135,Third Party Payments,Private Contractor Fees,73372-DOMICILIARY CARE,697.64,Revenue,01/05/2015,Social Care & Inclusion
WC56-0098,ACCORD HOUSING ASSOCIATION LTD#135,Third Party Payments,Private Contractor Fees,73372-DOMICILIARY CARE,721.28,Revenue,01/05/2015,Social Care & Inclusion
WC56-0099,ACCORD HOUSING ASSOCIATION LTD#135,Third Party Payments,Private Contractor Fees,73372-DOMICILIARY CARE,721.28,Revenue,21/05/2015,Social Care & Inclusion
WC56-0100,ACCORD HOUSING ASSOCIATION LTD#135,Third Party Payments,Private Contractor Fees,73372-DOMICILIARY CARE,775.76,Revenue,18/05/2015,Social Care & Inclusion
WC56-0101,ACCORD HOUSING ASSOCIATION LTD#135,Third Party Payments,Private Contractor Fees,73372-DOMICILIARY CARE,775.76,Revenue,21/05/2015,Social Care & Inclusion
WC56-0102,ACCORD HOUSING ASSOCIATION LTD#135,Third Party Payments,Private Contractor Fees,73372-DOMICILIARY CARE,775.76,Revenue,27/05/2015,Social Care & Inclusion
WC56-0103,ACCORD HOUSING ASSOCIATION LTD#135,Third Party Payments,Private Contractor Fees,73372-DOMICILIARY CARE,775.76,Revenue,27/05/2015,Social Care & Inclusion
WC56-0104,ACCORD HOUSING ASSOCIATION LTD#135,Third Party Payments,Private Contractor Fees,73372-DOMICILIARY CARE,811.20,Revenue,01/05/2015,Social Care & Inclusion
WC56-0105,ACCORD HOUSING ASSOCIATION LTD#135,Third Party Payments,Private Contractor Fees,73372-DOMICILIARY CARE,850.08,Revenue,01/05/2015,Social Care & Inclusion
WC56-0106,ACCORD HOUSING ASSOCIATION LTD#135,Third Party Payments,Private Contractor Fees,73372-DOMICILIARY CARE,850.08,Revenue,27/05/2015,Social Care & Inclusion
WC56-0107,ACCORD HOUSING ASSOCIATION LTD#135,Third Party Payments,Private Contractor Fees,73374-SUPPORTED & OTHER ACCOMMODATION,862.96,Revenue,01/05/2015,Social Care & Inclusion
WC56-0108,ACCORD HOUSING ASSOCIATION LTD#135,Third Party Payments,Private Contractor Fees,73372-DOMICILIARY CARE,862.96,Revenue,21/05/2015,Social Care & Inclusion
WC56-0109,ACCORD HOUSING ASSOCIATION LTD#135,Third Party Payments,Private Contractor Fees,73372-DOMICILIARY CARE,916.40,Revenue,01/05/2015,Social Care & Inclusion
WC56-0110,ACCORD HOUSING ASSOCIATION LTD#135,Third Party Payments,Private Contractor Fees,73372-DOMICILIARY CARE,"1,107.44",Revenue,01/05/2015,Social Care & Inclusion
WC56-0111,ACCORD HOUSING ASSOCIATION LTD#135,Third Party Payments,Private Contractor Fees,73372-DOMICILIARY CARE,"1,107.44",Revenue,21/05/2015,Social Care & Inclusion
WC56-0112,ACCORD HOUSING ASSOCIATION LTD#135,Third Party Payments,Private Contractor Fees,73372-DOMICILIARY CARE,"1,133.20",Revenue,01/05/2015,Social Care & Inclusion
WC56-0113,ACCORD HOUSING ASSOCIATION LTD#135,Third Party Payments,Private Contractor Fees,73372-DOMICILIARY CARE,"1,133.20",Revenue,21/05/2015,Social Care & Inclusion
WC56-0114,ACCORD HOUSING ASSOCIATION LTD#135,Third Party Payments,Private Contractor Fees,73372-DOMICILIARY CARE,"1,133.20",Revenue,21/05/2015,Social Care & Inclusion
WC56-0115,ACCORD HOUSING ASSOCIATION LTD#135,Third Party Payments,Private Contractor Fees,73372-DOMICILIARY CARE,"1,144.04",Revenue,01/05/2015,Social Care & Inclusion
WC56-0116,ACCORD HOUSING ASSOCIATION LTD#135,Third Party Payments,Private Contractor Fees,73372-DOMICILIARY CARE,"1,159.20",Revenue,01/05/2015,Social Care & Inclusion
WC56-0117,ACCORD HOUSING ASSOCIATION LTD#135,Third Party Payments,Private Contractor Fees,73372-DOMICILIARY CARE,"1,159.20",Revenue,21/05/2015,Social Care & Inclusion
WC56-0118,ACCORD HOUSING ASSOCIATION LTD#135,Third Party Payments,Private Contractor Fees,73372-DOMICILIARY CARE,"1,159.20",Revenue,27/05/2015,Social Care & Inclusion
WC56-0119,ACCORD HOUSING ASSOCIATION LTD#135,Third Party Payments,Private Contractor Fees,73372-DOMICILIARY CARE,"1,183.96",Revenue,21/05/2015,Social Care & Inclusion
WC56-0120,ACCORD HOUSING ASSOCIATION LTD#135,Third Party Payments,Private Contractor Fees,73372-DOMICILIARY CARE,"1,183.96",Revenue,27/05/2015,Social Care & Inclusion
WC56-0121,ACCORD HOUSING ASSOCIATION LTD#135,Third Party Payments,Private Contractor Fees,73372-DOMICILIARY CARE,"1,184.72",Revenue,21/05/2015,Social Care & Inclusion
WC56-0122,ACCORD HOUSING ASSOCIATION LTD#135,Third Party Payments,Private Contractor Fees,73372-DOMICILIARY CARE,"1,197.80",Revenue,21/05/2015,Social Care & Inclusion
WC56-0123,ACCORD HOUSING ASSOCIATION LTD#135,Third Party Payments,Private Contractor Fees,73372-DOMICILIARY CARE,"1,197.80",Revenue,27/05/2015,Social Care & Inclusion
WC56-0124,ACCORD HOUSING ASSOCIATION LTD#135,Third Party Payments,Private Contractor Fees,73372-DOMICILIARY CARE,"1,416.56",Revenue,21/05/2015,Social Care & Inclusion
WC56-0125,ACCORD HOUSING ASSOCIATION LTD#135,Third Party Payments,Private Contractor Fees,73372-DOMICILIARY CARE,"1,538.68",Revenue,21/05/2015,Social Care & Inclusion
WC56-0126,ACCORD HOUSING ASSOCIATION LTD#135,Third Party Payments,Private Contractor Fees,73372-DOMICILIARY CARE,"1,584.00",Revenue,21/05/2015,Social Care & Inclusion
WC56-0127,ACCORD HOUSING ASSOCIATION LTD#135,Third Party Payments,Private Contractor Fees,73374-SUPPORTED & OTHER ACCOMMODATION,"1,584.00",Revenue,27/05/2015,Social Care & Inclusion
WC56-0128,ACCORD HOUSING ASSOCIATION LTD#135,Third Party Payments,Private Contractor Fees,73372-DOMICILIARY CARE,"1,663.64",Revenue,01/05/2015,Social Care & Inclusion
WC56-0129,ACCORD HOUSING ASSOCIATION LTD#135,Third Party Payments,Private Contractor Fees,73372-DOMICILIARY CARE,"1,663.64",Revenue,27/05/2015,Social Care & Inclusion
WC56-0130,ACCORD HOUSING ASSOCIATION LTD#135,Third Party Payments,Private Contractor Fees,73372-DOMICILIARY CARE,"1,725.68",Revenue,21/05/2015,Social Care & Inclusion
WC56-0131,ACCORD HOUSING ASSOCIATION LTD#135,Third Party Payments,Private Contractor Fees,73372-DOMICILIARY CARE,"1,725.68",Revenue,27/05/2015,Social Care & Inclusion
WC56-0132,ACCORD HOUSING ASSOCIATION LTD#135,Third Party Payments,Private Contractor Fees,73372-DOMICILIARY CARE,"2,408.32",Revenue,01/05/2015,Social Care & Inclusion
WC56-0133,ACCORD HOUSING ASSOCIATION LTD#135,Third Party Payments,Private Contractor Fees,73373-RESIDENTIAL & NURSING CARE PLACEMENTS,"4,490.79",Revenue,13/05/2015,Social Care & Inclusion
WC56-0134,ACCORD HOUSING ASSOCIATION LTD#135,Third Party Payments,Private Contractor Fees,73373-RESIDENTIAL & NURSING CARE PLACEMENTS,"4,490.79",Revenue,13/05/2015,Social Care & Inclusion
WC56-0135,ACCORD HOUSING ASSOCIATION LTD#135,Third Party Payments,Private Contractor Fees,73373-RESIDENTIAL & NURSING CARE PLACEMENTS,"4,490.79",Revenue,13/05/2015,Social Care & Inclusion
WC56-0136,ACCORD HOUSING ASSOCIATION LTD#135,Third Party Payments,Private Contractor Fees,73373-RESIDENTIAL & NURSING CARE PLACEMENTS,"4,490.79",Revenue,20/05/2015,Social Care & Inclusion
WC56-0137,ACCORD HOUSING ASSOCIATION LTD#135,Third Party Payments,Private Contractor Fees,73373-RESIDENTIAL & NURSING CARE PLACEMENTS,"4,640.48",Revenue,05/05/2015,Social Care & Inclusion
WC56-0138,ACCORD HOUSING ASSOCIATION LTD#135,Third Party Payments,Private Contractor Fees,73373-RESIDENTIAL & NURSING CARE PLACEMENTS,"4,640.48",Revenue,05/05/2015,Social Care & Inclusion
WC56-0139,ACCORD HOUSING ASSOCIATION LTD#135,Third Party Payments,Private Contractor Fees,73373-RESIDENTIAL & NURSING CARE PLACEMENTS,"6,267.69",Revenue,13/05/2015,Social Care & Inclusion
WC56-0140,ACCORD HOUSING ASSOCIATION LTD#135,Third Party Payments,Private Contractor Fees,73373-RESIDENTIAL & NURSING CARE PLACEMENTS,"6,267.69",Revenue,13/05/2015,Social Care & Inclusion
WC56-0141,ACCORD HOUSING ASSOCIATION LTD#135,Third Party Payments,Private Contractor Fees,73373-RESIDENTIAL & NURSING CARE PLACEMENTS,"6,267.69",Revenue,13/05/2015,Social Care & Inclusion
WC56-0142,ACCORD HOUSING ASSOCIATION LTD#135,Third Party Payments,Private Contractor Fees,73365-BLOCK GROSS-SUPPORTING PEOPLE,"7,500.00",Revenue,11/05/2015,Social Care & Inclusion
WC56-0143,ACE CARE AGENCY,Third Party Payments,Private Contractor Fees,73372-DOMICILIARY CARE,607.05,Revenue,19/05/2015,Social Care & Inclusion
WC56-0144,ACE CARE AGENCY,Third Party Payments,Private Contractor Fees,73372-DOMICILIARY CARE,"1,019.76",Revenue,19/05/2015,Social Care & Inclusion
WC56-0145,ACE RADIO CARS,Transport,Hire,52000-WITH DRIVER-HIRE OF VEHICLES,"1,366.68",Revenue,18/05/2015,Childrens
WC56-0146,ACEPAY LTD (COTTAGE NUR HOME),Third Party Payments,Private Contractor Fees,73373-RESIDENTIAL & NURSING CARE PLACEMENTS,553.59,Revenue,13/05/2015,Social Care & Inclusion
WC56-0147,ACEPAY LTD (COTTAGE NUR HOME),Third Party Payments,Private Contractor Fees,73373-RESIDENTIAL & NURSING CARE PLACEMENTS,553.59,Revenue,13/05/2015,Social Care & Inclusion
WC56-0148,ACEPAY LTD (COTTAGE NUR HOME),Third Party Payments,Private Contractor Fees,73373-RESIDENTIAL & NURSING CARE PLACEMENTS,677.81,Revenue,27/05/2015,Social Care & Inclusion
WC56-0149,ACEPAY LTD (COTTAGE NUR HOME),Third Party Payments,Private Contractor Fees,73373-RESIDENTIAL & NURSING CARE PLACEMENTS,"1,383.57",Revenue,13/05/2015,Social Care & Inclusion
WC56-0150,ACEPAY LTD (COTTAGE NUR HOME),Third Party Payments,Private Contractor Fees,73373-RESIDENTIAL & NURSING CARE PLACEMENTS,"1,383.97",Revenue,13/05/2015,Social Care & Inclusion
WC56-0151,ACEPAY LTD (COTTAGE NUR HOME),Third Party Payments,Private Contractor Fees,73373-RESIDENTIAL & NURSING CARE PLACEMENTS,"1,937.56",Revenue,13/05/2015,Social Care & Inclusion
WC56-0152,ACORN CARE LTD,Third Party Payments,Private Contractor Fees,73373-RESIDENTIAL & NURSING CARE PLACEMENTS,"14,361.60",Revenue,05/05/2015,Social Care & Inclusion
WC56-0153,ACORN CARE LTD,Third Party Payments,Private Contractor Fees,73373-RESIDENTIAL & NURSING CARE PLACEMENTS,"14,840.32",Revenue,20/05/2015,Social Care & Inclusion
WC56-0154,ACORN FOSTERING SERVICES LTD,Third Party Payments,Private Contractor Fees,74037-INDEPENDENT FOSTER CARE-OTH AGENCY PROVISION,"3,135.00",Revenue,19/05/2015,Childrens
WC56-0155,ACORN HOUSE FOSTERING SERVICES LTD,Third Party Payments,Private Contractor Fees,74037-INDEPENDENT FOSTER CARE-OTH AGENCY PROVISION,"1,264.23",Revenue,18/05/2015,Childrens
WC56-0156,ACORN HOUSE FOSTERING SERVICES LTD,Third Party Payments,Private Contractor Fees,74037-INDEPENDENT FOSTER CARE-OTH AGENCY PROVISION,"2,698.36",Revenue,18/05/2015,Childrens
WC56-0157,ACORN HOUSE FOSTERING SERVICES LTD,Third Party Payments,Private Contractor Fees,74037-INDEPENDENT FOSTER CARE-OTH AGENCY PROVISION,"3,519.60",Revenue,26/05/2015,Childrens
WC56-0158,ACORN HOUSE FOSTERING SERVICES LTD,Third Party Payments,Private Contractor Fees,74037-INDEPENDENT FOSTER CARE-OTH AGENCY PROVISION,"3,591.30",Revenue,26/05/2015,Childrens
WC56-0159,ACORN HOUSE FOSTERING SERVICES LTD,Third Party Payments,Private Contractor Fees,74037-INDEPENDENT FOSTER CARE-OTH AGENCY PROVISION,"4,070.14",Revenue,18/05/2015,Childrens
WC56-0160,ACORN REST HOME,Third Party Payments,Private Contractor Fees,73373-RESIDENTIAL & NURSING CARE PLACEMENTS,"1,460.40",Revenue,20/05/2015,Social Care & Inclusion
WC56-0161,ACORNS CHILDRENS HOSPICE TRUST,Supplies & Services,Services,63000-PROFESSIONAL FEES AND SERVICES,750.00,Revenue,11/05/2015,Childrens
WC56-0162,ACTION DIGITAL MEDIA LTD,Supplies & Services,"Printing, Stationery & Office Exp",62000-EXTERNAL PRINTING SERVICES,262.74,Revenue,18/05/2015,Neighbourhood Services
WC56-0163,ACTION DIGITAL MEDIA LTD,Supplies & Services,"Printing, Stationery & Office Exp",62000-EXTERNAL PRINTING SERVICES,272.00,Revenue,26/05/2015,Neighbourhood Services
WC56-0164,ACTION DIGITAL MEDIA LTD,Supplies & Services,"Printing, Stationery & Office Exp",62000-EXTERNAL PRINTING SERVICES,291.00,Revenue,27/05/2015,Neighbourhood Services
WC56-0165,ACTION DIGITAL MEDIA LTD,Supplies & Services,"Printing, Stationery & Office Exp",62000-EXTERNAL PRINTING SERVICES,375.14,Revenue,11/05/2015,Neighbourhood Services
WC56-0166,ACTION DIGITAL MEDIA LTD,Supplies & Services,"Printing, Stationery & Office Exp",62000-EXTERNAL PRINTING SERVICES,462.56,Revenue,11/05/2015,Neighbourhood Services
WC56-0167,ACTION FOR CHILDREN,Third Party Payments,Private Contractor Fees,74037-INDEPENDENT FOSTER CARE-OTH AGENCY PROVISION,"3,405.34",Revenue,08/05/2015,Childrens
WC56-0168,ACTION ON HEARING LOSS,Third Party Payments,Private Contractor Fees,73374-SUPPORTED & OTHER ACCOMMODATION,479.28,Revenue,19/05/2015,Social Care & Inclusion
WC56-0169,ACTION ON HEARING LOSS,Third Party Payments,Private Contractor Fees,73374-SUPPORTED & OTHER ACCOMMODATION,479.28,Revenue,20/05/2015,Social Care & Inclusion
WC56-0170,ACTIVE ASSISTANCE,Supplies & Services,Services,63000-PROFESSIONAL FEES AND SERVICES,"2,174.24",Revenue,19/05/2015,Childrens
WC56-0171,ACTIVE ASSISTANCE,Supplies & Services,Services,63000-PROFESSIONAL FEES AND SERVICES,"2,326.64",Revenue,19/05/2015,Childrens
WC56-0172,REDACTED,Transfer Payments,Transfer Payments,76422-DIRECT PAYMENTS TO SOCIAL SERVICES CLIENTS,487.60,Revenue,12/05/2015,Childrens
WC56-0173,REDACTED,Transfer Payments,Transfer Payments,76422-DIRECT PAYMENTS TO SOCIAL SERVICES CLIENTS,812.00,Revenue,12/05/2015,Social Care & Inclusion
WC56-0174,ADDACTION,Supplies & Services,Services,63000-PROFESSIONAL FEES AND SERVICES,"240,348.00",Revenue,11/05/2015,Neighbourhood Services
WC56-0175,REDACTED,Transfer Payments,Transfer Payments,76422-DIRECT PAYMENTS TO SOCIAL SERVICES CLIENTS,860.00,Revenue,12/05/2015,Social Care & Inclusion
WC56-0176,ADMIRAL SELF STORAGE LTD,Supplies & Services,"Equip,Furniture & Materials",60000-FURNITURE & EQUIPMENT,-419.32,Revenue,01/05/2015,Resources
WC56-0177,ADMIRAL SELF STORAGE LTD,Supplies & Services,Services,63000-PROFESSIONAL FEES AND SERVICES,419.32,Revenue,01/05/2015,Resources
WC56-0178,ADOPTION UK,Supplies & Services,Subscriptions,64500-PUBLICATIONS/ORGANISATIONS-SUBSCRIPTIONS,"1,250.00",Revenue,01/05/2015,Childrens
WC56-0179,ADVANCE HEALTH CARE (UK) LTD,Employees,Agency,34305-AGENCY STAFF-EMPLOYEES,321.75,Revenue,05/05/2015,Social Care & Inclusion
WC56-0180,ADVANCE HEALTH CARE (UK) LTD,Employees,Agency,34305-AGENCY STAFF-EMPLOYEES,351.00,Revenue,06/05/2015,Social Care & Inclusion
WC56-0181,ADVANCE HEALTH CARE (UK) LTD,Third Party Payments,Private Contractor Fees,73372-DOMICILIARY CARE,413.87,Revenue,22/05/2015,Social Care & Inclusion
WC56-0182,ADVANCE HEALTH CARE (UK) LTD,Third Party Payments,Private Contractor Fees,73372-DOMICILIARY CARE,"37,115.69",Revenue,19/05/2015,Social Care & Inclusion
WC56-0183,ADVANCE PHARMA LTD T/A PLECK PHARMACY,Third Party Payments,Joint Arrangements,71007-CONTRIBUTION TO PCT,391.17,Revenue,06/05/2015,Neighbourhood Services
WC56-0184,ADVANCED CONTRACTS (MIDLANDS) LTD,Third Party Payments,Private Contractor Fees,73025-PROFESSIONAL SERVICES-PRIV CONTRACTOR & OTHER AGENCIES,-800.00,Revenue,18/05/2015,Regeneration
WC56-0185,ADVANCED CONTRACTS (MIDLANDS) LTD,Premises,Premises-Repairs & Maintenance,"40000-REPAIRS,ALTERATIONS & MAINTENANCE-PREM",-250.00,Revenue,27/05/2015,Regeneration
WC56-0186,ADVANCED CONTRACTS (MIDLANDS) LTD,Supplies & Services,"Equip,Furniture & Materials",60009-LEASING/HIRE/RENTAL-EQUIPMENT,"1,270.90",Revenue,22/05/2015,Resources
WC56-0187,ADVANCED CONTRACTS (MIDLANDS) LTD,Third Party Payments,Private Contractor Fees,73025-PROFESSIONAL SERVICES-PRIV CONTRACTOR & OTHER AGENCIES,"4,216.80",Revenue,18/05/2015,Regeneration
WC56-0188,ADVENTURE ACTIVITIES LIC AUTH,Supplies & Services,Other Supplies & Services,63114-OTHER FEES & LICENCES-SERVICES-FEES,715.00,Revenue,06/05/2015,Neighbourhood Services
WC56-0189,AFTER ADOPTION,Employees,Training,30030-EXTERNAL TRAINING,"5,000.00",Revenue,27/05/2015,Childrens
WC56-0190,AGE UK WALSALL,Transfer Payments,Transfer Payments,76423-DIRECT PAYMENTS SUPPORT,"6,400.00",Revenue,12/05/2015,Social Care & Inclusion
WC56-0191,AGINCARE UK LTD,Third Party Payments,Private Contractor Fees,73372-DOMICILIARY CARE,260.10,Revenue,20/05/2015,Social Care & Inclusion
WC56-0192,REDACTED,Transfer Payments,Transfer Payments,76422-DIRECT PAYMENTS TO SOCIAL SERVICES CLIENTS,"1,882.00",Revenue,12/05/2015,Social Care & Inclusion
WC56-0193,REDACTED,Transfer Payments,Transfer Payments,76422-DIRECT PAYMENTS TO SOCIAL SERVICES CLIENTS,936.52,Revenue,12/05/2015,Social Care & Inclusion
WC56-0194,REDACTED,Transfer Payments,Transfer Payments,76422-DIRECT PAYMENTS TO SOCIAL SERVICES CLIENTS,667.80,Revenue,12/05/2015,Social Care & Inclusion
WC56-0195,ALDERGROVE MANOR CARE HOME,Third Party Payments,Private Contractor Fees,73373-RESIDENTIAL & NURSING CARE PLACEMENTS,"1,784.48",Revenue,05/05/2015,Social Care & Inclusion
WC56-0196,ALDERGROVE MANOR CARE HOME,Third Party Payments,Private Contractor Fees,73373-RESIDENTIAL & NURSING CARE PLACEMENTS,"1,799.20",Revenue,27/05/2015,Social Care & Inclusion
WC56-0197,ALDRIDGE & BARONS LIMITED,Transport,Hire,52001-HIRE OF VEHICLES,"1,470.00",Revenue,27/05/2015,Childrens
WC56-0198,REDACTED,Transfer Payments,Transfer Payments,76422-DIRECT PAYMENTS TO SOCIAL SERVICES CLIENTS,"1,204.00",Revenue,12/05/2015,Social Care & Inclusion
WC56-0199,REDACTED,Third Party Payments,Private Contractor Fees,63239-EXTERNAL WORKS-PAYMENT TO CONTRACTOR,253.20,Revenue,05/05/2015,Neighbourhood Services
WC56-0200,REDACTED,Transfer Payments,Transfer Payments,76422-DIRECT PAYMENTS TO SOCIAL SERVICES CLIENTS,582.66,Revenue,12/05/2015,Childrens
WC56-0201,REDACTED,Transfer Payments,Transfer Payments,76422-DIRECT PAYMENTS TO SOCIAL SERVICES CLIENTS,854.00,Revenue,12/05/2015,Social Care & Inclusion
WC56-0202,REDACTED,Transfer Payments,Transfer Payments,76422-DIRECT PAYMENTS TO SOCIAL SERVICES CLIENTS,328.80,Revenue,12/05/2015,Social Care & Inclusion
WC56-0203,REDACTED,Third Party Payments,Private Contractor Fees,74006-HOLIDAY/CHRISTMAS ALLOWANCE-FOSTER CARERS-OTH AGENCY PROVISION,985.76,Revenue,25/05/2015,Childrens
WC56-0204,REDACTED,Supplies & Services,Other Supplies & Services,62515-MISCELLANEOUS SUPPLIES,"1,445.32",Revenue,25/05/2015,Childrens
WC56-0205,REDACTED,Third Party Payments,Private Contractor Fees,74006-HOLIDAY/CHRISTMAS ALLOWANCE-FOSTER CARERS-OTH AGENCY PROVISION,552.96,Revenue,11/05/2015,Childrens
WC56-0206,ALLTECH SERVICE ENGINEERS LTD,Supplies & Services,"Equip,Furniture & Materials",60008-MAINTENANCE-FURNITURE & EQUIPMENT,290.00,Revenue,07/05/2015,Resources
WC56-0207,ALMA COURT,Third Party Payments,Private Contractor Fees,73373-RESIDENTIAL & NURSING CARE PLACEMENTS,"5,580.00",Revenue,27/05/2015,Social Care & Inclusion
WC56-0208,ALMA COURT,Third Party Payments,Private Contractor Fees,73373-RESIDENTIAL & NURSING CARE PLACEMENTS,"5,978.57",Revenue,27/05/2015,Social Care & Inclusion
WC56-0209,ALMA COURT,Third Party Payments,Private Contractor Fees,73373-RESIDENTIAL & NURSING CARE PLACEMENTS,"6,177.86",Revenue,27/05/2015,Social Care & Inclusion
WC56-0210,ALMA COURT,Third Party Payments,Private Contractor Fees,73373-RESIDENTIAL & NURSING CARE PLACEMENTS,"6,177.86",Revenue,27/05/2015,Social Care & Inclusion
WC56-0211,ALMA COURT,Third Party Payments,Private Contractor Fees,73373-RESIDENTIAL & NURSING CARE PLACEMENTS,"6,177.86",Revenue,27/05/2015,Social Care & Inclusion
WC56-0212,ALMA COURT,Third Party Payments,Private Contractor Fees,73373-RESIDENTIAL & NURSING CARE PLACEMENTS,"9,167.15",Revenue,27/05/2015,Social Care & Inclusion
WC56-0213,ALPHA HAIR DESIGN ACADEMY,Third Party Payments,Grants to Other Orgs,66502-TOP UP FUNDING -GRANTS TO SCHOOLS,"1,130.76",Revenue,01/05/2015,Childrens
WC56-0214,ALPHA HAIR DESIGN ACADEMY,Third Party Payments,Grants to Other Orgs,66502-TOP UP FUNDING -GRANTS TO SCHOOLS,"1,506.52",Revenue,19/05/2015,Childrens
WC56-0215,ALPHA HEALTH CARE LTD,Third Party Payments,Private Contractor Fees,73373-RESIDENTIAL & NURSING CARE PLACEMENTS,"-1,228.29",Revenue,13/05/2015,Social Care & Inclusion
WC56-0216,ALPHA HEALTH CARE LTD,Third Party Payments,Private Contractor Fees,73373-RESIDENTIAL & NURSING CARE PLACEMENTS,-491.28,Revenue,05/05/2015,Social Care & Inclusion
WC56-0217,ALPHA HEALTH CARE LTD,Third Party Payments,Private Contractor Fees,73373-RESIDENTIAL & NURSING CARE PLACEMENTS,426.86,Revenue,27/05/2015,Social Care & Inclusion
WC56-0218,ALPHA HEALTH CARE LTD,Third Party Payments,Private Contractor Fees,73373-RESIDENTIAL & NURSING CARE PLACEMENTS,712.27,Revenue,05/05/2015,Social Care & Inclusion
WC56-0219,ALPHA HEALTH CARE LTD,Third Party Payments,Private Contractor Fees,73373-RESIDENTIAL & NURSING CARE PLACEMENTS,"1,107.18",Revenue,20/05/2015,Social Care & Inclusion
WC56-0220,ALPHA HEALTH CARE LTD,Third Party Payments,Private Contractor Fees,73373-RESIDENTIAL & NURSING CARE PLACEMENTS,"1,260.17",Revenue,27/05/2015,Social Care & Inclusion
WC56-0221,ALPHA HEALTH CARE LTD,Third Party Payments,Private Contractor Fees,73373-RESIDENTIAL & NURSING CARE PLACEMENTS,"1,375.60",Revenue,20/05/2015,Social Care & Inclusion
WC56-0222,ALPHA HEALTH CARE LTD,Third Party Payments,Private Contractor Fees,73373-RESIDENTIAL & NURSING CARE PLACEMENTS,"1,382.00",Revenue,20/05/2015,Social Care & Inclusion
WC56-0223,ALPHA HEALTH CARE LTD,Third Party Payments,Private Contractor Fees,73373-RESIDENTIAL & NURSING CARE PLACEMENTS,"1,460.40",Revenue,20/05/2015,Social Care & Inclusion
WC56-0224,ALPHA HEALTH CARE LTD,Third Party Payments,Private Contractor Fees,73373-RESIDENTIAL & NURSING CARE PLACEMENTS,"1,476.84",Revenue,20/05/2015,Social Care & Inclusion
WC56-0225,ALPHA HEALTH CARE LTD,Third Party Payments,Private Contractor Fees,73373-RESIDENTIAL & NURSING CARE PLACEMENTS,"1,476.84",Revenue,20/05/2015,Social Care & Inclusion
WC56-0226,ALPHA HEALTH CARE LTD,Third Party Payments,Private Contractor Fees,73373-RESIDENTIAL & NURSING CARE PLACEMENTS,"1,476.84",Revenue,20/05/2015,Social Care & Inclusion
WC56-0227,ALPHA HEALTH CARE LTD,Third Party Payments,Private Contractor Fees,73373-RESIDENTIAL & NURSING CARE PLACEMENTS,"1,494.00",Revenue,05/05/2015,Social Care & Inclusion
WC56-0228,ALPHA HEALTH CARE LTD,Third Party Payments,Private Contractor Fees,73373-RESIDENTIAL & NURSING CARE PLACEMENTS,"1,494.00",Revenue,13/05/2015,Social Care & Inclusion
WC56-0229,ALPHA HEALTH CARE LTD,Third Party Payments,Private Contractor Fees,73373-RESIDENTIAL & NURSING CARE PLACEMENTS,"1,494.00",Revenue,20/05/2015,Social Care & Inclusion
WC56-0230,ALPHA HEALTH CARE LTD,Third Party Payments,Private Contractor Fees,73373-RESIDENTIAL & NURSING CARE PLACEMENTS,"1,494.00",Revenue,20/05/2015,Social Care & Inclusion
WC56-0231,ALPHA HEALTH CARE LTD,Third Party Payments,Private Contractor Fees,73373-RESIDENTIAL & NURSING CARE PLACEMENTS,"1,494.00",Revenue,20/05/2015,Social Care & Inclusion
WC56-0232,ALPHA HEALTH CARE LTD,Third Party Payments,Private Contractor Fees,73373-RESIDENTIAL & NURSING CARE PLACEMENTS,"1,494.00",Revenue,20/05/2015,Social Care & Inclusion
WC56-0233,ALPHA HEALTH CARE LTD,Third Party Payments,Private Contractor Fees,73373-RESIDENTIAL & NURSING CARE PLACEMENTS,"1,494.00",Revenue,20/05/2015,Social Care & Inclusion
WC56-0234,ALPHA HEALTH CARE LTD,Third Party Payments,Private Contractor Fees,73373-RESIDENTIAL & NURSING CARE PLACEMENTS,"1,494.00",Revenue,20/05/2015,Social Care & Inclusion
WC56-0235,ALPHA HEALTH CARE LTD,Third Party Payments,Private Contractor Fees,73373-RESIDENTIAL & NURSING CARE PLACEMENTS,"1,494.00",Revenue,20/05/2015,Social Care & Inclusion
WC56-0236,ALPHA HEALTH CARE LTD,Third Party Payments,Private Contractor Fees,73373-RESIDENTIAL & NURSING CARE PLACEMENTS,"1,494.00",Revenue,27/05/2015,Social Care & Inclusion
WC56-0237,ALPHA HEALTH CARE LTD,Third Party Payments,Private Contractor Fees,73373-RESIDENTIAL & NURSING CARE PLACEMENTS,"1,494.00",Revenue,27/05/2015,Social Care & Inclusion
WC56-0238,ALPHA HEALTH CARE LTD,Third Party Payments,Private Contractor Fees,73373-RESIDENTIAL & NURSING CARE PLACEMENTS,"1,494.00",Revenue,27/05/2015,Social Care & Inclusion
WC56-0239,ALPHA HEALTH CARE LTD,Third Party Payments,Private Contractor Fees,73373-RESIDENTIAL & NURSING CARE PLACEMENTS,"1,494.00",Revenue,27/05/2015,Social Care & Inclusion
WC56-0240,ALPHA HEALTH CARE LTD,Third Party Payments,Private Contractor Fees,73373-RESIDENTIAL & NURSING CARE PLACEMENTS,"1,494.00",Revenue,27/05/2015,Social Care & Inclusion
WC56-0241,ALPHA HEALTH CARE LTD,Third Party Payments,Private Contractor Fees,73373-RESIDENTIAL & NURSING CARE PLACEMENTS,"1,494.00",Revenue,27/05/2015,Social Care & Inclusion
WC56-0242,ALPHA HEALTH CARE LTD,Third Party Payments,Private Contractor Fees,73373-RESIDENTIAL & NURSING CARE PLACEMENTS,"1,494.00",Revenue,27/05/2015,Social Care & Inclusion
WC56-0243,ALPHA HEALTH CARE LTD,Third Party Payments,Private Contractor Fees,73373-RESIDENTIAL & NURSING CARE PLACEMENTS,"1,494.00",Revenue,27/05/2015,Social Care & Inclusion
WC56-0244,ALPHA HEALTH CARE LTD,Third Party Payments,Private Contractor Fees,73373-RESIDENTIAL & NURSING CARE PLACEMENTS,"1,494.00",Revenue,27/05/2015,Social Care & Inclusion
WC56-0245,ALPHA HEALTH CARE LTD,Third Party Payments,Private Contractor Fees,73373-RESIDENTIAL & NURSING CARE PLACEMENTS,"1,494.04",Revenue,27/05/2015,Social Care & Inclusion
WC56-0246,ALPHA HEALTH CARE LTD,Third Party Payments,Private Contractor Fees,73373-RESIDENTIAL & NURSING CARE PLACEMENTS,"1,494.04",Revenue,27/05/2015,Social Care & Inclusion
WC56-0247,ALPHA HEALTH CARE LTD,Third Party Payments,Private Contractor Fees,73373-RESIDENTIAL & NURSING CARE PLACEMENTS,"1,512.14",Revenue,20/05/2015,Social Care & Inclusion
WC56-0248,ALPHA HEALTH CARE LTD,Third Party Payments,Private Contractor Fees,73373-RESIDENTIAL & NURSING CARE PLACEMENTS,"1,534.12",Revenue,05/05/2015,Social Care & Inclusion
WC56-0249,ALPHA HEALTH CARE LTD,Third Party Payments,Private Contractor Fees,73373-RESIDENTIAL & NURSING CARE PLACEMENTS,"1,534.12",Revenue,20/05/2015,Social Care & Inclusion
WC56-0250,ALPHA HEALTH CARE LTD,Third Party Payments,Private Contractor Fees,73373-RESIDENTIAL & NURSING CARE PLACEMENTS,"1,534.12",Revenue,20/05/2015,Social Care & Inclusion
WC56-0251,ALPHA HEALTH CARE LTD,Third Party Payments,Private Contractor Fees,73373-RESIDENTIAL & NURSING CARE PLACEMENTS,"1,534.12",Revenue,20/05/2015,Social Care & Inclusion
WC56-0252,ALPHA HEALTH CARE LTD,Third Party Payments,Private Contractor Fees,73373-RESIDENTIAL & NURSING CARE PLACEMENTS,"1,534.12",Revenue,20/05/2015,Social Care & Inclusion
WC56-0253,ALPHA HEALTH CARE LTD,Third Party Payments,Private Contractor Fees,73373-RESIDENTIAL & NURSING CARE PLACEMENTS,"1,534.28",Revenue,20/05/2015,Social Care & Inclusion
WC56-0254,ALPHA HEALTH CARE LTD,Third Party Payments,Private Contractor Fees,73373-RESIDENTIAL & NURSING CARE PLACEMENTS,"1,594.72",Revenue,27/05/2015,Social Care & Inclusion
WC56-0255,ALPHA HEALTH CARE LTD,Third Party Payments,Private Contractor Fees,73373-RESIDENTIAL & NURSING CARE PLACEMENTS,"1,594.72",Revenue,27/05/2015,Social Care & Inclusion
WC56-0256,ALPHA HEALTH CARE LTD,Third Party Payments,Private Contractor Fees,73373-RESIDENTIAL & NURSING CARE PLACEMENTS,"1,910.68",Revenue,13/05/2015,Social Care & Inclusion
WC56-0257,ALPHA HEALTH CARE LTD,Third Party Payments,Private Contractor Fees,73373-RESIDENTIAL & NURSING CARE PLACEMENTS,"1,937.56",Revenue,05/05/2015,Social Care & Inclusion
WC56-0258,ALPHA HEALTH CARE LTD,Third Party Payments,Private Contractor Fees,73373-RESIDENTIAL & NURSING CARE PLACEMENTS,"2,012.60",Revenue,27/05/2015,Social Care & Inclusion
WC56-0259,ALPHA HEALTH CARE LTD,Third Party Payments,Private Contractor Fees,73373-RESIDENTIAL & NURSING CARE PLACEMENTS,"2,012.60",Revenue,27/05/2015,Social Care & Inclusion
WC56-0260,ALPHA HEALTH CARE LTD,Third Party Payments,Private Contractor Fees,73373-RESIDENTIAL & NURSING CARE PLACEMENTS,"2,113.84",Revenue,27/05/2015,Social Care & Inclusion
WC56-0261,ALPHA HEALTH CARE LTD,Third Party Payments,Private Contractor Fees,73373-RESIDENTIAL & NURSING CARE PLACEMENTS,"2,113.84",Revenue,27/05/2015,Social Care & Inclusion
WC56-0262,ALPHA HEALTH CARE LTD,Third Party Payments,Private Contractor Fees,73373-RESIDENTIAL & NURSING CARE PLACEMENTS,"3,041.36",Revenue,05/05/2015,Social Care & Inclusion
WC56-0263,ALPHA HEALTH CARE LTD,Third Party Payments,Private Contractor Fees,73373-RESIDENTIAL & NURSING CARE PLACEMENTS,"4,632.24",Revenue,27/05/2015,Social Care & Inclusion
WC56-0264,ALPHA HEALTH CARE LTD,Third Party Payments,Private Contractor Fees,73373-RESIDENTIAL & NURSING CARE PLACEMENTS,"5,304.44",Revenue,27/05/2015,Social Care & Inclusion
WC56-0265,ALPHA HEALTH CARE LTD,Third Party Payments,Private Contractor Fees,73373-RESIDENTIAL & NURSING CARE PLACEMENTS,"5,431.12",Revenue,27/05/2015,Social Care & Inclusion
WC56-0266,ALPHA HEALTH CARE LTD,Third Party Payments,Private Contractor Fees,73373-RESIDENTIAL & NURSING CARE PLACEMENTS,"5,431.12",Revenue,27/05/2015,Social Care & Inclusion
WC56-0267,ALPHA HEALTH CARE LTD,Third Party Payments,Private Contractor Fees,73373-RESIDENTIAL & NURSING CARE PLACEMENTS,"5,604.44",Revenue,27/05/2015,Social Care & Inclusion
WC56-0268,ALPHA HEALTH CARE LTD,Third Party Payments,Private Contractor Fees,73373-RESIDENTIAL & NURSING CARE PLACEMENTS,"12,062.96",Revenue,05/05/2015,Social Care & Inclusion
WC56-0269,ALPHABIOLABS,Third Party Payments,Private Contractor Fees,73014-LEGAL FEES-PRIV CONTRACTOR FEES,710.00,Revenue,27/05/2015,Childrens
WC56-0270,ALTODIGITAL NETWORKS LTD,Supplies & Services,"Equip,Furniture & Materials",60009-LEASING/HIRE/RENTAL-EQUIPMENT,281.76,Revenue,22/05/2015,Resources
WC56-0271,REDACTED,Third Party Payments,Private Contractor Fees,74006-HOLIDAY/CHRISTMAS ALLOWANCE-FOSTER CARERS-OTH AGENCY PROVISION,"1,500.88",Revenue,11/05/2015,Childrens
WC56-0272,REDACTED,Supplies & Services,Other Supplies & Services,62515-MISCELLANEOUS SUPPLIES,354.48,Revenue,25/05/2015,Childrens
WC56-0273,REDACTED,Third Party Payments,Private Contractor Fees,74006-HOLIDAY/CHRISTMAS ALLOWANCE-FOSTER CARERS-OTH AGENCY PROVISION,571.44,Revenue,25/05/2015,Childrens
WC56-0274,REDACTED,Transfer Payments,Transfer Payments,76422-DIRECT PAYMENTS TO SOCIAL SERVICES CLIENTS,654.50,Revenue,12/05/2015,Social Care & Inclusion
WC56-0275,REDACTED,Transfer Payments,Transfer Payments,76422-DIRECT PAYMENTS TO SOCIAL SERVICES CLIENTS,312.92,Revenue,12/05/2015,Childrens
WC56-0276,AMEY LG LIMITED,Supplies & Services,Other Supplies & Services,62515-MISCELLANEOUS SUPPLIES,"1,689.16",Revenue,14/05/2015,Neighbourhood Services
WC56-0277,AMG NURSING CARE SERVICES,Supplies & Services,Services,63000-PROFESSIONAL FEES AND SERVICES,362.96,Revenue,01/05/2015,Childrens
WC56-0278,AMG NURSING CARE SERVICES,Third Party Payments,Private Contractor Fees,74036-EXTERNAL RESIDENTIAL CARE-OTH AGENCY PROVISION,"1,088.88",Revenue,20/05/2015,Childrens
WC56-0279,AMG NURSING CARE SERVICES,Third Party Payments,Private Contractor Fees,74036-EXTERNAL RESIDENTIAL CARE-OTH AGENCY PROVISION,"2,229.76",Revenue,20/05/2015,Childrens
WC56-0280,AMG NURSING CARE SERVICES,Third Party Payments,Private Contractor Fees,74036-EXTERNAL RESIDENTIAL CARE-OTH AGENCY PROVISION,"2,229.76",Revenue,20/05/2015,Childrens
WC56-0281,REDACTED,Transfer Payments,Transfer Payments,76422-DIRECT PAYMENTS TO SOCIAL SERVICES CLIENTS,891.24,Revenue,12/05/2015,Social Care & Inclusion
WC56-0282,REDACTED,Third Party Payments,Private Contractor Fees,74006-HOLIDAY/CHRISTMAS ALLOWANCE-FOSTER CARERS-OTH AGENCY PROVISION,425.08,Revenue,11/05/2015,Childrens
WC56-0283,REDACTED,Transfer Payments,Transfer Payments,76422-DIRECT PAYMENTS TO SOCIAL SERVICES CLIENTS,544.00,Revenue,12/05/2015,Social Care & Inclusion
WC56-0284,REDACTED,Supplies & Services,Other Supplies & Services,62515-MISCELLANEOUS SUPPLIES,925.00,Revenue,25/05/2015,Childrens
WC56-0285,REDACTED,Third Party Payments,Private Contractor Fees,74006-HOLIDAY/CHRISTMAS ALLOWANCE-FOSTER CARERS-OTH AGENCY PROVISION,"1,301.84",Revenue,25/05/2015,Childrens
WC56-0286,REDACTED,Transfer Payments,Transfer Payments,76422-DIRECT PAYMENTS TO SOCIAL SERVICES CLIENTS,378.00,Revenue,12/05/2015,Social Care & Inclusion
WC56-0287,REDACTED,Supplies & Services,Other Supplies & Services,62515-MISCELLANEOUS SUPPLIES,906.76,Revenue,25/05/2015,Childrens
WC56-0288,REDACTED,Third Party Payments,Private Contractor Fees,74006-HOLIDAY/CHRISTMAS ALLOWANCE-FOSTER CARERS-OTH AGENCY PROVISION,985.76,Revenue,25/05/2015,Childrens
WC56-0289,ANGEL COURT RESIDENTIAL CARE HOME,Third Party Payments,Private Contractor Fees,73373-RESIDENTIAL & NURSING CARE PLACEMENTS,417.26,Revenue,05/05/2015,Social Care & Inclusion
WC56-0290,ANGEL COURT RESIDENTIAL CARE HOME,Third Party Payments,Private Contractor Fees,73373-RESIDENTIAL & NURSING CARE PLACEMENTS,521.57,Revenue,05/05/2015,Social Care & Inclusion
WC56-0291,ANGEL COURT RESIDENTIAL CARE HOME,Third Party Payments,Private Contractor Fees,73373-RESIDENTIAL & NURSING CARE PLACEMENTS,"1,643.70",Revenue,27/05/2015,Social Care & Inclusion
WC56-0292,ANGEL COURT RESIDENTIAL CARE HOME,Third Party Payments,Private Contractor Fees,73373-RESIDENTIAL & NURSING CARE PLACEMENTS,"1,784.44",Revenue,13/05/2015,Social Care & Inclusion
WC56-0293,ANGEL COURT RESIDENTIAL CARE HOME,Third Party Payments,Private Contractor Fees,73373-RESIDENTIAL & NURSING CARE PLACEMENTS,"1,843.92",Revenue,27/05/2015,Social Care & Inclusion
WC56-0294,ANGEL COURT RESIDENTIAL CARE HOME,Third Party Payments,Private Contractor Fees,73373-RESIDENTIAL & NURSING CARE PLACEMENTS,"1,857.25",Revenue,05/05/2015,Social Care & Inclusion
WC56-0295,ANGEL SPRINGS LTD,Premises,Premises-Repairs & Maintenance,"40000-REPAIRS,ALTERATIONS & MAINTENANCE-PREM",375.36,Revenue,06/05/2015,Neighbourhood Services
WC56-0296,REDACTED,Third Party Payments,Private Contractor Fees,74006-HOLIDAY/CHRISTMAS ALLOWANCE-FOSTER CARERS-OTH AGENCY PROVISION,"2,034.13",Revenue,11/05/2015,Childrens
WC56-0297,ANGLIA STAIRLIFTS LTD,Capital,Capital,01045-PRIVATE GRANTS,"4,049.00",Capital,15/05/2015,Resources
WC56-0298,ANGLIA STAIRLIFTS LTD,Capital,Capital,01045-PRIVATE GRANTS,"4,495.00",Capital,20/05/2015,Resources
WC56-0299,ANGLIA STAIRLIFTS LTD,Capital,Capital,01045-PRIVATE GRANTS,"4,566.00",Capital,20/05/2015,Resources
WC56-0300,ANGLIA STAIRLIFTS LTD,Capital,Capital,01045-PRIVATE GRANTS,"5,005.00",Capital,20/05/2015,Resources
WC56-0301,REDACTED,Third Party Payments,Private Contractor Fees,74006-HOLIDAY/CHRISTMAS ALLOWANCE-FOSTER CARERS-OTH AGENCY PROVISION,"1,461.24",Revenue,25/05/2015,Childrens
WC56-0302,REDACTED,Supplies & Services,Other Supplies & Services,62515-MISCELLANEOUS SUPPLIES,"1,513.77",Revenue,25/05/2015,Childrens
WC56-0303,REDACTED,Transfer Payments,Transfer Payments,76422-DIRECT PAYMENTS TO SOCIAL SERVICES CLIENTS,318.00,Revenue,12/05/2015,Social Care & Inclusion
WC56-0304,REDACTED,Supplies & Services,Services,63000-PROFESSIONAL FEES AND SERVICES,418.75,Revenue,12/05/2015,Neighbourhood Services
WC56-0305,REDACTED,Third Party Payments,Private Contractor Fees,73374-SUPPORTED & OTHER ACCOMMODATION,"1,045.55",Revenue,20/05/2015,Social Care & Inclusion
WC56-0306,REDACTED,Transfer Payments,Transfer Payments,76422-DIRECT PAYMENTS TO SOCIAL SERVICES CLIENTS,550.00,Revenue,12/05/2015,Social Care & Inclusion
WC56-0307,ANSON COURT RESIDENTIAL HOME,Third Party Payments,Private Contractor Fees,73373-RESIDENTIAL & NURSING CARE PLACEMENTS,"1,532.52",Revenue,05/05/2015,Social Care & Inclusion
WC56-0308,ANSON COURT RESIDENTIAL HOME,Third Party Payments,Private Contractor Fees,73373-RESIDENTIAL & NURSING CARE PLACEMENTS,"1,534.12",Revenue,05/05/2015,Social Care & Inclusion
WC56-0309,ANSON COURT RESIDENTIAL HOME,Third Party Payments,Private Contractor Fees,73373-RESIDENTIAL & NURSING CARE PLACEMENTS,"1,534.12",Revenue,05/05/2015,Social Care & Inclusion
WC56-0310,ANSON COURT RESIDENTIAL HOME,Third Party Payments,Private Contractor Fees,73373-RESIDENTIAL & NURSING CARE PLACEMENTS,"1,534.12",Revenue,05/05/2015,Social Care & Inclusion
WC56-0311,ANSON COURT RESIDENTIAL HOME,Third Party Payments,Private Contractor Fees,73373-RESIDENTIAL & NURSING CARE PLACEMENTS,"1,534.12",Revenue,05/05/2015,Social Care & Inclusion
WC56-0312,ANSON COURT RESIDENTIAL HOME,Third Party Payments,Private Contractor Fees,73373-RESIDENTIAL & NURSING CARE PLACEMENTS,"1,534.12",Revenue,05/05/2015,Social Care & Inclusion
WC56-0313,ANSON COURT RESIDENTIAL HOME,Third Party Payments,Private Contractor Fees,73373-RESIDENTIAL & NURSING CARE PLACEMENTS,"1,534.12",Revenue,05/05/2015,Social Care & Inclusion
WC56-0314,ANSON COURT RESIDENTIAL HOME,Third Party Payments,Private Contractor Fees,73373-RESIDENTIAL & NURSING CARE PLACEMENTS,"1,534.12",Revenue,05/05/2015,Social Care & Inclusion
WC56-0315,ANSON COURT RESIDENTIAL HOME,Third Party Payments,Private Contractor Fees,73373-RESIDENTIAL & NURSING CARE PLACEMENTS,"1,534.12",Revenue,05/05/2015,Social Care & Inclusion
WC56-0316,ANSON COURT RESIDENTIAL HOME,Third Party Payments,Private Contractor Fees,73373-RESIDENTIAL & NURSING CARE PLACEMENTS,"1,534.12",Revenue,05/05/2015,Social Care & Inclusion
WC56-0317,ANSON COURT RESIDENTIAL HOME,Third Party Payments,Private Contractor Fees,73373-RESIDENTIAL & NURSING CARE PLACEMENTS,"1,534.72",Revenue,05/05/2015,Social Care & Inclusion
WC56-0318,ANSON COURT RESIDENTIAL HOME,Third Party Payments,Private Contractor Fees,73373-RESIDENTIAL & NURSING CARE PLACEMENTS,"1,612.92",Revenue,05/05/2015,Social Care & Inclusion
WC56-0319,ANSON COURT RESIDENTIAL HOME,Third Party Payments,Private Contractor Fees,73373-RESIDENTIAL & NURSING CARE PLACEMENTS,"1,614.12",Revenue,05/05/2015,Social Care & Inclusion
WC56-0320,ANSON COURT RESIDENTIAL HOME,Third Party Payments,Private Contractor Fees,73373-RESIDENTIAL & NURSING CARE PLACEMENTS,"1,614.12",Revenue,05/05/2015,Social Care & Inclusion
WC56-0321,ANSON COURT RESIDENTIAL HOME,Third Party Payments,Private Contractor Fees,73373-RESIDENTIAL & NURSING CARE PLACEMENTS,"1,614.72",Revenue,05/05/2015,Social Care & Inclusion
WC56-0322,ANSON COURT RESIDENTIAL HOME,Third Party Payments,Private Contractor Fees,73373-RESIDENTIAL & NURSING CARE PLACEMENTS,"1,614.72",Revenue,05/05/2015,Social Care & Inclusion
WC56-0323,ANSON COURT RESIDENTIAL HOME,Third Party Payments,Private Contractor Fees,73373-RESIDENTIAL & NURSING CARE PLACEMENTS,"1,917.65",Revenue,27/05/2015,Social Care & Inclusion
WC56-0324,ANSONS SOLICITORS,Capital,Capital,01001-OTHER CONSULTANTS FEES,"2,000.00",Capital,19/05/2015,Regeneration
WC56-0325,REDACTED,Third Party Payments,Private Contractor Fees,74006-HOLIDAY/CHRISTMAS ALLOWANCE-FOSTER CARERS-OTH AGENCY PROVISION,"1,369.84",Revenue,11/05/2015,Childrens
WC56-0326,REDACTED,Third Party Payments,Private Contractor Fees,74006-HOLIDAY/CHRISTMAS ALLOWANCE-FOSTER CARERS-OTH AGENCY PROVISION,642.87,Revenue,11/05/2015,Childrens
WC56-0327,APCOA PARKING SERVICES (UK) LTD,Third Party Payments,Private Contractor Fees,73025-PROFESSIONAL SERVICES-PRIV CONTRACTOR & OTHER AGENCIES,"47,400.08",Revenue,19/05/2015,Neighbourhood Services
WC56-0328,ARBORETUM NURSING HOME.,Third Party Payments,Private Contractor Fees,73019-PSE'S-PRIV CONTRACTOR FEES,"-15,000.00",Revenue,06/05/2015,Social Care & Inclusion
WC56-0329,ARBORETUM NURSING HOME.,Third Party Payments,Private Contractor Fees,73019-PSE'S-PRIV CONTRACTOR FEES,"-15,000.00",Revenue,06/05/2015,Social Care & Inclusion
WC56-0330,ARBORETUM NURSING HOME.,Third Party Payments,Private Contractor Fees,73019-PSE'S-PRIV CONTRACTOR FEES,"-15,000.00",Revenue,06/05/2015,Social Care & Inclusion
WC56-0331,ARBORETUM NURSING HOME.,Third Party Payments,Private Contractor Fees,73019-PSE'S-PRIV CONTRACTOR FEES,"-13,928.55",Revenue,06/05/2015,Social Care & Inclusion
WC56-0332,ARBORETUM NURSING HOME.,Third Party Payments,Private Contractor Fees,73373-RESIDENTIAL & NURSING CARE PLACEMENTS,"-2,071.24",Revenue,27/05/2015,Social Care & Inclusion
WC56-0333,ARBORETUM NURSING HOME.,Third Party Payments,Private Contractor Fees,73373-RESIDENTIAL & NURSING CARE PLACEMENTS,"1,937.56",Revenue,05/05/2015,Social Care & Inclusion
WC56-0334,ARBORETUM NURSING HOME.,Third Party Payments,Private Contractor Fees,73373-RESIDENTIAL & NURSING CARE PLACEMENTS,"1,937.56",Revenue,13/05/2015,Social Care & Inclusion
WC56-0335,ARBORETUM NURSING HOME.,Third Party Payments,Private Contractor Fees,73373-RESIDENTIAL & NURSING CARE PLACEMENTS,"1,937.56",Revenue,13/05/2015,Social Care & Inclusion
WC56-0336,ARBORETUM NURSING HOME.,Third Party Payments,Private Contractor Fees,73373-RESIDENTIAL & NURSING CARE PLACEMENTS,"1,937.56",Revenue,13/05/2015,Social Care & Inclusion
WC56-0337,ARBORETUM NURSING HOME.,Third Party Payments,Private Contractor Fees,73373-RESIDENTIAL & NURSING CARE PLACEMENTS,"1,937.56",Revenue,13/05/2015,Social Care & Inclusion
WC56-0338,ARBORETUM NURSING HOME.,Third Party Payments,Private Contractor Fees,73373-RESIDENTIAL & NURSING CARE PLACEMENTS,"1,978.20",Revenue,27/05/2015,Social Care & Inclusion
WC56-0339,ARBORETUM NURSING HOME.,Third Party Payments,Private Contractor Fees,73373-RESIDENTIAL & NURSING CARE PLACEMENTS,"1,990.76",Revenue,13/05/2015,Social Care & Inclusion
WC56-0340,ARBORETUM NURSING HOME.,Third Party Payments,Private Contractor Fees,73373-RESIDENTIAL & NURSING CARE PLACEMENTS,"1,990.76",Revenue,13/05/2015,Social Care & Inclusion
WC56-0341,ARBORETUM NURSING HOME.,Third Party Payments,Private Contractor Fees,73373-RESIDENTIAL & NURSING CARE PLACEMENTS,"2,006.76",Revenue,05/05/2015,Social Care & Inclusion
WC56-0342,ARBORETUM NURSING HOME.,Third Party Payments,Private Contractor Fees,73373-RESIDENTIAL & NURSING CARE PLACEMENTS,"2,075.96",Revenue,05/05/2015,Social Care & Inclusion
WC56-0343,ARBORETUM NURSING HOME.,Third Party Payments,Private Contractor Fees,73373-RESIDENTIAL & NURSING CARE PLACEMENTS,"2,075.96",Revenue,05/05/2015,Social Care & Inclusion
WC56-0344,ARBORETUM NURSING HOME.,Third Party Payments,Private Contractor Fees,73373-RESIDENTIAL & NURSING CARE PLACEMENTS,"2,119.49",Revenue,05/05/2015,Social Care & Inclusion
WC56-0345,ARBORETUM NURSING HOME.,Third Party Payments,Private Contractor Fees,73373-RESIDENTIAL & NURSING CARE PLACEMENTS,"2,145.15",Revenue,13/05/2015,Social Care & Inclusion
WC56-0346,ARBORETUM NURSING HOME.,Third Party Payments,Private Contractor Fees,73373-RESIDENTIAL & NURSING CARE PLACEMENTS,"2,488.45",Revenue,13/05/2015,Social Care & Inclusion
WC56-0347,ARBORETUM NURSING HOME.,Third Party Payments,Private Contractor Fees,73373-RESIDENTIAL & NURSING CARE PLACEMENTS,"11,002.58",Revenue,05/05/2015,Social Care & Inclusion
WC56-0348,ARBORETUM NURSING HOME.,Third Party Payments,Private Contractor Fees,73019-PSE'S-PRIV CONTRACTOR FEES,"15,000.00",Revenue,13/05/2015,Social Care & Inclusion
WC56-0349,ARBORETUM NURSING HOME.,Third Party Payments,Private Contractor Fees,73019-PSE'S-PRIV CONTRACTOR FEES,"15,000.00",Revenue,19/05/2015,Social Care & Inclusion
WC56-0350,ARCHWAY TCS LTD,Third Party Payments,Private Contractor Fees,73025-PROFESSIONAL SERVICES-PRIV CONTRACTOR & OTHER AGENCIES,707.50,Revenue,26/05/2015,Neighbourhood Services
WC56-0351,ARGUS FIRE PROTECTION LIMITED,Premises,Premises-Repairs & Maintenance,"40000-REPAIRS,ALTERATIONS & MAINTENANCE-PREM",477.50,Revenue,11/05/2015,Regeneration
WC56-0352,ARTHUR J GALLAGHER INTERNATIONAL,Supplies & Services,Other Supplies & Services,89013-ALL RISKS PREMIUM INSURANCE POLICY,"18,299.62",Revenue,19/05/2015,Holding Accounts
WC56-0353,ASCO EDUCATIONAL SUPPLIES LTD,Supplies & Services,"Equip,Furniture & Materials",60000-FURNITURE & EQUIPMENT,576.00,Revenue,13/05/2015,Childrens
WC56-0354,ASCO EDUCATIONAL SUPPLIES LTD,Supplies & Services,"Equip,Furniture & Materials",60000-FURNITURE & EQUIPMENT,"1,564.40",Revenue,13/05/2015,Childrens
WC56-0355,ASH GRANGE CARE HOME,Third Party Payments,Private Contractor Fees,73373-RESIDENTIAL & NURSING CARE PLACEMENTS,368.11,Revenue,20/05/2015,Social Care & Inclusion
WC56-0356,ASH GRANGE CARE HOME,Third Party Payments,Private Contractor Fees,73373-RESIDENTIAL & NURSING CARE PLACEMENTS,368.11,Revenue,20/05/2015,Social Care & Inclusion
WC56-0357,ASH GRANGE CARE HOME,Third Party Payments,Private Contractor Fees,73373-RESIDENTIAL & NURSING CARE PLACEMENTS,420.70,Revenue,20/05/2015,Social Care & Inclusion
WC56-0358,ASH GRANGE CARE HOME,Third Party Payments,Private Contractor Fees,73373-RESIDENTIAL & NURSING CARE PLACEMENTS,487.47,Revenue,13/05/2015,Social Care & Inclusion
WC56-0359,ASH GRANGE CARE HOME,Third Party Payments,Private Contractor Fees,73373-RESIDENTIAL & NURSING CARE PLACEMENTS,487.47,Revenue,20/05/2015,Social Care & Inclusion
WC56-0360,ASH GRANGE CARE HOME,Third Party Payments,Private Contractor Fees,73373-RESIDENTIAL & NURSING CARE PLACEMENTS,487.47,Revenue,20/05/2015,Social Care & Inclusion
WC56-0361,ASH GRANGE CARE HOME,Third Party Payments,Private Contractor Fees,73373-RESIDENTIAL & NURSING CARE PLACEMENTS,487.47,Revenue,20/05/2015,Social Care & Inclusion
WC56-0362,ASH GRANGE CARE HOME,Third Party Payments,Private Contractor Fees,73373-RESIDENTIAL & NURSING CARE PLACEMENTS,487.47,Revenue,20/05/2015,Social Care & Inclusion
WC56-0363,ASH GRANGE CARE HOME,Third Party Payments,Private Contractor Fees,73373-RESIDENTIAL & NURSING CARE PLACEMENTS,487.47,Revenue,20/05/2015,Social Care & Inclusion
WC56-0364,ASH GRANGE CARE HOME,Third Party Payments,Private Contractor Fees,73373-RESIDENTIAL & NURSING CARE PLACEMENTS,487.47,Revenue,20/05/2015,Social Care & Inclusion
WC56-0365,ASH GRANGE CARE HOME,Third Party Payments,Private Contractor Fees,73373-RESIDENTIAL & NURSING CARE PLACEMENTS,487.47,Revenue,20/05/2015,Social Care & Inclusion
WC56-0366,ASH GRANGE CARE HOME,Third Party Payments,Private Contractor Fees,73373-RESIDENTIAL & NURSING CARE PLACEMENTS,506.40,Revenue,20/05/2015,Social Care & Inclusion
WC56-0367,ASH GRANGE CARE HOME,Third Party Payments,Private Contractor Fees,73373-RESIDENTIAL & NURSING CARE PLACEMENTS,521.00,Revenue,20/05/2015,Social Care & Inclusion
WC56-0368,ASH GRANGE CARE HOME,Third Party Payments,Private Contractor Fees,73373-RESIDENTIAL & NURSING CARE PLACEMENTS,625.89,Revenue,27/05/2015,Social Care & Inclusion
WC56-0369,ASH GRANGE CARE HOME,Third Party Payments,Private Contractor Fees,73373-RESIDENTIAL & NURSING CARE PLACEMENTS,721.09,Revenue,20/05/2015,Social Care & Inclusion
WC56-0370,ASH GRANGE CARE HOME,Third Party Payments,Private Contractor Fees,73373-RESIDENTIAL & NURSING CARE PLACEMENTS,"1,104.33",Revenue,20/05/2015,Social Care & Inclusion
WC56-0371,ASH GRANGE CARE HOME,Third Party Payments,Private Contractor Fees,73373-RESIDENTIAL & NURSING CARE PLACEMENTS,"1,104.33",Revenue,20/05/2015,Social Care & Inclusion
WC56-0372,ASH GRANGE CARE HOME,Third Party Payments,Private Contractor Fees,73373-RESIDENTIAL & NURSING CARE PLACEMENTS,"1,104.33",Revenue,20/05/2015,Social Care & Inclusion
WC56-0373,ASH GRANGE CARE HOME,Third Party Payments,Private Contractor Fees,73373-RESIDENTIAL & NURSING CARE PLACEMENTS,"1,462.14",Revenue,20/05/2015,Social Care & Inclusion
WC56-0374,ASH GRANGE CARE HOME,Third Party Payments,Private Contractor Fees,73373-RESIDENTIAL & NURSING CARE PLACEMENTS,"1,462.41",Revenue,13/05/2015,Social Care & Inclusion
WC56-0375,ASH GRANGE CARE HOME,Third Party Payments,Private Contractor Fees,73373-RESIDENTIAL & NURSING CARE PLACEMENTS,"1,462.41",Revenue,20/05/2015,Social Care & Inclusion
WC56-0376,ASH GRANGE CARE HOME,Third Party Payments,Private Contractor Fees,73373-RESIDENTIAL & NURSING CARE PLACEMENTS,"1,462.41",Revenue,20/05/2015,Social Care & Inclusion
WC56-0377,ASH GRANGE CARE HOME,Third Party Payments,Private Contractor Fees,73373-RESIDENTIAL & NURSING CARE PLACEMENTS,"1,462.41",Revenue,20/05/2015,Social Care & Inclusion
WC56-0378,ASH GRANGE CARE HOME,Third Party Payments,Private Contractor Fees,73373-RESIDENTIAL & NURSING CARE PLACEMENTS,"1,462.41",Revenue,20/05/2015,Social Care & Inclusion
WC56-0379,ASH GRANGE CARE HOME,Third Party Payments,Private Contractor Fees,73373-RESIDENTIAL & NURSING CARE PLACEMENTS,"1,462.41",Revenue,20/05/2015,Social Care & Inclusion
WC56-0380,ASH GRANGE CARE HOME,Third Party Payments,Private Contractor Fees,73373-RESIDENTIAL & NURSING CARE PLACEMENTS,"1,462.41",Revenue,20/05/2015,Social Care & Inclusion
WC56-0381,ASH GRANGE CARE HOME,Third Party Payments,Private Contractor Fees,73373-RESIDENTIAL & NURSING CARE PLACEMENTS,"1,472.44",Revenue,05/05/2015,Social Care & Inclusion
WC56-0382,ASH GRANGE CARE HOME,Third Party Payments,Private Contractor Fees,73373-RESIDENTIAL & NURSING CARE PLACEMENTS,"1,472.44",Revenue,05/05/2015,Social Care & Inclusion
WC56-0383,ASH GRANGE CARE HOME,Third Party Payments,Private Contractor Fees,73373-RESIDENTIAL & NURSING CARE PLACEMENTS,"1,472.44",Revenue,05/05/2015,Social Care & Inclusion
WC56-0384,ASH GRANGE CARE HOME,Third Party Payments,Private Contractor Fees,73373-RESIDENTIAL & NURSING CARE PLACEMENTS,"1,472.44",Revenue,27/05/2015,Social Care & Inclusion
WC56-0385,ASH GRANGE CARE HOME,Third Party Payments,Private Contractor Fees,73373-RESIDENTIAL & NURSING CARE PLACEMENTS,"1,472.44",Revenue,27/05/2015,Social Care & Inclusion
WC56-0386,ASH GRANGE CARE HOME,Third Party Payments,Private Contractor Fees,73373-RESIDENTIAL & NURSING CARE PLACEMENTS,"1,472.44",Revenue,27/05/2015,Social Care & Inclusion
WC56-0387,ASH GRANGE CARE HOME,Third Party Payments,Private Contractor Fees,73373-RESIDENTIAL & NURSING CARE PLACEMENTS,"1,519.20",Revenue,20/05/2015,Social Care & Inclusion
WC56-0388,ASH GRANGE CARE HOME,Third Party Payments,Private Contractor Fees,73373-RESIDENTIAL & NURSING CARE PLACEMENTS,"1,563.00",Revenue,20/05/2015,Social Care & Inclusion
WC56-0389,ASH GRANGE CARE HOME,Third Party Payments,Private Contractor Fees,73373-RESIDENTIAL & NURSING CARE PLACEMENTS,"1,937.60",Revenue,05/05/2015,Social Care & Inclusion
WC56-0390,ASH GRANGE CARE HOME,Third Party Payments,Private Contractor Fees,73373-RESIDENTIAL & NURSING CARE PLACEMENTS,"1,949.88",Revenue,05/05/2015,Social Care & Inclusion
WC56-0391,ASH GRANGE CARE HOME,Third Party Payments,Private Contractor Fees,73373-RESIDENTIAL & NURSING CARE PLACEMENTS,"1,949.88",Revenue,05/05/2015,Social Care & Inclusion
WC56-0392,ASH GRANGE CARE HOME,Third Party Payments,Private Contractor Fees,73373-RESIDENTIAL & NURSING CARE PLACEMENTS,"1,949.88",Revenue,05/05/2015,Social Care & Inclusion
WC56-0393,ASH GRANGE CARE HOME,Third Party Payments,Private Contractor Fees,73373-RESIDENTIAL & NURSING CARE PLACEMENTS,"1,949.88",Revenue,05/05/2015,Social Care & Inclusion
WC56-0394,ASH GRANGE CARE HOME,Third Party Payments,Private Contractor Fees,73373-RESIDENTIAL & NURSING CARE PLACEMENTS,"1,949.88",Revenue,05/05/2015,Social Care & Inclusion
WC56-0395,ASH GRANGE CARE HOME,Third Party Payments,Private Contractor Fees,73373-RESIDENTIAL & NURSING CARE PLACEMENTS,"1,949.88",Revenue,05/05/2015,Social Care & Inclusion
WC56-0396,ASH GRANGE CARE HOME,Third Party Payments,Private Contractor Fees,73373-RESIDENTIAL & NURSING CARE PLACEMENTS,"1,949.88",Revenue,27/05/2015,Social Care & Inclusion
WC56-0397,ASH GRANGE CARE HOME,Third Party Payments,Private Contractor Fees,73373-RESIDENTIAL & NURSING CARE PLACEMENTS,"1,949.88",Revenue,27/05/2015,Social Care & Inclusion
WC56-0398,ASH GRANGE CARE HOME,Third Party Payments,Private Contractor Fees,73373-RESIDENTIAL & NURSING CARE PLACEMENTS,"1,949.88",Revenue,27/05/2015,Social Care & Inclusion
WC56-0399,ASH GRANGE CARE HOME,Third Party Payments,Private Contractor Fees,73373-RESIDENTIAL & NURSING CARE PLACEMENTS,"1,949.88",Revenue,27/05/2015,Social Care & Inclusion
WC56-0400,ASH GRANGE CARE HOME,Third Party Payments,Private Contractor Fees,73373-RESIDENTIAL & NURSING CARE PLACEMENTS,"1,954.32",Revenue,27/05/2015,Social Care & Inclusion
WC56-0401,ASH GRANGE CARE HOME,Third Party Payments,Private Contractor Fees,73373-RESIDENTIAL & NURSING CARE PLACEMENTS,"1,954.32",Revenue,27/05/2015,Social Care & Inclusion
WC56-0402,ASH GRANGE CARE HOME,Third Party Payments,Private Contractor Fees,73373-RESIDENTIAL & NURSING CARE PLACEMENTS,"2,025.60",Revenue,27/05/2015,Social Care & Inclusion
WC56-0403,ASH GRANGE CARE HOME,Third Party Payments,Private Contractor Fees,73373-RESIDENTIAL & NURSING CARE PLACEMENTS,"2,089.16",Revenue,13/05/2015,Social Care & Inclusion
WC56-0404,ASH GRANGE CARE HOME,Third Party Payments,Private Contractor Fees,73373-RESIDENTIAL & NURSING CARE PLACEMENTS,"2,158.79",Revenue,20/05/2015,Social Care & Inclusion
WC56-0405,ASH GRANGE CARE HOME,Third Party Payments,Private Contractor Fees,73373-RESIDENTIAL & NURSING CARE PLACEMENTS,"2,163.27",Revenue,20/05/2015,Social Care & Inclusion
WC56-0406,ASH GRANGE CARE HOME,Third Party Payments,Private Contractor Fees,73373-RESIDENTIAL & NURSING CARE PLACEMENTS,"2,884.36",Revenue,05/05/2015,Social Care & Inclusion
WC56-0407,ASH GRANGE CARE HOME,Third Party Payments,Private Contractor Fees,73373-RESIDENTIAL & NURSING CARE PLACEMENTS,"2,884.36",Revenue,27/05/2015,Social Care & Inclusion
WC56-0408,ASH GRANGE CARE HOME,Third Party Payments,Private Contractor Fees,73019-PSE'S-PRIV CONTRACTOR FEES,"14,700.00",Revenue,15/05/2015,Social Care & Inclusion
WC56-0409,ASHBOURNE LODGE,Third Party Payments,Private Contractor Fees,73373-RESIDENTIAL & NURSING CARE PLACEMENTS,"2,126.16",Revenue,13/05/2015,Social Care & Inclusion
WC56-0410,ASKEWS AND HOLTS LIBRARY SERVICES LTD,Supplies & Services,"Equip,Furniture & Materials",60501-LIBRARY BOOKS,254.35,Revenue,11/05/2015,Neighbourhood Services
WC56-0411,ASKEWS AND HOLTS LIBRARY SERVICES LTD,Supplies & Services,"Equip,Furniture & Materials",60501-LIBRARY BOOKS,254.91,Revenue,06/05/2015,Neighbourhood Services
WC56-0412,ASKEWS AND HOLTS LIBRARY SERVICES LTD,Supplies & Services,"Equip,Furniture & Materials",60501-LIBRARY BOOKS,260.95,Revenue,06/05/2015,Neighbourhood Services
WC56-0413,ASKEWS AND HOLTS LIBRARY SERVICES LTD,Supplies & Services,"Equip,Furniture & Materials",60501-LIBRARY BOOKS,276.79,Revenue,01/05/2015,Neighbourhood Services
WC56-0414,ASKEWS AND HOLTS LIBRARY SERVICES LTD,Supplies & Services,"Equip,Furniture & Materials",60501-LIBRARY BOOKS,278.10,Revenue,01/05/2015,Neighbourhood Services
WC56-0415,ASKEWS AND HOLTS LIBRARY SERVICES LTD,Supplies & Services,"Equip,Furniture & Materials",60501-LIBRARY BOOKS,280.23,Revenue,21/05/2015,Neighbourhood Services
WC56-0416,ASKEWS AND HOLTS LIBRARY SERVICES LTD,Supplies & Services,"Equip,Furniture & Materials",60501-LIBRARY BOOKS,292.36,Revenue,01/05/2015,Neighbourhood Services
WC56-0417,ASKEWS AND HOLTS LIBRARY SERVICES LTD,Supplies & Services,"Equip,Furniture & Materials",60501-LIBRARY BOOKS,297.08,Revenue,01/05/2015,Neighbourhood Services
WC56-0418,ASKEWS AND HOLTS LIBRARY SERVICES LTD,Supplies & Services,"Equip,Furniture & Materials",60501-LIBRARY BOOKS,305.34,Revenue,06/05/2015,Neighbourhood Services
WC56-0419,ASKEWS AND HOLTS LIBRARY SERVICES LTD,Supplies & Services,"Equip,Furniture & Materials",60501-LIBRARY BOOKS,309.54,Revenue,22/05/2015,Neighbourhood Services
WC56-0420,ASKEWS AND HOLTS LIBRARY SERVICES LTD,Supplies & Services,"Equip,Furniture & Materials",60501-LIBRARY BOOKS,315.31,Revenue,06/05/2015,Neighbourhood Services
WC56-0421,ASKEWS AND HOLTS LIBRARY SERVICES LTD,Supplies & Services,"Equip,Furniture & Materials",60501-LIBRARY BOOKS,482.07,Revenue,01/05/2015,Neighbourhood Services
WC56-0422,ASKEWS AND HOLTS LIBRARY SERVICES LTD,Supplies & Services,"Equip,Furniture & Materials",60501-LIBRARY BOOKS,483.11,Revenue,06/05/2015,Neighbourhood Services
WC56-0423,ASKEWS AND HOLTS LIBRARY SERVICES LTD,Supplies & Services,"Equip,Furniture & Materials",60501-LIBRARY BOOKS,500.00,Revenue,20/05/2015,Neighbourhood Services
WC56-0424,ASKEWS AND HOLTS LIBRARY SERVICES LTD,Supplies & Services,"Equip,Furniture & Materials",60501-LIBRARY BOOKS,544.40,Revenue,06/05/2015,Neighbourhood Services
WC56-0425,ASKEWS AND HOLTS LIBRARY SERVICES LTD,Supplies & Services,"Equip,Furniture & Materials",60501-LIBRARY BOOKS,595.22,Revenue,20/05/2015,Neighbourhood Services
WC56-0426,ASKEWS AND HOLTS LIBRARY SERVICES LTD,Supplies & Services,"Equip,Furniture & Materials",60501-LIBRARY BOOKS,713.58,Revenue,07/05/2015,Neighbourhood Services
WC56-0427,ASKEWS AND HOLTS LIBRARY SERVICES LTD,Supplies & Services,"Equip,Furniture & Materials",60501-LIBRARY BOOKS,757.96,Revenue,27/05/2015,Neighbourhood Services
WC56-0428,ASKEWS AND HOLTS LIBRARY SERVICES LTD,Supplies & Services,"Equip,Furniture & Materials",60501-LIBRARY BOOKS,"1,237.50",Revenue,13/05/2015,Neighbourhood Services
WC56-0429,ASKEWS AND HOLTS LIBRARY SERVICES LTD,Supplies & Services,"Equip,Furniture & Materials",60501-LIBRARY BOOKS,"1,401.16",Revenue,11/05/2015,Neighbourhood Services
WC56-0430,ASKEWS AND HOLTS LIBRARY SERVICES LTD,Supplies & Services,"Equip,Furniture & Materials",60501-LIBRARY BOOKS,"1,507.77",Revenue,19/05/2015,Neighbourhood Services
WC56-0431,ASKEWS AND HOLTS LIBRARY SERVICES LTD,Supplies & Services,"Equip,Furniture & Materials",60501-LIBRARY BOOKS,"2,790.00",Revenue,11/05/2015,Neighbourhood Services
WC56-0432,REDACTED,Transfer Payments,Transfer Payments,76422-DIRECT PAYMENTS TO SOCIAL SERVICES CLIENTS,493.00,Revenue,12/05/2015,Social Care & Inclusion
WC56-0433,ASN FIRST AID & HYGIENE LTD,Supplies & Services,"Equip,Furniture & Materials",61502-PROTECTIVE CLOTHING & UNIFORM,363.50,Revenue,06/05/2015,Social Care & Inclusion
WC56-0434,ASN FIRST AID & HYGIENE LTD,Supplies & Services,"Equip,Furniture & Materials",61502-PROTECTIVE CLOTHING & UNIFORM,394.00,Revenue,06/05/2015,Social Care & Inclusion
WC56-0435,ASONS SOLICITORS,Supplies & Services,Other Supplies & Services,67001-MISC INSURANCES - PAYMENT OF CLAIMS,"2,356.00",Revenue,20/05/2015,Holding Accounts
WC56-0436,A-STAT OFFICE TECHNOLOGY LTD,Supplies & Services,Communications & Computing,63800-COMPUTER EQUIPMENT AND SUPPLIES,304.70,Revenue,13/05/2015,Childrens
WC56-0437,A-STAT OFFICE TECHNOLOGY LTD,Supplies & Services,"Printing, Stationery & Office Exp",62000-EXTERNAL PRINTING SERVICES,324.85,Revenue,14/05/2015,Childrens
WC56-0438,ASTON CHILDRENS CARE,Third Party Payments,Private Contractor Fees,74036-EXTERNAL RESIDENTIAL CARE-OTH AGENCY PROVISION,"9,942.65",Revenue,05/05/2015,Childrens
WC56-0439,ASTON CHILDRENS CARE,Third Party Payments,Private Contractor Fees,74036-EXTERNAL RESIDENTIAL CARE-OTH AGENCY PROVISION,"10,628.35",Revenue,15/05/2015,Childrens
WC56-0440,ATKINS HIGHWAYS & TRANSPORTATION,Supplies & Services,Communications & Computing,63800-COMPUTER EQUIPMENT AND SUPPLIES,"2,349.00",Revenue,07/05/2015,Regeneration
WC56-0441,AURORA GRAPHICS & DISPLAYS LTD,Supplies & Services,"Printing, Stationery & Office Exp",62008-OUTWORK-PRINT ROOM,230.86,Revenue,07/05/2015,Resources
WC56-0442,AURORA GRAPHICS & DISPLAYS LTD,Supplies & Services,"Printing, Stationery & Office Exp",62008-OUTWORK-PRINT ROOM,"3,226.74",Revenue,07/05/2015,Resources
WC56-0443,AUTO EXTRACT SYSTEMS LTD,Third Party Payments,Private Contractor Fees,73025-PROFESSIONAL SERVICES-PRIV CONTRACTOR & OTHER AGENCIES,580.00,Revenue,26/05/2015,Neighbourhood Services
WC56-0444,AVANTGARDE PHARMA LTD T/A AL-SHAFA PHARMACY,Supplies & Services,Services,63000-PROFESSIONAL FEES AND SERVICES,85.00,Revenue,06/05/2015,Neighbourhood Services
WC56-0445,AVANTGARDE PHARMA LTD T/A AL-SHAFA PHARMACY,Third Party Payments,Joint Arrangements,71007-CONTRIBUTION TO PCT,725.66,Revenue,06/05/2015,Neighbourhood Services
WC56-0446,REDACTED,Transfer Payments,Transfer Payments,76422-DIRECT PAYMENTS TO SOCIAL SERVICES CLIENTS,"2,652.00",Revenue,12/05/2015,Social Care & Inclusion
WC56-0447,B & G CLEANING SYSTEMS,Third Party Payments,Private Contractor Fees,73025-PROFESSIONAL SERVICES-PRIV CONTRACTOR & OTHER AGENCIES,428.90,Revenue,11/05/2015,Neighbourhood Services
WC56-0448,B & S REFRIGERATION,Premises,Premises-Repairs & Maintenance,63233-ELECTRIC WORK GENERAL-PAYMENT TO CONTRACTOR,750.00,Revenue,11/05/2015,Regeneration
WC56-0449,B & T REWINDS LTD,Premises,Premises-Repairs & Maintenance,"40000-REPAIRS,ALTERATIONS & MAINTENANCE-PREM",480.00,Revenue,12/05/2015,Regeneration
WC56-0450,REDACTED,Supplies & Services,"Equip,Furniture & Materials",60500-GENERAL MATERIALS,"1,000.00",Revenue,01/05/2015,Childrens
WC56-0451,REDACTED,Third Party Payments,Private Contractor Fees,74006-HOLIDAY/CHRISTMAS ALLOWANCE-FOSTER CARERS-OTH AGENCY PROVISION,991.42,Revenue,25/05/2015,Childrens
WC56-0452,REDACTED,Supplies & Services,Other Supplies & Services,62515-MISCELLANEOUS SUPPLIES,"1,194.36",Revenue,25/05/2015,Childrens
WC56-0453,REDACTED,Supplies & Services,Other Supplies & Services,62515-MISCELLANEOUS SUPPLIES,"1,445.32",Revenue,25/05/2015,Childrens
WC56-0454,REDACTED,Third Party Payments,Private Contractor Fees,74006-HOLIDAY/CHRISTMAS ALLOWANCE-FOSTER CARERS-OTH AGENCY PROVISION,"1,971.52",Revenue,25/05/2015,Childrens
WC56-0455,BAAF,Employees,Training,30000-INTERNAL TRAINING,750.00,Revenue,27/05/2015,Childrens
WC56-0456,BAAF,Supplies & Services,Subscriptions,64500-PUBLICATIONS/ORGANISATIONS-SUBSCRIPTIONS,864.80,Revenue,05/05/2015,Childrens
WC56-0457,BAAF,Supplies & Services,Communications & Computing,68001-PUBLICITY & ADVERTISING (NOT STAFF ADVERTISING),"1,071.45",Revenue,05/05/2015,Childrens
WC56-0458,BABCOCK 4S LTD,Employees,Training,30030-EXTERNAL TRAINING,325.00,Revenue,22/05/2015,Resources
WC56-0459,REDACTED,Transfer Payments,Transfer Payments,76422-DIRECT PAYMENTS TO SOCIAL SERVICES CLIENTS,863.20,Revenue,12/05/2015,Social Care & Inclusion
WC56-0460,BABY PEOPLE LTD,Supplies & Services,Communications & Computing,68001-PUBLICITY & ADVERTISING (NOT STAFF ADVERTISING),"3,662.50",Revenue,26/05/2015,Childrens
WC56-0461,BAKER HALL PARTNERSHIP,Supplies & Services,Services,63248-SURVEYS & PROF SERVICES-PAYMENT TO CONTRACTOR,"1,272.50",Revenue,06/05/2015,Regeneration
WC56-0462,BAKER HALL PARTNERSHIP,Supplies & Services,Services,63248-SURVEYS & PROF SERVICES-PAYMENT TO CONTRACTOR,"1,520.25",Revenue,05/05/2015,Regeneration
WC56-0463,REDACTED,Transfer Payments,Transfer Payments,76422-DIRECT PAYMENTS TO SOCIAL SERVICES CLIENTS,"2,849.92",Revenue,12/05/2015,Social Care & Inclusion
WC56-0464,REDACTED,Transfer Payments,Transfer Payments,76422-DIRECT PAYMENTS TO SOCIAL SERVICES CLIENTS,620.00,Revenue,12/05/2015,Social Care & Inclusion
WC56-0465,REDACTED,Transfer Payments,Transfer Payments,76422-DIRECT PAYMENTS TO SOCIAL SERVICES CLIENTS,"1,288.00",Revenue,12/05/2015,Social Care & Inclusion
WC56-0466,REDACTED,Transfer Payments,Transfer Payments,76422-DIRECT PAYMENTS TO SOCIAL SERVICES CLIENTS,"1,314.88",Revenue,12/05/2015,Social Care & Inclusion
WC56-0467,REDACTED,Transfer Payments,Transfer Payments,76422-DIRECT PAYMENTS TO SOCIAL SERVICES CLIENTS,"1,280.00",Revenue,12/05/2015,Social Care & Inclusion
WC56-0468,REDACTED,Transfer Payments,Transfer Payments,76422-DIRECT PAYMENTS TO SOCIAL SERVICES CLIENTS,632.52,Revenue,12/05/2015,Social Care & Inclusion
WC56-0469,BARNARDOS SERVICES LTD,Third Party Payments,Private Contractor Fees,74037-INDEPENDENT FOSTER CARE-OTH AGENCY PROVISION,"4,627.86",Revenue,20/05/2015,Childrens
WC56-0470,BARONS COURT HOTEL,Employees,Other Staff Costs,34329-HOTEL ACCOMMODATION-EMPLOYEES,393.75,Revenue,05/05/2015,Childrens
WC56-0471,BARONS COURT HOTEL,Transfer Payments,Transfer Payments,76010-ACCOMMODATION AND RELATED COSTS-ASSISTANCE TO S/S CLIENTS,"2,389.58",Revenue,19/05/2015,Childrens
WC56-0472,BARRINGTON POWELL,Employees,Other Staff Costs,32000-MISC FEES AND EXPENSES,350.00,Revenue,06/05/2015,Neighbourhood Services
WC56-0473,BC MUSIC,Supplies & Services,Services,63000-PROFESSIONAL FEES AND SERVICES,290.00,Revenue,15/05/2015,Neighbourhood Services
WC56-0474,BEADEN POWERLEC LIMITED,Supplies & Services,"Equip,Furniture & Materials",60008-MAINTENANCE-FURNITURE & EQUIPMENT,"3,310.00",Revenue,26/05/2015,Resources
WC56-0475,REDACTED,Supplies & Services,Other Supplies & Services,62515-MISCELLANEOUS SUPPLIES,925.00,Revenue,25/05/2015,Childrens
WC56-0476,BEARWOOD NURSING HOME LTD,Third Party Payments,Private Contractor Fees,73373-RESIDENTIAL & NURSING CARE PLACEMENTS,"1,494.00",Revenue,20/05/2015,Social Care & Inclusion
WC56-0477,BEARWOOD NURSING HOME LTD,Third Party Payments,Private Contractor Fees,73373-RESIDENTIAL & NURSING CARE PLACEMENTS,"1,494.00",Revenue,27/05/2015,Social Care & Inclusion
WC56-0478,REDACTED,Transfer Payments,Transfer Payments,76422-DIRECT PAYMENTS TO SOCIAL SERVICES CLIENTS,641.76,Revenue,12/05/2015,Social Care & Inclusion
WC56-0479,REDACTED,Supplies & Services,Other Supplies & Services,62515-MISCELLANEOUS SUPPLIES,568.99,Revenue,25/05/2015,Childrens
WC56-0480,BELLEVUE COURT CARE HOME,Third Party Payments,Private Contractor Fees,73373-RESIDENTIAL & NURSING CARE PLACEMENTS,"1,486.96",Revenue,05/05/2015,Social Care & Inclusion
WC56-0481,BELLEVUE COURT CARE HOME,Third Party Payments,Private Contractor Fees,73373-RESIDENTIAL & NURSING CARE PLACEMENTS,"1,494.00",Revenue,05/05/2015,Social Care & Inclusion
WC56-0482,BELLEVUE COURT CARE HOME,Third Party Payments,Private Contractor Fees,73373-RESIDENTIAL & NURSING CARE PLACEMENTS,"1,530.16",Revenue,05/05/2015,Social Care & Inclusion
WC56-0483,BELLEVUE COURT CARE HOME,Third Party Payments,Private Contractor Fees,73373-RESIDENTIAL & NURSING CARE PLACEMENTS,"1,542.80",Revenue,27/05/2015,Social Care & Inclusion
WC56-0484,REDACTED,Transfer Payments,Transfer Payments,76422-DIRECT PAYMENTS TO SOCIAL SERVICES CLIENTS,"2,205.00",Revenue,12/05/2015,Social Care & Inclusion
WC56-0485,BENTLEY COURT PRIORY,Third Party Payments,Private Contractor Fees,73373-RESIDENTIAL & NURSING CARE PLACEMENTS,"2,071.24",Revenue,13/05/2015,Social Care & Inclusion
WC56-0486,REDACTED,Transfer Payments,Transfer Payments,76422-DIRECT PAYMENTS TO SOCIAL SERVICES CLIENTS,424.56,Revenue,12/05/2015,Social Care & Inclusion
WC56-0487,REDACTED,Transfer Payments,Transfer Payments,76422-DIRECT PAYMENTS TO SOCIAL SERVICES CLIENTS,912.00,Revenue,12/05/2015,Social Care & Inclusion
WC56-0488,REDACTED,Third Party Payments,Private Contractor Fees,74006-HOLIDAY/CHRISTMAS ALLOWANCE-FOSTER CARERS-OTH AGENCY PROVISION,982.50,Revenue,25/05/2015,Childrens
WC56-0489,REDACTED,Supplies & Services,Other Supplies & Services,62515-MISCELLANEOUS SUPPLIES,"1,045.32",Revenue,25/05/2015,Childrens
WC56-0490,REDACTED,Transfer Payments,Transfer Payments,76422-DIRECT PAYMENTS TO SOCIAL SERVICES CLIENTS,968.00,Revenue,12/05/2015,Social Care & Inclusion
WC56-0491,BESCOT LODGE RESIDENTIAL CARE HOME,Third Party Payments,Private Contractor Fees,73373-RESIDENTIAL & NURSING CARE PLACEMENTS,"1,616.87",Revenue,13/05/2015,Social Care & Inclusion
WC56-0492,BESCOT LODGE RESIDENTIAL CARE HOME,Third Party Payments,Private Contractor Fees,73373-RESIDENTIAL & NURSING CARE PLACEMENTS,"1,698.49",Revenue,13/05/2015,Social Care & Inclusion
WC56-0493,BESCOT LODGE RESIDENTIAL CARE HOME,Third Party Payments,Private Contractor Fees,73373-RESIDENTIAL & NURSING CARE PLACEMENTS,"1,698.49",Revenue,13/05/2015,Social Care & Inclusion
WC56-0494,BESCOT LODGE RESIDENTIAL CARE HOME,Third Party Payments,Private Contractor Fees,73373-RESIDENTIAL & NURSING CARE PLACEMENTS,"1,698.49",Revenue,13/05/2015,Social Care & Inclusion
WC56-0495,BESCOT LODGE RESIDENTIAL CARE HOME,Third Party Payments,Private Contractor Fees,73373-RESIDENTIAL & NURSING CARE PLACEMENTS,"1,698.49",Revenue,13/05/2015,Social Care & Inclusion
WC56-0496,BESCOT LODGE RESIDENTIAL CARE HOME,Third Party Payments,Private Contractor Fees,73373-RESIDENTIAL & NURSING CARE PLACEMENTS,"1,698.49",Revenue,13/05/2015,Social Care & Inclusion
WC56-0497,BESCOT LODGE RESIDENTIAL CARE HOME,Third Party Payments,Private Contractor Fees,73373-RESIDENTIAL & NURSING CARE PLACEMENTS,"1,698.49",Revenue,13/05/2015,Social Care & Inclusion
WC56-0498,BESCOT LODGE RESIDENTIAL CARE HOME,Third Party Payments,Private Contractor Fees,73373-RESIDENTIAL & NURSING CARE PLACEMENTS,"1,716.65",Revenue,13/05/2015,Social Care & Inclusion
WC56-0499,BESCOT LODGE RESIDENTIAL CARE HOME,Third Party Payments,Private Contractor Fees,73373-RESIDENTIAL & NURSING CARE PLACEMENTS,"1,716.73",Revenue,13/05/2015,Social Care & Inclusion
WC56-0500,BESCOT PROMOTIONS,Third Party Payments,Private Contractor Fees,73025-PROFESSIONAL SERVICES-PRIV CONTRACTOR & OTHER AGENCIES,"3,250.00",Revenue,11/05/2015,Regeneration
WC56-0501,BETHPHAGE.,Third Party Payments,Private Contractor Fees,73374-SUPPORTED & OTHER ACCOMMODATION,812.50,Revenue,01/05/2015,Social Care & Inclusion
WC56-0502,BETHPHAGE.,Third Party Payments,Private Contractor Fees,73374-SUPPORTED & OTHER ACCOMMODATION,"1,679.11",Revenue,01/05/2015,Social Care & Inclusion
WC56-0503,BETHPHAGE.,Third Party Payments,Private Contractor Fees,73374-SUPPORTED & OTHER ACCOMMODATION,"1,768.00",Revenue,26/05/2015,Social Care & Inclusion
WC56-0504,BETHPHAGE.,Third Party Payments,Private Contractor Fees,73374-SUPPORTED & OTHER ACCOMMODATION,"2,210.00",Revenue,01/05/2015,Social Care & Inclusion
WC56-0505,BETHPHAGE.,Third Party Payments,Private Contractor Fees,73374-SUPPORTED & OTHER ACCOMMODATION,"2,243.50",Revenue,01/05/2015,Social Care & Inclusion
WC56-0506,BETHPHAGE.,Third Party Payments,Private Contractor Fees,73374-SUPPORTED & OTHER ACCOMMODATION,"4,789.90",Revenue,01/05/2015,Social Care & Inclusion
WC56-0507,REDACTED,Transfer Payments,Transfer Payments,76422-DIRECT PAYMENTS TO SOCIAL SERVICES CLIENTS,949.52,Revenue,12/05/2015,Social Care & Inclusion
WC56-0508,REDACTED,Transfer Payments,Transfer Payments,76422-DIRECT PAYMENTS TO SOCIAL SERVICES CLIENTS,"1,984.70",Revenue,12/05/2015,Social Care & Inclusion
WC56-0509,BFA SAFETY TRAINING,Employees,Training,30030-EXTERNAL TRAINING,295.00,Revenue,15/05/2015,Resources
WC56-0510,BFA SAFETY TRAINING,Employees,Training,30030-EXTERNAL TRAINING,495.00,Revenue,11/05/2015,Resources
WC56-0511,BFA SAFETY TRAINING,Employees,Training,30030-EXTERNAL TRAINING,595.00,Revenue,11/05/2015,Resources
WC56-0512,REDACTED,Transport,Hire,52000-WITH DRIVER-HIRE OF VEHICLES,274.56,Revenue,19/05/2015,Childrens
WC56-0513,BIFFA WASTE SERVICES LTD,Third Party Payments,Private Contractor Fees,73005-LANDFILL PTYS-PRIV CONTRACTOR FEES,788.24,Revenue,21/05/2015,Neighbourhood Services
WC56-0514,BIFFA WASTE SERVICES LTD,Third Party Payments,Private Contractor Fees,73005-LANDFILL PTYS-PRIV CONTRACTOR FEES,"1,270.08",Revenue,01/05/2015,Neighbourhood Services
WC56-0515,BIFFA WASTE SERVICES LTD,Third Party Payments,Private Contractor Fees,73005-LANDFILL PTYS-PRIV CONTRACTOR FEES,"1,903.27",Revenue,14/05/2015,Neighbourhood Services
WC56-0516,BIFFA WASTE SERVICES LTD,Third Party Payments,Private Contractor Fees,73005-LANDFILL PTYS-PRIV CONTRACTOR FEES,"2,015.18",Revenue,01/05/2015,Neighbourhood Services
WC56-0517,BIFFA WASTE SERVICES LTD,Third Party Payments,Private Contractor Fees,73005-LANDFILL PTYS-PRIV CONTRACTOR FEES,"2,631.46",Revenue,11/05/2015,Neighbourhood Services
WC56-0518,BIFFA WASTE SERVICES LTD,Third Party Payments,Private Contractor Fees,73039-LANDFILL TAX-PRIV CONTRACTOR FEES,"4,921.31",Revenue,21/05/2015,Neighbourhood Services
WC56-0519,BIFFA WASTE SERVICES LTD,Third Party Payments,Private Contractor Fees,73039-LANDFILL TAX-PRIV CONTRACTOR FEES,"7,929.60",Revenue,01/05/2015,Neighbourhood Services
WC56-0520,BIFFA WASTE SERVICES LTD,Third Party Payments,Private Contractor Fees,73039-LANDFILL TAX-PRIV CONTRACTOR FEES,"11,882.83",Revenue,14/05/2015,Neighbourhood Services
WC56-0521,BIFFA WASTE SERVICES LTD,Third Party Payments,Private Contractor Fees,73039-LANDFILL TAX-PRIV CONTRACTOR FEES,"12,581.65",Revenue,01/05/2015,Neighbourhood Services
WC56-0522,BIFFA WASTE SERVICES LTD,Third Party Payments,Private Contractor Fees,73039-LANDFILL TAX-PRIV CONTRACTOR FEES,"16,429.13",Revenue,11/05/2015,Neighbourhood Services
WC56-0523,REDACTED,Transfer Payments,Transfer Payments,76422-DIRECT PAYMENTS TO SOCIAL SERVICES CLIENTS,487.72,Revenue,12/05/2015,Childrens
WC56-0524,REDACTED,Transfer Payments,Transfer Payments,76422-DIRECT PAYMENTS TO SOCIAL SERVICES CLIENTS,537.20,Revenue,12/05/2015,Childrens
WC56-0525,BIRCHILLS C OF E COMMUNITY ACADEMY,Third Party Payments,Grants to Other Orgs,66505-OTHER-GRANTS TO OTHER ORGS,"8,234.59",Revenue,08/05/2015,Childrens
WC56-0526,BIRCHILLS C OF E COMMUNITY ACADEMY,Third Party Payments,Grants to Other Orgs,66505-OTHER-GRANTS TO OTHER ORGS,"8,234.59",Revenue,08/05/2015,Childrens
WC56-0527,BIRMINGHAM CITY COUNCIL,Third Party Payments,Private Contractor Fees,71000-PAYMENTS FOR SERVICES FROM OTHER LOCAL AUTHORITIES,"5,085.00",Revenue,18/05/2015,Regeneration
WC56-0528,BIRMINGHAM CITY COUNCIL,Third Party Payments,Private Contractor Fees,71000-PAYMENTS FOR SERVICES FROM OTHER LOCAL AUTHORITIES,"10,170.50",Revenue,18/05/2015,Neighbourhood Services
WC56-0529,BIRMINGHAM MUSEUMS TRUST,Supplies & Services,Other Supplies & Services,63011-CONSERVATION-SERVICES,-271.25,Revenue,01/05/2015,Neighbourhood Services
WC56-0530,BLACK COUNTRY CONSORTIUM LIMITED,Supplies & Services,Services,63000-PROFESSIONAL FEES AND SERVICES,"1,513.96",Revenue,22/05/2015,Regeneration
WC56-0531,BLACK COUNTRY CONSORTIUM LIMITED,Supplies & Services,Services,63000-PROFESSIONAL FEES AND SERVICES,"2,944.46",Revenue,19/05/2015,Regeneration
WC56-0532,BLACK COUNTRY CONSORTIUM LIMITED,Supplies & Services,Services,63000-PROFESSIONAL FEES AND SERVICES,"3,288.04",Revenue,22/05/2015,Regeneration
WC56-0533,BLACK COUNTRY CONSORTIUM LIMITED,Third Party Payments,Private Contractor Fees,73025-PROFESSIONAL SERVICES-PRIV CONTRACTOR & OTHER AGENCIES,"90,000.00",Revenue,14/05/2015,Regeneration
WC56-0534,BLAKENALL HEATH JMI SCHOOL,Transfer Payments,Transfer Payments,77300-ISB-FORMULA ALLOCATION,"88,933.93",Revenue,15/05/2015,Childrens
WC56-0535,BLOXWICH COMMUNITY PARTNERSHIP.,Third Party Payments,Private Contractor Fees,73372-DOMICILIARY CARE,280.00,Revenue,19/05/2015,Social Care & Inclusion
WC56-0536,BLOXWICH COMMUNITY PARTNERSHIP.,Supplies & Services,Other Supplies & Services,62515-MISCELLANEOUS SUPPLIES,644.48,Revenue,20/05/2015,Neighbourhood Services
WC56-0537,BLOXWICH COMMUNITY PARTNERSHIP.,Supplies & Services,Other Supplies & Services,63128-HIRE OF ROOM-SERVICES-FEES,"4,400.00",Revenue,15/05/2015,Social Care & Inclusion
WC56-0538,BLOXWICH COMMUNITY PARTNERSHIP.,Third Party Payments,Grants to Other Orgs,66500-GRANTS TO OTHER ORGS,"33,936.75",Revenue,19/05/2015,Childrens
WC56-0539,BLOXWICH RADIO TAXIS,Transport,Hire,52000-WITH DRIVER-HIRE OF VEHICLES,"1,000.00",Revenue,20/05/2015,Childrens
WC56-0540,BLOXWICH RADIO TAXIS,Transport,Hire,52000-WITH DRIVER-HIRE OF VEHICLES,"1,035.20",Revenue,20/05/2015,Childrens
WC56-0541,BLUE AND WHITE CREATIVE,Supplies & Services,Services,63000-PROFESSIONAL FEES AND SERVICES,"3,000.00",Revenue,07/05/2015,Neighbourhood Services
WC56-0542,BOC LTD,Supplies & Services,"Equip,Furniture & Materials",60500-GENERAL MATERIALS,381.45,Revenue,22/05/2015,Neighbourhood Services
WC56-0543,BOLDMERE COURT CARE HOME,Third Party Payments,Private Contractor Fees,73373-RESIDENTIAL & NURSING CARE PLACEMENTS,"3,254.79",Revenue,13/05/2015,Social Care & Inclusion
WC56-0544,BOLDMERE COURT CARE HOME,Third Party Payments,Private Contractor Fees,73373-RESIDENTIAL & NURSING CARE PLACEMENTS,"3,254.79",Revenue,13/05/2015,Social Care & Inclusion
WC56-0545,BOLINDA UK LTD,Supplies & Services,"Equip,Furniture & Materials",60501-LIBRARY BOOKS,659.80,Revenue,06/05/2015,Neighbourhood Services
WC56-0546,BONINGALE NURSERIES,Supplies & Services,"Equip,Furniture & Materials",60500-GENERAL MATERIALS,295.06,Revenue,01/05/2015,Neighbourhood Services
WC56-0547,BONINGALE NURSERIES,Supplies & Services,"Equip,Furniture & Materials",60500-GENERAL MATERIALS,"1,060.48",Revenue,07/05/2015,Neighbourhood Services
WC56-0548,BOULTON TRAVEL LIMITED,Transport,Hire,52000-WITH DRIVER-HIRE OF VEHICLES,"1,582.00",Revenue,15/05/2015,Childrens
WC56-0549,BOULTON TRAVEL LIMITED,Transport,Hire,52000-WITH DRIVER-HIRE OF VEHICLES,"1,778.00",Revenue,15/05/2015,Childrens
WC56-0550,BOURNEMOUTH CONVENTION BUREAU LTD,Employees,Training,30030-EXTERNAL TRAINING,585.00,Revenue,28/05/2015,Resources
WC56-0551,BOWDEN DERRA PARK,Third Party Payments,Private Contractor Fees,73373-RESIDENTIAL & NURSING CARE PLACEMENTS,"10,271.64",Revenue,05/05/2015,Social Care & Inclusion
WC56-0552,BPP PROFESSIONAL EDUCATION,Employees,Training,30030-EXTERNAL TRAINING,687.48,Revenue,01/05/2015,Resources
WC56-0553,BRADLEY ENVIRONMENTAL,Third Party Payments,Private Contractor Fees,73007-SAMPLING FEES-PRIV CONTRACTOR FEES,"1,050.00",Revenue,11/05/2015,Regeneration
WC56-0554,BRADVALE LTD T/A INSPIRE HEALTHCARE SERVICES,Supplies & Services,"Equip,Furniture & Materials",60520-HEALTH & SAFETY-MATERIALS,874.14,Revenue,18/05/2015,Neighbourhood Services
WC56-0555,BRAMBLE HUB LIMITED,Supplies & Services,Communications & Computing,63820-RECHARGE FOR MAINTENANCE/APPLICATION COSTS-COMPUTER,"76,509.40",Revenue,06/05/2015,Resources
WC56-0556,BRAMBLE HUB LIMITED,Capital,Capital,01002-PROJECT FEES,"94,512.00",Capital,19/05/2015,Resources
WC56-0557,BRELMAYNE LTD,Supplies & Services,"Equip,Furniture & Materials",60008-MAINTENANCE-FURNITURE & EQUIPMENT,267.57,Revenue,06/05/2015,Social Care & Inclusion
WC56-0558,BRELMAYNE LTD,Premises,Premises-Repairs & Maintenance,"40000-REPAIRS,ALTERATIONS & MAINTENANCE-PREM",288.00,Revenue,26/05/2015,Regeneration
WC56-0559,BRELMAYNE LTD,Third Party Payments,Private Contractor Fees,73025-PROFESSIONAL SERVICES-PRIV CONTRACTOR & OTHER AGENCIES,299.12,Revenue,11/05/2015,Regeneration
WC56-0560,BRELMAYNE LTD,Third Party Payments,Private Contractor Fees,73025-PROFESSIONAL SERVICES-PRIV CONTRACTOR & OTHER AGENCIES,408.05,Revenue,14/05/2015,Regeneration
WC56-0561,BRELMAYNE LTD,Third Party Payments,Private Contractor Fees,73025-PROFESSIONAL SERVICES-PRIV CONTRACTOR & OTHER AGENCIES,452.60,Revenue,20/05/2015,Regeneration
WC56-0562,BRELMAYNE LTD,Third Party Payments,Private Contractor Fees,73025-PROFESSIONAL SERVICES-PRIV CONTRACTOR & OTHER AGENCIES,462.26,Revenue,20/05/2015,Regeneration
WC56-0563,BRELMAYNE LTD,Capital,Capital,01006-SITE WORKS MAIN CONTRACTORS,496.82,Capital,27/05/2015,Regeneration
WC56-0564,BRELMAYNE LTD,Premises,Premises-Repairs & Maintenance,"40000-REPAIRS,ALTERATIONS & MAINTENANCE-PREM",500.44,Revenue,14/05/2015,Regeneration
WC56-0565,BRELMAYNE LTD,Third Party Payments,Private Contractor Fees,73025-PROFESSIONAL SERVICES-PRIV CONTRACTOR & OTHER AGENCIES,885.80,Revenue,14/05/2015,Regeneration
WC56-0566,BRELMAYNE LTD,Third Party Payments,Private Contractor Fees,73025-PROFESSIONAL SERVICES-PRIV CONTRACTOR & OTHER AGENCIES,977.60,Revenue,14/05/2015,Regeneration
WC56-0567,BRELMAYNE LTD,Premises,Premises-Repairs & Maintenance,40607-OTHER-MECH SERV,"1,229.60",Revenue,21/05/2015,Childrens
WC56-0568,BRELMAYNE LTD,Premises,Premises-Repairs & Maintenance,"40000-REPAIRS,ALTERATIONS & MAINTENANCE-PREM","1,489.00",Revenue,22/05/2015,Regeneration
WC56-0569,BRELMAYNE LTD,Premises,Premises-Repairs & Maintenance,"40000-REPAIRS,ALTERATIONS & MAINTENANCE-PREM","1,510.74",Revenue,14/05/2015,Regeneration
WC56-0570,BRELMAYNE LTD,Premises,Premises-Repairs & Maintenance,"40000-REPAIRS,ALTERATIONS & MAINTENANCE-PREM","2,357.10",Revenue,20/05/2015,Regeneration
WC56-0571,REDACTED,Transfer Payments,Transfer Payments,76422-DIRECT PAYMENTS TO SOCIAL SERVICES CLIENTS,440.00,Revenue,12/05/2015,Social Care & Inclusion
WC56-0572,REDACTED,Third Party Payments,Private Contractor Fees,73373-RESIDENTIAL & NURSING CARE PLACEMENTS,"1,476.72",Revenue,19/05/2015,Social Care & Inclusion
WC56-0573,REDACTED,Third Party Payments,Private Contractor Fees,74006-HOLIDAY/CHRISTMAS ALLOWANCE-FOSTER CARERS-OTH AGENCY PROVISION,"1,301.84",Revenue,25/05/2015,Childrens
WC56-0574,REDACTED,Supplies & Services,Other Supplies & Services,62515-MISCELLANEOUS SUPPLIES,"1,445.32",Revenue,25/05/2015,Childrens
WC56-0575,REDACTED,Transfer Payments,Transfer Payments,76422-DIRECT PAYMENTS TO SOCIAL SERVICES CLIENTS,544.00,Revenue,12/05/2015,Social Care & Inclusion
WC56-0576,BRENNTAG UK LIMITED,Transport,Other Transport,50301-FUEL-TRANSPORT RUN COSTS,711.40,Revenue,21/05/2015,Neighbourhood Services
WC56-0577,REDACTED,Third Party Payments,Private Contractor Fees,73374-SUPPORTED & OTHER ACCOMMODATION,"2,935.24",Revenue,14/05/2015,Social Care & Inclusion
WC56-0578,REDACTED,Transfer Payments,Transfer Payments,76422-DIRECT PAYMENTS TO SOCIAL SERVICES CLIENTS,493.20,Revenue,12/05/2015,Social Care & Inclusion
WC56-0579,REDACTED,Transfer Payments,Transfer Payments,76422-DIRECT PAYMENTS TO SOCIAL SERVICES CLIENTS,"1,294.80",Revenue,12/05/2015,Social Care & Inclusion
WC56-0580,REDACTED,Transfer Payments,Transfer Payments,76422-DIRECT PAYMENTS TO SOCIAL SERVICES CLIENTS,697.00,Revenue,12/05/2015,Social Care & Inclusion
WC56-0581,REDACTED,Transfer Payments,Transfer Payments,76422-DIRECT PAYMENTS TO SOCIAL SERVICES CLIENTS,"1,039.78",Revenue,12/05/2015,Social Care & Inclusion
WC56-0582,BRISTOW & SUTOR,Supplies & Services,Services,63102-CONSULTANTS FEES - CORPORATE,370.33,Revenue,11/05/2015,Resources
WC56-0583,BRISTOW & SUTOR,Supplies & Services,Services,63102-CONSULTANTS FEES - CORPORATE,376.49,Revenue,18/05/2015,Resources
WC56-0584,BRITISH GAS BUSINESS,Premises,Utilities,42000-GAS-ENERGY COSTS,290.45,Revenue,18/05/2015,Neighbourhood Services
WC56-0585,BRITISH GAS BUSINESS,Premises,Utilities,42000-GAS-ENERGY COSTS,476.12,Revenue,14/05/2015,Childrens
WC56-0586,BRITISH GAS BUSINESS,Premises,Utilities,42000-GAS-ENERGY COSTS,"3,441.38",Revenue,18/05/2015,Regeneration
WC56-0587,BRITISH GAS BUSINESS,Premises,Utilities,42000-GAS-ENERGY COSTS,"6,863.55",Revenue,15/05/2015,Childrens
WC56-0588,BRITISH GAS BUSINESS,Premises,Utilities,42000-GAS-ENERGY COSTS,"119,326.45",Revenue,06/05/2015,Regeneration
WC56-0589,BRITISH HGV TRAINING GROUP,Employees,Training,30030-EXTERNAL TRAINING,465.00,Revenue,01/05/2015,Neighbourhood Services
WC56-0590,BRITISH SALT LTD,Supplies & Services,"Equip,Furniture & Materials",60500-GENERAL MATERIALS,516.43,Revenue,06/05/2015,Neighbourhood Services
WC56-0591,BRITISH TELECOMMUNICATIONS LTD,Supplies & Services,Communications & Computing,63601-COSTS (NOT INTERNAL RECHARGES)-TELEPHONES,"6,744.00",Revenue,01/05/2015,Neighbourhood Services
WC56-0592,BRITISH YOUTH COUNCIL,Supplies & Services,Subscriptions,64500-PUBLICATIONS/ORGANISATIONS-SUBSCRIPTIONS,400.00,Revenue,26/05/2015,Childrens
WC56-0593,BRITISH YOUTH COUNCIL,Supplies & Services,Subscriptions,64500-PUBLICATIONS/ORGANISATIONS-SUBSCRIPTIONS,545.00,Revenue,26/05/2015,Childrens
WC56-0594,BROADOAK CARE,Third Party Payments,Private Contractor Fees,73373-RESIDENTIAL & NURSING CARE PLACEMENTS,"1,458.16",Revenue,05/05/2015,Social Care & Inclusion
WC56-0595,BROADOAK CARE,Third Party Payments,Private Contractor Fees,73373-RESIDENTIAL & NURSING CARE PLACEMENTS,"1,458.16",Revenue,05/05/2015,Social Care & Inclusion
WC56-0596,BROADOAK CARE,Third Party Payments,Private Contractor Fees,73373-RESIDENTIAL & NURSING CARE PLACEMENTS,"1,458.16",Revenue,05/05/2015,Social Care & Inclusion
WC56-0597,BROADOAK CARE,Third Party Payments,Private Contractor Fees,73373-RESIDENTIAL & NURSING CARE PLACEMENTS,"1,534.08",Revenue,05/05/2015,Social Care & Inclusion
WC56-0598,BROADOAK CARE,Third Party Payments,Private Contractor Fees,73373-RESIDENTIAL & NURSING CARE PLACEMENTS,"1,534.08",Revenue,05/05/2015,Social Care & Inclusion
WC56-0599,BROADOAK CARE,Third Party Payments,Private Contractor Fees,73373-RESIDENTIAL & NURSING CARE PLACEMENTS,"1,534.08",Revenue,05/05/2015,Social Care & Inclusion
WC56-0600,BROADOAK CARE,Third Party Payments,Private Contractor Fees,73373-RESIDENTIAL & NURSING CARE PLACEMENTS,"1,534.08",Revenue,05/05/2015,Social Care & Inclusion
WC56-0601,BROADOAK CARE,Third Party Payments,Private Contractor Fees,73373-RESIDENTIAL & NURSING CARE PLACEMENTS,"1,534.08",Revenue,05/05/2015,Social Care & Inclusion
WC56-0602,BROADOAK CARE,Third Party Payments,Private Contractor Fees,73373-RESIDENTIAL & NURSING CARE PLACEMENTS,"1,534.08",Revenue,05/05/2015,Social Care & Inclusion
WC56-0603,BROADOAK CARE,Third Party Payments,Private Contractor Fees,73373-RESIDENTIAL & NURSING CARE PLACEMENTS,"1,534.08",Revenue,05/05/2015,Social Care & Inclusion
WC56-0604,BROADOAK CARE,Third Party Payments,Private Contractor Fees,73373-RESIDENTIAL & NURSING CARE PLACEMENTS,"1,534.08",Revenue,05/05/2015,Social Care & Inclusion
WC56-0605,BROADOAK CARE,Third Party Payments,Private Contractor Fees,73373-RESIDENTIAL & NURSING CARE PLACEMENTS,"1,534.08",Revenue,05/05/2015,Social Care & Inclusion
WC56-0606,BROADOAK CARE,Third Party Payments,Private Contractor Fees,73373-RESIDENTIAL & NURSING CARE PLACEMENTS,"1,534.08",Revenue,05/05/2015,Social Care & Inclusion
WC56-0607,BROADOAK CARE,Third Party Payments,Private Contractor Fees,73373-RESIDENTIAL & NURSING CARE PLACEMENTS,"1,534.08",Revenue,05/05/2015,Social Care & Inclusion
WC56-0608,BROADOAK CARE,Third Party Payments,Private Contractor Fees,73373-RESIDENTIAL & NURSING CARE PLACEMENTS,"1,534.08",Revenue,05/05/2015,Social Care & Inclusion
WC56-0609,BROADOAK CARE,Third Party Payments,Private Contractor Fees,73373-RESIDENTIAL & NURSING CARE PLACEMENTS,"1,534.08",Revenue,05/05/2015,Social Care & Inclusion
WC56-0610,BROADOAK CARE,Third Party Payments,Private Contractor Fees,73373-RESIDENTIAL & NURSING CARE PLACEMENTS,"1,534.08",Revenue,05/05/2015,Social Care & Inclusion
WC56-0611,BROADOAK CARE,Third Party Payments,Private Contractor Fees,73373-RESIDENTIAL & NURSING CARE PLACEMENTS,"1,534.08",Revenue,05/05/2015,Social Care & Inclusion
WC56-0612,BROADOAK CARE,Third Party Payments,Private Contractor Fees,73373-RESIDENTIAL & NURSING CARE PLACEMENTS,"1,534.12",Revenue,05/05/2015,Social Care & Inclusion
WC56-0613,BROADWAY PHARMACY,Third Party Payments,Joint Arrangements,71007-CONTRIBUTION TO PCT,550.00,Revenue,27/05/2015,Neighbourhood Services
WC56-0614,BROADWAY TRAVEL CONNECTIONS,Transport,Hire,52000-WITH DRIVER-HIRE OF VEHICLES,"1,600.00",Revenue,08/05/2015,Childrens
WC56-0615,BROWNHILLS ASPHALT TARMACADAM,Premises,Premises-Repairs & Maintenance,"40000-REPAIRS,ALTERATIONS & MAINTENANCE-PREM",350.00,Revenue,27/05/2015,Regeneration
WC56-0616,BROWNHILLS ASPHALT TARMACADAM,Third Party Payments,Private Contractor Fees,73025-PROFESSIONAL SERVICES-PRIV CONTRACTOR & OTHER AGENCIES,395.00,Revenue,14/05/2015,Regeneration
WC56-0617,BROWNHILLS ASPHALT TARMACADAM,Premises,Premises-Repairs & Maintenance,"40000-REPAIRS,ALTERATIONS & MAINTENANCE-PREM",430.00,Revenue,07/05/2015,Regeneration
WC56-0618,BROWNHILLS ASPHALT TARMACADAM,Third Party Payments,Private Contractor Fees,73025-PROFESSIONAL SERVICES-PRIV CONTRACTOR & OTHER AGENCIES,500.00,Revenue,11/05/2015,Regeneration
WC56-0619,BROWNHILLS ASPHALT TARMACADAM,Premises,Premises-Repairs & Maintenance,"40000-REPAIRS,ALTERATIONS & MAINTENANCE-PREM",500.00,Revenue,14/05/2015,Regeneration
WC56-0620,BROWNHILLS ASPHALT TARMACADAM,Third Party Payments,Private Contractor Fees,73025-PROFESSIONAL SERVICES-PRIV CONTRACTOR & OTHER AGENCIES,680.00,Revenue,05/05/2015,Regeneration
WC56-0621,BROWNHILLS ASPHALT TARMACADAM,Premises,Premises-Repairs & Maintenance,"40000-REPAIRS,ALTERATIONS & MAINTENANCE-PREM",780.00,Revenue,14/05/2015,Neighbourhood Services
WC56-0622,BROWNHILLS ASPHALT TARMACADAM,Third Party Payments,Private Contractor Fees,73025-PROFESSIONAL SERVICES-PRIV CONTRACTOR & OTHER AGENCIES,800.00,Revenue,05/05/2015,Regeneration
WC56-0623,BROWNHILLS ASPHALT TARMACADAM,Third Party Payments,Private Contractor Fees,73025-PROFESSIONAL SERVICES-PRIV CONTRACTOR & OTHER AGENCIES,800.00,Revenue,08/05/2015,Regeneration
WC56-0624,BROWNHILLS ASPHALT TARMACADAM,Supplies & Services,"Equip,Furniture & Materials",60500-GENERAL MATERIALS,864.00,Revenue,18/05/2015,Neighbourhood Services
WC56-0625,BROWNHILLS ASPHALT TARMACADAM,Premises,Premises-Repairs & Maintenance,"40000-REPAIRS,ALTERATIONS & MAINTENANCE-PREM","1,350.00",Revenue,14/05/2015,Neighbourhood Services
WC56-0626,BROWNHILLS ASPHALT TARMACADAM,Premises,Premises-Repairs & Maintenance,"40000-REPAIRS,ALTERATIONS & MAINTENANCE-PREM","1,412.00",Revenue,27/05/2015,Regeneration
WC56-0627,BROWNHILLS ASPHALT TARMACADAM,Supplies & Services,"Equip,Furniture & Materials",60006-NEW-FURNITURE & EQUIPMENT,"1,440.00",Revenue,21/05/2015,Childrens
WC56-0628,BROWNHILLS ASPHALT TARMACADAM,Premises,Premises-Repairs & Maintenance,"40000-REPAIRS,ALTERATIONS & MAINTENANCE-PREM","1,500.00",Revenue,14/05/2015,Regeneration
WC56-0629,BROWNHILLS ASPHALT TARMACADAM,Capital,Capital,01005-ARCHITECTS INSTRUCTION,"2,007.00",Capital,13/05/2015,Childrens
WC56-0630,BROWNHILLS ASPHALT TARMACADAM,Supplies & Services,"Equip,Furniture & Materials",60006-NEW-FURNITURE & EQUIPMENT,"2,178.00",Revenue,12/05/2015,Neighbourhood Services
WC56-0631,BROWNHILLS ASPHALT TARMACADAM,Supplies & Services,"Equip,Furniture & Materials",60500-GENERAL MATERIALS,"2,310.00",Revenue,21/05/2015,Childrens
WC56-0632,BROWNHILLS ASPHALT TARMACADAM,Capital,Capital,01006-SITE WORKS MAIN CONTRACTORS,"2,726.00",Capital,11/05/2015,Childrens
WC56-0633,BROWNHILLS ASPHALT TARMACADAM,Capital,Capital,01006-SITE WORKS MAIN CONTRACTORS,"3,664.00",Capital,13/05/2015,Regeneration
WC56-0634,BROWNHILLS ASPHALT TARMACADAM,Third Party Payments,Private Contractor Fees,73025-PROFESSIONAL SERVICES-PRIV CONTRACTOR & OTHER AGENCIES,"3,846.00",Revenue,19/05/2015,Regeneration
WC56-0635,BROWNHILLS ASPHALT TARMACADAM,Third Party Payments,Private Contractor Fees,73025-PROFESSIONAL SERVICES-PRIV CONTRACTOR & OTHER AGENCIES,"4,433.00",Revenue,18/05/2015,Regeneration
WC56-0636,BROWNHILLS ASPHALT TARMACADAM,Premises,Premises-Repairs & Maintenance,"40000-REPAIRS,ALTERATIONS & MAINTENANCE-PREM","17,800.00",Revenue,01/05/2015,Neighbourhood Services
WC56-0637,BROWNHILLS CARS,Transport,Hire,52001-HIRE OF VEHICLES,600.00,Revenue,21/05/2015,Childrens
WC56-0638,BROXAP LTD,Premises,Premises-Repairs & Maintenance,41001-GROUNDS MAINTENANCE,483.00,Revenue,06/05/2015,Neighbourhood Services
WC56-0639,REDACTED,Transfer Payments,Transfer Payments,76422-DIRECT PAYMENTS TO SOCIAL SERVICES CLIENTS,"1,445.00",Revenue,12/05/2015,Social Care & Inclusion
WC56-0640,BRUEL & KJAER,Supplies & Services,"Equip,Furniture & Materials",60008-MAINTENANCE-FURNITURE & EQUIPMENT,917.10,Revenue,15/05/2015,Neighbourhood Services
WC56-0641,REDACTED,Premises,Premises-Repairs & Maintenance,"40000-REPAIRS,ALTERATIONS & MAINTENANCE-PREM",300.00,Revenue,20/05/2015,Regeneration
WC56-0642,REDACTED,Supplies & Services,Services,63102-CONSULTANTS FEES - CORPORATE,400.00,Revenue,05/05/2015,Neighbourhood Services
WC56-0643,REDACTED,Supplies & Services,Services,63000-PROFESSIONAL FEES AND SERVICES,"2,081.25",Revenue,11/05/2015,Neighbourhood Services
WC56-0644,B-SURE SECURITY SERVICES LTD,Supplies & Services,Communications & Computing,63800-COMPUTER EQUIPMENT AND SUPPLIES,"4,632.00",Revenue,22/05/2015,Resources
WC56-0645,BT,Supplies & Services,Communications & Computing,63603-COST OF CALLS-TELEPHONES,348.18,Revenue,21/05/2015,Childrens
WC56-0646,BT,Supplies & Services,Communications & Computing,63601-COSTS (NOT INTERNAL RECHARGES)-TELEPHONES,"1,446.23",Revenue,01/05/2015,Resources
WC56-0647,BT PLC,Supplies & Services,Communications & Computing,63603-COST OF CALLS-TELEPHONES,914.84,Revenue,13/05/2015,Resources
WC56-0648,BT PLC,Supplies & Services,Communications & Computing,63800-COMPUTER EQUIPMENT AND SUPPLIES,"1,211.16",Revenue,05/05/2015,Resources
WC56-0649,BT PLC,Supplies & Services,Communications & Computing,63807-COMMS LINKS-COMPUTER,"3,603.78",Revenue,27/05/2015,Resources
WC56-0650,BT PLC,Supplies & Services,Communications & Computing,63601-COSTS (NOT INTERNAL RECHARGES)-TELEPHONES,"9,288.95",Revenue,15/05/2015,Resources
WC56-0651,BT REDCARE,Supplies & Services,"Equip,Furniture & Materials",60008-MAINTENANCE-FURNITURE & EQUIPMENT,"62,177.00",Revenue,06/05/2015,Social Care & Inclusion
WC56-0652,BUILDING SOFTWARE LTD,Third Party Payments,Private Contractor Fees,73025-PROFESSIONAL SERVICES-PRIV CONTRACTOR & OTHER AGENCIES,"8,200.00",Revenue,20/05/2015,Neighbourhood Services
WC56-0653,BUILT ENVIRONMENT HUB LIMITED,Supplies & Services,Services,63248-SURVEYS & PROF SERVICES-PAYMENT TO CONTRACTOR,"1,050.00",Revenue,26/05/2015,Regeneration
WC56-0654,BURTON ADDICTION CENTRE,Supplies & Services,Services,63000-PROFESSIONAL FEES AND SERVICES,964.29,Revenue,22/05/2015,Neighbourhood Services
WC56-0655,BUSH HOME LTD,Third Party Payments,Private Contractor Fees,73373-RESIDENTIAL & NURSING CARE PLACEMENTS,273.95,Revenue,20/05/2015,Social Care & Inclusion
WC56-0656,BUSH HOME LTD,Third Party Payments,Private Contractor Fees,73373-RESIDENTIAL & NURSING CARE PLACEMENTS,547.90,Revenue,13/05/2015,Social Care & Inclusion
WC56-0657,BUSH HOME LTD,Third Party Payments,Private Contractor Fees,73373-RESIDENTIAL & NURSING CARE PLACEMENTS,602.69,Revenue,20/05/2015,Social Care & Inclusion
WC56-0658,BUSH HOME LTD,Third Party Payments,Private Contractor Fees,73373-RESIDENTIAL & NURSING CARE PLACEMENTS,767.06,Revenue,20/05/2015,Social Care & Inclusion
WC56-0659,BUSH HOME LTD,Third Party Payments,Private Contractor Fees,73373-RESIDENTIAL & NURSING CARE PLACEMENTS,986.22,Revenue,13/05/2015,Social Care & Inclusion
WC56-0660,BUSH HOME LTD,Third Party Payments,Private Contractor Fees,73373-RESIDENTIAL & NURSING CARE PLACEMENTS,"1,424.54",Revenue,05/05/2015,Social Care & Inclusion
WC56-0661,BUSH HOME LTD,Third Party Payments,Private Contractor Fees,73373-RESIDENTIAL & NURSING CARE PLACEMENTS,"1,424.54",Revenue,20/05/2015,Social Care & Inclusion
WC56-0662,BUSH HOME LTD,Third Party Payments,Private Contractor Fees,73373-RESIDENTIAL & NURSING CARE PLACEMENTS,"1,458.16",Revenue,05/05/2015,Social Care & Inclusion
WC56-0663,BUSH HOME LTD,Third Party Payments,Private Contractor Fees,73373-RESIDENTIAL & NURSING CARE PLACEMENTS,"1,460.40",Revenue,05/05/2015,Social Care & Inclusion
WC56-0664,BUSH HOME LTD,Third Party Payments,Private Contractor Fees,73373-RESIDENTIAL & NURSING CARE PLACEMENTS,"1,460.40",Revenue,05/05/2015,Social Care & Inclusion
WC56-0665,BUSH HOME LTD,Third Party Payments,Private Contractor Fees,73373-RESIDENTIAL & NURSING CARE PLACEMENTS,"1,460.40",Revenue,05/05/2015,Social Care & Inclusion
WC56-0666,BUSH HOME LTD,Third Party Payments,Private Contractor Fees,73373-RESIDENTIAL & NURSING CARE PLACEMENTS,"1,460.40",Revenue,13/05/2015,Social Care & Inclusion
WC56-0667,BUSH HOME LTD,Third Party Payments,Private Contractor Fees,73373-RESIDENTIAL & NURSING CARE PLACEMENTS,"1,534.12",Revenue,05/05/2015,Social Care & Inclusion
WC56-0668,BUSH HOME LTD,Third Party Payments,Private Contractor Fees,73373-RESIDENTIAL & NURSING CARE PLACEMENTS,"1,534.12",Revenue,05/05/2015,Social Care & Inclusion
WC56-0669,BUSH HOME LTD,Third Party Payments,Private Contractor Fees,73373-RESIDENTIAL & NURSING CARE PLACEMENTS,"1,534.12",Revenue,05/05/2015,Social Care & Inclusion
WC56-0670,BUSH HOME LTD,Third Party Payments,Private Contractor Fees,73373-RESIDENTIAL & NURSING CARE PLACEMENTS,"1,534.12",Revenue,05/05/2015,Social Care & Inclusion
WC56-0671,BUSH HOME LTD,Third Party Payments,Private Contractor Fees,73373-RESIDENTIAL & NURSING CARE PLACEMENTS,"1,534.12",Revenue,05/05/2015,Social Care & Inclusion
WC56-0672,BUSH HOME LTD,Third Party Payments,Private Contractor Fees,73373-RESIDENTIAL & NURSING CARE PLACEMENTS,"1,534.12",Revenue,05/05/2015,Social Care & Inclusion
WC56-0673,BUSH HOME LTD,Third Party Payments,Private Contractor Fees,73373-RESIDENTIAL & NURSING CARE PLACEMENTS,"1,534.12",Revenue,13/05/2015,Social Care & Inclusion
WC56-0674,BUSH HOME LTD,Third Party Payments,Private Contractor Fees,73373-RESIDENTIAL & NURSING CARE PLACEMENTS,"1,534.12",Revenue,27/05/2015,Social Care & Inclusion
WC56-0675,BUSH HOME LTD,Third Party Payments,Private Contractor Fees,73373-RESIDENTIAL & NURSING CARE PLACEMENTS,"1,588.91",Revenue,20/05/2015,Social Care & Inclusion
WC56-0676,BUSH HOME LTD,Third Party Payments,Private Contractor Fees,73373-RESIDENTIAL & NURSING CARE PLACEMENTS,"2,902.87",Revenue,20/05/2015,Social Care & Inclusion
WC56-0677,BY THE BRIDGE,Third Party Payments,Private Contractor Fees,74037-INDEPENDENT FOSTER CARE-OTH AGENCY PROVISION,"-3,464.29",Revenue,18/05/2015,Childrens
WC56-0678,BY THE BRIDGE,Third Party Payments,Private Contractor Fees,74037-INDEPENDENT FOSTER CARE-OTH AGENCY PROVISION,"3,880.00",Revenue,18/05/2015,Childrens
WC56-0679,BY THE BRIDGE,Third Party Payments,Private Contractor Fees,74037-INDEPENDENT FOSTER CARE-OTH AGENCY PROVISION,"4,295.71",Revenue,21/05/2015,Childrens
WC56-0680,BY THE BRIDGE,Third Party Payments,Private Contractor Fees,74037-INDEPENDENT FOSTER CARE-OTH AGENCY PROVISION,"6,651.43",Revenue,18/05/2015,Childrens
WC56-0681,C & V ORCHARD MANOR LTD,Third Party Payments,Private Contractor Fees,73373-RESIDENTIAL & NURSING CARE PLACEMENTS,781.16,Revenue,27/05/2015,Social Care & Inclusion
WC56-0682,C & V ORCHARD MANOR LTD,Third Party Payments,Private Contractor Fees,73373-RESIDENTIAL & NURSING CARE PLACEMENTS,819.76,Revenue,27/05/2015,Social Care & Inclusion
WC56-0683,C & V ORCHARD MANOR LTD,Third Party Payments,Private Contractor Fees,73373-RESIDENTIAL & NURSING CARE PLACEMENTS,"1,164.10",Revenue,27/05/2015,Social Care & Inclusion
WC56-0684,C & V ORCHARD MANOR LTD,Third Party Payments,Private Contractor Fees,73373-RESIDENTIAL & NURSING CARE PLACEMENTS,"1,388.38",Revenue,20/05/2015,Social Care & Inclusion
WC56-0685,C & V ORCHARD MANOR LTD,Third Party Payments,Private Contractor Fees,73373-RESIDENTIAL & NURSING CARE PLACEMENTS,"1,388.38",Revenue,27/05/2015,Social Care & Inclusion
WC56-0686,C & V ORCHARD MANOR LTD,Third Party Payments,Private Contractor Fees,73373-RESIDENTIAL & NURSING CARE PLACEMENTS,"1,388.39",Revenue,20/05/2015,Social Care & Inclusion
WC56-0687,C & V ORCHARD MANOR LTD,Third Party Payments,Private Contractor Fees,73373-RESIDENTIAL & NURSING CARE PLACEMENTS,"1,408.24",Revenue,20/05/2015,Social Care & Inclusion
WC56-0688,C & V ORCHARD MANOR LTD,Third Party Payments,Private Contractor Fees,73373-RESIDENTIAL & NURSING CARE PLACEMENTS,"1,408.24",Revenue,20/05/2015,Social Care & Inclusion
WC56-0689,C & V ORCHARD MANOR LTD,Third Party Payments,Private Contractor Fees,73373-RESIDENTIAL & NURSING CARE PLACEMENTS,"1,408.24",Revenue,20/05/2015,Social Care & Inclusion
WC56-0690,C & V ORCHARD MANOR LTD,Third Party Payments,Private Contractor Fees,73373-RESIDENTIAL & NURSING CARE PLACEMENTS,"1,439.80",Revenue,27/05/2015,Social Care & Inclusion
WC56-0691,C & V ORCHARD MANOR LTD,Third Party Payments,Private Contractor Fees,73373-RESIDENTIAL & NURSING CARE PLACEMENTS,"1,439.80",Revenue,27/05/2015,Social Care & Inclusion
WC56-0692,C & V ORCHARD MANOR LTD,Third Party Payments,Private Contractor Fees,73373-RESIDENTIAL & NURSING CARE PLACEMENTS,"1,460.10",Revenue,27/05/2015,Social Care & Inclusion
WC56-0693,C & V ORCHARD MANOR LTD,Third Party Payments,Private Contractor Fees,73373-RESIDENTIAL & NURSING CARE PLACEMENTS,"1,460.40",Revenue,27/05/2015,Social Care & Inclusion
WC56-0694,C & V ORCHARD MANOR LTD,Third Party Payments,Private Contractor Fees,73373-RESIDENTIAL & NURSING CARE PLACEMENTS,"1,460.40",Revenue,27/05/2015,Social Care & Inclusion
WC56-0695,C & V ORCHARD MANOR LTD,Third Party Payments,Private Contractor Fees,73373-RESIDENTIAL & NURSING CARE PLACEMENTS,"1,477.05",Revenue,20/05/2015,Social Care & Inclusion
WC56-0696,C & V ORCHARD MANOR LTD,Third Party Payments,Private Contractor Fees,73373-RESIDENTIAL & NURSING CARE PLACEMENTS,"1,477.05",Revenue,27/05/2015,Social Care & Inclusion
WC56-0697,C & V ORCHARD MANOR LTD,Third Party Payments,Private Contractor Fees,73373-RESIDENTIAL & NURSING CARE PLACEMENTS,"1,564.71",Revenue,13/05/2015,Social Care & Inclusion
WC56-0698,C & V ORCHARD MANOR LTD,Third Party Payments,Private Contractor Fees,73373-RESIDENTIAL & NURSING CARE PLACEMENTS,"4,224.73",Revenue,27/05/2015,Social Care & Inclusion
WC56-0699,C & V ORCHARD RESIDENTIAL LTD,Third Party Payments,Private Contractor Fees,73373-RESIDENTIAL & NURSING CARE PLACEMENTS,986.22,Revenue,27/05/2015,Social Care & Inclusion
WC56-0700,C & V ORCHARD RESIDENTIAL LTD,Third Party Payments,Private Contractor Fees,73373-RESIDENTIAL & NURSING CARE PLACEMENTS,"1,249.84",Revenue,20/05/2015,Social Care & Inclusion
WC56-0701,C & V ORCHARD RESIDENTIAL LTD,Third Party Payments,Private Contractor Fees,73373-RESIDENTIAL & NURSING CARE PLACEMENTS,"1,356.09",Revenue,27/05/2015,Social Care & Inclusion
WC56-0702,C & V ORCHARD RESIDENTIAL LTD,Third Party Payments,Private Contractor Fees,73373-RESIDENTIAL & NURSING CARE PLACEMENTS,"1,408.24",Revenue,20/05/2015,Social Care & Inclusion
WC56-0703,C & V ORCHARD RESIDENTIAL LTD,Third Party Payments,Private Contractor Fees,73373-RESIDENTIAL & NURSING CARE PLACEMENTS,"1,422.37",Revenue,27/05/2015,Social Care & Inclusion
WC56-0704,C & V ORCHARD RESIDENTIAL LTD,Third Party Payments,Private Contractor Fees,73373-RESIDENTIAL & NURSING CARE PLACEMENTS,"1,422.39",Revenue,20/05/2015,Social Care & Inclusion
WC56-0705,C & V ORCHARD RESIDENTIAL LTD,Third Party Payments,Private Contractor Fees,73373-RESIDENTIAL & NURSING CARE PLACEMENTS,"1,424.54",Revenue,20/05/2015,Social Care & Inclusion
WC56-0706,C & V ORCHARD RESIDENTIAL LTD,Third Party Payments,Private Contractor Fees,73373-RESIDENTIAL & NURSING CARE PLACEMENTS,"1,424.54",Revenue,20/05/2015,Social Care & Inclusion
WC56-0707,C & V ORCHARD RESIDENTIAL LTD,Third Party Payments,Private Contractor Fees,73373-RESIDENTIAL & NURSING CARE PLACEMENTS,"1,424.54",Revenue,27/05/2015,Social Care & Inclusion
WC56-0708,C & V ORCHARD RESIDENTIAL LTD,Third Party Payments,Private Contractor Fees,73373-RESIDENTIAL & NURSING CARE PLACEMENTS,"1,476.29",Revenue,27/05/2015,Social Care & Inclusion
WC56-0709,C & V ORCHARD RESIDENTIAL LTD,Third Party Payments,Private Contractor Fees,73373-RESIDENTIAL & NURSING CARE PLACEMENTS,"1,477.09",Revenue,20/05/2015,Social Care & Inclusion
WC56-0710,C & V ORCHARD RESIDENTIAL LTD,Third Party Payments,Private Contractor Fees,73373-RESIDENTIAL & NURSING CARE PLACEMENTS,"1,477.09",Revenue,27/05/2015,Social Care & Inclusion
WC56-0711,C & V ORCHARD RESIDENTIAL LTD,Third Party Payments,Private Contractor Fees,73373-RESIDENTIAL & NURSING CARE PLACEMENTS,"1,479.33",Revenue,20/05/2015,Social Care & Inclusion
WC56-0712,C & V ORCHARD RESIDENTIAL LTD,Third Party Payments,Private Contractor Fees,73373-RESIDENTIAL & NURSING CARE PLACEMENTS,"1,479.33",Revenue,20/05/2015,Social Care & Inclusion
WC56-0713,C & V ORCHARD RESIDENTIAL LTD,Third Party Payments,Private Contractor Fees,73373-RESIDENTIAL & NURSING CARE PLACEMENTS,"1,479.33",Revenue,27/05/2015,Social Care & Inclusion
WC56-0714,C & V ORCHARD RESIDENTIAL LTD,Third Party Payments,Private Contractor Fees,73373-RESIDENTIAL & NURSING CARE PLACEMENTS,"1,479.33",Revenue,27/05/2015,Social Care & Inclusion
WC56-0715,C & V ORCHARD RESIDENTIAL LTD,Third Party Payments,Private Contractor Fees,73373-RESIDENTIAL & NURSING CARE PLACEMENTS,"1,534.12",Revenue,13/05/2015,Social Care & Inclusion
WC56-0716,C & V ORCHARD RESIDENTIAL LTD,Third Party Payments,Private Contractor Fees,73373-RESIDENTIAL & NURSING CARE PLACEMENTS,"1,534.12",Revenue,27/05/2015,Social Care & Inclusion
WC56-0717,C & V ORCHARD RESIDENTIAL LTD,Third Party Payments,Private Contractor Fees,73373-RESIDENTIAL & NURSING CARE PLACEMENTS,"1,586.51",Revenue,27/05/2015,Social Care & Inclusion
WC56-0718,C & V ORCHARD RESIDENTIAL LTD,Third Party Payments,Private Contractor Fees,73373-RESIDENTIAL & NURSING CARE PLACEMENTS,"1,586.51",Revenue,27/05/2015,Social Care & Inclusion
WC56-0719,C & V ORCHARD RESIDENTIAL LTD,Third Party Payments,Private Contractor Fees,73373-RESIDENTIAL & NURSING CARE PLACEMENTS,"3,008.89",Revenue,27/05/2015,Social Care & Inclusion
WC56-0720,C & V ORCHARD RESIDENTIAL LTD,Third Party Payments,Private Contractor Fees,73373-RESIDENTIAL & NURSING CARE PLACEMENTS,"4,374.72",Revenue,27/05/2015,Social Care & Inclusion
WC56-0721,C & V ORCHARD RESIDENTIAL LTD,Third Party Payments,Private Contractor Fees,73373-RESIDENTIAL & NURSING CARE PLACEMENTS,"4,610.83",Revenue,27/05/2015,Social Care & Inclusion
WC56-0722,C ART ART TRANSPORT LTD,Third Party Payments,Private Contractor Fees,73032-TRANSPORTATION-PRIV CONTRACTOR FEES,437.50,Revenue,20/05/2015,Neighbourhood Services
WC56-0723,C ART ART TRANSPORT LTD,Third Party Payments,Private Contractor Fees,73032-TRANSPORTATION-PRIV CONTRACTOR FEES,475.00,Revenue,18/05/2015,Neighbourhood Services
WC56-0724,C ART ART TRANSPORT LTD,Third Party Payments,Private Contractor Fees,73032-TRANSPORTATION-PRIV CONTRACTOR FEES,695.00,Revenue,12/05/2015,Neighbourhood Services
WC56-0725,REDACTED,Supplies & Services,Other Supplies & Services,62515-MISCELLANEOUS SUPPLIES,"4,317.64",Revenue,25/05/2015,Childrens
WC56-0726,REDACTED,Third Party Payments,Private Contractor Fees,74006-HOLIDAY/CHRISTMAS ALLOWANCE-FOSTER CARERS-OTH AGENCY PROVISION,"4,702.52",Revenue,25/05/2015,Childrens
WC56-0727,REDACTED,Supplies & Services,Other Supplies & Services,62515-MISCELLANEOUS SUPPLIES,"1,445.32",Revenue,25/05/2015,Childrens
WC56-0728,REDACTED,Third Party Payments,Private Contractor Fees,74006-HOLIDAY/CHRISTMAS ALLOWANCE-FOSTER CARERS-OTH AGENCY PROVISION,"2,191.86",Revenue,25/05/2015,Childrens
WC56-0729,C P DAVIDSON & SONS LTD,Supplies & Services,"Equip,Furniture & Materials",60500-GENERAL MATERIALS,-400.00,Revenue,01/05/2015,Neighbourhood Services
WC56-0730,C P DAVIDSON & SONS LTD,Supplies & Services,"Equip,Furniture & Materials",60514-MATERIALS TO STORES,288.46,Revenue,01/05/2015,Neighbourhood Services
WC56-0731,C P DAVIDSON & SONS LTD,Central,Leasing,52003-OPERATING LEASES-VEHICLES,300.00,Revenue,07/05/2015,Neighbourhood Services
WC56-0732,C P DAVIDSON & SONS LTD,Central,Leasing,52003-OPERATING LEASES-VEHICLES,300.00,Revenue,07/05/2015,Neighbourhood Services
WC56-0733,C P DAVIDSON & SONS LTD,Supplies & Services,"Equip,Furniture & Materials",60500-GENERAL MATERIALS,422.90,Revenue,29/05/2015,Neighbourhood Services
WC56-0734,C P DAVIDSON & SONS LTD,Central,Leasing,52003-OPERATING LEASES-VEHICLES,450.00,Revenue,07/05/2015,Neighbourhood Services
WC56-0735,C P DAVIDSON & SONS LTD,Central,Leasing,52003-OPERATING LEASES-VEHICLES,450.00,Revenue,08/05/2015,Neighbourhood Services
WC56-0736,C P DAVIDSON & SONS LTD,Central,Leasing,52003-OPERATING LEASES-VEHICLES,"1,650.00",Revenue,22/05/2015,Neighbourhood Services
WC56-0737,C P DAVIDSON & SONS LTD,Central,Leasing,52003-OPERATING LEASES-VEHICLES,"3,300.00",Revenue,22/05/2015,Neighbourhood Services
WC56-0738,C P DAVIDSON & SONS LTD,Central,Leasing,52003-OPERATING LEASES-VEHICLES,"3,300.00",Revenue,22/05/2015,Neighbourhood Services
WC56-0739,C P DAVIDSON & SONS LTD,Central,Leasing,52003-OPERATING LEASES-VEHICLES,"3,300.00",Revenue,22/05/2015,Neighbourhood Services
WC56-0740,CALDMORE AREA HOUSING ASS LTD,Third Party Payments,Private Contractor Fees,73373-RESIDENTIAL & NURSING CARE PLACEMENTS,353.90,Revenue,27/05/2015,Social Care & Inclusion
WC56-0741,CALDMORE AREA HOUSING ASS LTD,Third Party Payments,Private Contractor Fees,73374-SUPPORTED & OTHER ACCOMMODATION,432.60,Revenue,12/05/2015,Social Care & Inclusion
WC56-0742,CALDMORE AREA HOUSING ASS LTD,Third Party Payments,Private Contractor Fees,73373-RESIDENTIAL & NURSING CARE PLACEMENTS,530.85,Revenue,27/05/2015,Social Care & Inclusion
WC56-0743,CALDMORE AREA HOUSING ASS LTD,Third Party Payments,Private Contractor Fees,73374-SUPPORTED & OTHER ACCOMMODATION,576.80,Revenue,12/05/2015,Social Care & Inclusion
WC56-0744,CALDMORE AREA HOUSING ASS LTD,Third Party Payments,Private Contractor Fees,73374-SUPPORTED & OTHER ACCOMMODATION,576.80,Revenue,12/05/2015,Social Care & Inclusion
WC56-0745,CALDMORE AREA HOUSING ASS LTD,Third Party Payments,Private Contractor Fees,73374-SUPPORTED & OTHER ACCOMMODATION,576.80,Revenue,12/05/2015,Social Care & Inclusion
WC56-0746,CALDMORE AREA HOUSING ASS LTD,Third Party Payments,Private Contractor Fees,73374-SUPPORTED & OTHER ACCOMMODATION,576.80,Revenue,12/05/2015,Social Care & Inclusion
WC56-0747,CALDMORE AREA HOUSING ASS LTD,Third Party Payments,Private Contractor Fees,73374-SUPPORTED & OTHER ACCOMMODATION,576.80,Revenue,12/05/2015,Social Care & Inclusion
WC56-0748,CALDMORE AREA HOUSING ASS LTD,Third Party Payments,Private Contractor Fees,73374-SUPPORTED & OTHER ACCOMMODATION,576.80,Revenue,12/05/2015,Social Care & Inclusion
WC56-0749,CALDMORE AREA HOUSING ASS LTD,Third Party Payments,Private Contractor Fees,73374-SUPPORTED & OTHER ACCOMMODATION,576.80,Revenue,12/05/2015,Social Care & Inclusion
WC56-0750,CALDMORE AREA HOUSING ASS LTD,Third Party Payments,Private Contractor Fees,73374-SUPPORTED & OTHER ACCOMMODATION,576.80,Revenue,12/05/2015,Social Care & Inclusion
WC56-0751,CALDMORE AREA HOUSING ASS LTD,Third Party Payments,Private Contractor Fees,73373-RESIDENTIAL & NURSING CARE PLACEMENTS,619.33,Revenue,27/05/2015,Social Care & Inclusion
WC56-0752,CALDMORE AREA HOUSING ASS LTD,Third Party Payments,Private Contractor Fees,73373-RESIDENTIAL & NURSING CARE PLACEMENTS,707.81,Revenue,27/05/2015,Social Care & Inclusion
WC56-0753,CALDMORE AREA HOUSING ASS LTD,Third Party Payments,Private Contractor Fees,73373-RESIDENTIAL & NURSING CARE PLACEMENTS,"1,769.51",Revenue,05/05/2015,Social Care & Inclusion
WC56-0754,CALDMORE AREA HOUSING ASS LTD,Third Party Payments,Private Contractor Fees,73373-RESIDENTIAL & NURSING CARE PLACEMENTS,"1,946.47",Revenue,05/05/2015,Social Care & Inclusion
WC56-0755,CALDMORE AREA HOUSING ASS LTD,Third Party Payments,Private Contractor Fees,73373-RESIDENTIAL & NURSING CARE PLACEMENTS,"2,654.27",Revenue,05/05/2015,Social Care & Inclusion
WC56-0756,CALDMORE AREA HOUSING ASS LTD,Third Party Payments,Private Contractor Fees,73373-RESIDENTIAL & NURSING CARE PLACEMENTS,"2,654.27",Revenue,05/05/2015,Social Care & Inclusion
WC56-0757,CALDMORE AREA HOUSING ASS LTD,Third Party Payments,Private Contractor Fees,73373-RESIDENTIAL & NURSING CARE PLACEMENTS,"2,654.27",Revenue,05/05/2015,Social Care & Inclusion
WC56-0758,CALDMORE AREA HOUSING ASS LTD,Third Party Payments,Private Contractor Fees,73373-RESIDENTIAL & NURSING CARE PLACEMENTS,"2,654.27",Revenue,05/05/2015,Social Care & Inclusion
WC56-0759,CALDMORE AREA HOUSING ASS LTD,Third Party Payments,Private Contractor Fees,73373-RESIDENTIAL & NURSING CARE PLACEMENTS,"2,654.27",Revenue,05/05/2015,Social Care & Inclusion
WC56-0760,CALDMORE AREA HOUSING ASS LTD,Third Party Payments,Private Contractor Fees,73373-RESIDENTIAL & NURSING CARE PLACEMENTS,"2,654.27",Revenue,05/05/2015,Social Care & Inclusion
WC56-0761,CALDMORE AREA HOUSING ASS LTD,Third Party Payments,Private Contractor Fees,73373-RESIDENTIAL & NURSING CARE PLACEMENTS,"2,654.27",Revenue,05/05/2015,Social Care & Inclusion
WC56-0762,CALDMORE AREA HOUSING ASS LTD,Third Party Payments,Private Contractor Fees,73373-RESIDENTIAL & NURSING CARE PLACEMENTS,"2,919.70",Revenue,20/05/2015,Social Care & Inclusion
WC56-0763,CALDMORE AREA HOUSING ASS LTD,Third Party Payments,Private Contractor Fees,73373-RESIDENTIAL & NURSING CARE PLACEMENTS,"2,919.70",Revenue,20/05/2015,Social Care & Inclusion
WC56-0764,CALDMORE AREA HOUSING ASS LTD,Third Party Payments,Private Contractor Fees,73373-RESIDENTIAL & NURSING CARE PLACEMENTS,"2,919.70",Revenue,20/05/2015,Social Care & Inclusion
WC56-0765,CALDMORE AREA HOUSING ASS LTD,Third Party Payments,Private Contractor Fees,73373-RESIDENTIAL & NURSING CARE PLACEMENTS,"2,919.70",Revenue,20/05/2015,Social Care & Inclusion
WC56-0766,CALDMORE AREA HOUSING ASS LTD,Third Party Payments,Private Contractor Fees,73373-RESIDENTIAL & NURSING CARE PLACEMENTS,"2,919.70",Revenue,20/05/2015,Social Care & Inclusion
WC56-0767,CALDMORE AREA HOUSING ASS LTD,Third Party Payments,Private Contractor Fees,73373-RESIDENTIAL & NURSING CARE PLACEMENTS,"2,919.70",Revenue,20/05/2015,Social Care & Inclusion
WC56-0768,CALDMORE AREA HOUSING ASS LTD,Third Party Payments,Private Contractor Fees,73373-RESIDENTIAL & NURSING CARE PLACEMENTS,"2,919.70",Revenue,20/05/2015,Social Care & Inclusion
WC56-0769,CALDMORE AREA HOUSING ASS LTD,Third Party Payments,Private Contractor Fees,73373-RESIDENTIAL & NURSING CARE PLACEMENTS,"2,919.75",Revenue,20/05/2015,Social Care & Inclusion
WC56-0770,REDACTED,Third Party Payments,Private Contractor Fees,74006-HOLIDAY/CHRISTMAS ALLOWANCE-FOSTER CARERS-OTH AGENCY PROVISION,373.76,Revenue,11/05/2015,Childrens
WC56-0771,REDACTED,Transfer Payments,Transfer Payments,76422-DIRECT PAYMENTS TO SOCIAL SERVICES CLIENTS,287.70,Revenue,12/05/2015,Childrens
WC56-0772,CALOO LTD,Capital,Capital,01006-SITE WORKS MAIN CONTRACTORS,"1,500.00",Capital,05/05/2015,Neighbourhood Services
WC56-0773,CAMBIAN CHILDCARE LIMITED,Third Party Payments,Private Contractor Fees,74036-EXTERNAL RESIDENTIAL CARE-OTH AGENCY PROVISION,"2,657.01",Revenue,15/05/2015,Childrens
WC56-0774,CAMBIAN CHILDCARE LIMITED,Third Party Payments,Private Contractor Fees,74036-EXTERNAL RESIDENTIAL CARE-OTH AGENCY PROVISION,"14,339.67",Revenue,15/05/2015,Childrens
WC56-0775,CAMBIAN LEARNING DISABILITES MIDLANDS LIMITED,Third Party Payments,Private Contractor Fees,73375-IN PATIENT BEDS,"10,908.90",Revenue,01/05/2015,Social Care & Inclusion
WC56-0776,CAMBIAN WHINFELL SCHOOLS LTD,Third Party Payments,Grants to Other Orgs,66502-TOP UP FUNDING -GRANTS TO SCHOOLS,"13,510.50",Revenue,14/05/2015,Childrens
WC56-0777,CAMBIAN WHINFELL SCHOOLS LTD,Third Party Payments,Grants to Other Orgs,66502-TOP UP FUNDING -GRANTS TO SCHOOLS,"13,510.50",Revenue,14/05/2015,Childrens
WC56-0778,CAMBIAN WHINFELL SCHOOLS LTD,Third Party Payments,Grants to Other Orgs,66502-TOP UP FUNDING -GRANTS TO SCHOOLS,"21,326.08",Revenue,14/05/2015,Childrens
WC56-0779,CAMBIAN WHINFELL SCHOOLS LTD,Third Party Payments,Grants to Other Orgs,66502-TOP UP FUNDING -GRANTS TO SCHOOLS,"25,938.13",Revenue,14/05/2015,Childrens
WC56-0780,CAMBIAN WHINFELL SCHOOLS LTD,Third Party Payments,Grants to Other Orgs,66502-TOP UP FUNDING -GRANTS TO SCHOOLS,"30,250.14",Revenue,14/05/2015,Childrens
WC56-0781,CAMERA ONE LIMITED,Third Party Payments,Private Contractor Fees,73025-PROFESSIONAL SERVICES-PRIV CONTRACTOR & OTHER AGENCIES,295.00,Revenue,11/05/2015,Neighbourhood Services
WC56-0782,CANAL & RIVER TRUST,Premises,Rent,43000-RENTS,"1,302.75",Revenue,11/05/2015,Neighbourhood Services
WC56-0783,CAPELAND LIMITED,Third Party Payments,Private Contractor Fees,73025-PROFESSIONAL SERVICES-PRIV CONTRACTOR & OTHER AGENCIES,"4,481.25",Revenue,08/05/2015,Neighbourhood Services
WC56-0784,CAPITA BUSINESS SERVICES LTD 001,Employees,Training,30030-EXTERNAL TRAINING,399.00,Revenue,11/05/2015,Childrens
WC56-0785,CAPITA SPECIALIST INSURANCE SOLUTIONS,Supplies & Services,Other Supplies & Services,67000-MISC INSURANCES - INSURANCE PREMIUMS,"45,064.37",Revenue,12/05/2015,Resources
WC56-0786,CAPITA SPECIALIST INSURANCE SOLUTIONS,Supplies & Services,Other Supplies & Services,67000-MISC INSURANCES - INSURANCE PREMIUMS,"86,479.11",Revenue,18/05/2015,Resources
WC56-0787,CAPSTONE FOSTER CARE (SOUTH EAST) LIMITED,Third Party Payments,Private Contractor Fees,74037-INDEPENDENT FOSTER CARE-OTH AGENCY PROVISION,"2,681.27",Revenue,05/05/2015,Childrens
WC56-0788,CAPSTONE FOSTER CARE (SOUTH EAST) LIMITED,Third Party Payments,Private Contractor Fees,74037-INDEPENDENT FOSTER CARE-OTH AGENCY PROVISION,"2,681.27",Revenue,05/05/2015,Childrens
WC56-0789,CAPSTONE FOSTER CARE (SOUTH EAST) LIMITED,Third Party Payments,Private Contractor Fees,74037-INDEPENDENT FOSTER CARE-OTH AGENCY PROVISION,"3,154.20",Revenue,05/05/2015,Childrens
WC56-0790,CAPSTONE FOSTER CARE (SOUTH EAST) LIMITED,Third Party Payments,Private Contractor Fees,74037-INDEPENDENT FOSTER CARE-OTH AGENCY PROVISION,"3,658.16",Revenue,05/05/2015,Childrens
WC56-0791,CARE & MANAGEMENT SERVICES LTD,Third Party Payments,Private Contractor Fees,74036-EXTERNAL RESIDENTIAL CARE-OTH AGENCY PROVISION,"4,000.00",Revenue,07/05/2015,Childrens
WC56-0792,CARE 2 U LIMITED,Third Party Payments,Private Contractor Fees,73372-DOMICILIARY CARE,"39,063.03",Revenue,19/05/2015,Social Care & Inclusion
WC56-0793,CARE AVENUES LTD,Third Party Payments,Private Contractor Fees,73372-DOMICILIARY CARE,877.97,Revenue,22/05/2015,Social Care & Inclusion
WC56-0794,CARE AVENUES LTD,Third Party Payments,Private Contractor Fees,73372-DOMICILIARY CARE,944.28,Revenue,22/05/2015,Social Care & Inclusion
WC56-0795,CARE AVENUES LTD,Third Party Payments,Private Contractor Fees,73372-DOMICILIARY CARE,"7,213.38",Revenue,19/05/2015,Social Care & Inclusion
WC56-0796,CARE FIRST MANAGEMENT SERVICES LTD,Third Party Payments,Private Contractor Fees,73372-DOMICILIARY CARE,780.00,Revenue,05/05/2015,Social Care & Inclusion
WC56-0797,CARE LEAVERS,Supplies & Services,Other Supplies & Services,64002-OTHER EXPENSES-EXPENSES,"14,420.63",Revenue,15/05/2015,Childrens
WC56-0798,CARE MONITORING 2000 LTD,Supplies & Services,Communications & Computing,63800-COMPUTER EQUIPMENT AND SUPPLIES,"41,979.30",Revenue,12/05/2015,Resources
WC56-0799,CARE SHOP,Supplies & Services,"Equip,Furniture & Materials",60539-CLEANING MATERIALS,258.70,Revenue,06/05/2015,Social Care & Inclusion
WC56-0800,CARE SHOP,Supplies & Services,"Equip,Furniture & Materials",60520-HEALTH & SAFETY-MATERIALS,347.15,Revenue,18/05/2015,Social Care & Inclusion
WC56-0801,CARE TODAY CHILDRENS SERVICES,Third Party Payments,Private Contractor Fees,74036-EXTERNAL RESIDENTIAL CARE-OTH AGENCY PROVISION,"3,707.10",Revenue,20/05/2015,Childrens
WC56-0802,CARE TODAY CHILDRENS SERVICES,Third Party Payments,Private Contractor Fees,74036-EXTERNAL RESIDENTIAL CARE-OTH AGENCY PROVISION,"11,492.01",Revenue,07/05/2015,Childrens
WC56-0803,CARE4HEALTH LTD.,Employees,Agency,34305-AGENCY STAFF-EMPLOYEES,783.45,Revenue,05/05/2015,Social Care & Inclusion
WC56-0804,CARE4HEALTH LTD.,Employees,Agency,34305-AGENCY STAFF-EMPLOYEES,"1,040.85",Revenue,11/05/2015,Social Care & Inclusion
WC56-0805,CARE4HEALTH LTD.,Third Party Payments,Private Contractor Fees,73019-PSE'S-PRIV CONTRACTOR FEES,"1,063.50",Revenue,11/05/2015,Social Care & Inclusion
WC56-0806,CARE4HEALTH LTD.,Third Party Payments,Private Contractor Fees,73019-PSE'S-PRIV CONTRACTOR FEES,"1,126.13",Revenue,05/05/2015,Social Care & Inclusion
WC56-0807,CARE4HEALTH LTD.,Third Party Payments,Private Contractor Fees,73019-PSE'S-PRIV CONTRACTOR FEES,"1,155.15",Revenue,06/05/2015,Social Care & Inclusion
WC56-0808,CARE4HEALTH LTD.,Third Party Payments,Private Contractor Fees,73019-PSE'S-PRIV CONTRACTOR FEES,"1,285.95",Revenue,05/05/2015,Social Care & Inclusion
WC56-0809,CARE4HEALTH LTD.,Third Party Payments,Private Contractor Fees,73019-PSE'S-PRIV CONTRACTOR FEES,"1,291.35",Revenue,06/05/2015,Social Care & Inclusion
WC56-0810,CARE4HEALTH LTD.,Third Party Payments,Private Contractor Fees,73019-PSE'S-PRIV CONTRACTOR FEES,"1,297.73",Revenue,05/05/2015,Social Care & Inclusion
WC56-0811,CARE4HEALTH LTD.,Third Party Payments,Private Contractor Fees,73019-PSE'S-PRIV CONTRACTOR FEES,"1,343.55",Revenue,06/05/2015,Social Care & Inclusion
WC56-0812,CARETECH COMMUNITY SERVICE,Third Party Payments,Private Contractor Fees,73374-SUPPORTED & OTHER ACCOMMODATION,"1,171.37",Revenue,08/05/2015,Social Care & Inclusion
WC56-0813,CARETECH COMMUNITY SERVICE,Third Party Payments,Private Contractor Fees,73374-SUPPORTED & OTHER ACCOMMODATION,"4,118.83",Revenue,08/05/2015,Social Care & Inclusion
WC56-0814,CARETECH COMMUNITY SERVICE,Third Party Payments,Private Contractor Fees,73374-SUPPORTED & OTHER ACCOMMODATION,"4,256.12",Revenue,18/05/2015,Social Care & Inclusion
WC56-0815,CARETECH COMMUNITY SERVICE,Third Party Payments,Private Contractor Fees,73374-SUPPORTED & OTHER ACCOMMODATION,"4,885.71",Revenue,08/05/2015,Social Care & Inclusion
WC56-0816,CAREVIEW SERVICES LTD,Third Party Payments,Private Contractor Fees,73373-RESIDENTIAL & NURSING CARE PLACEMENTS,"6,653.13",Revenue,13/05/2015,Social Care & Inclusion
WC56-0817,CARING CARE LIMITED,Third Party Payments,Private Contractor Fees,73372-DOMICILIARY CARE,"53,385.13",Revenue,19/05/2015,Social Care & Inclusion
WC56-0818,CARING HANDS LIMITED,Third Party Payments,Private Contractor Fees,73372-DOMICILIARY CARE,"50,983.01",Revenue,19/05/2015,Social Care & Inclusion
WC56-0819,REDACTED,Third Party Payments,Private Contractor Fees,73374-SUPPORTED & OTHER ACCOMMODATION,514.71,Revenue,11/05/2015,Social Care & Inclusion
WC56-0820,REDACTED,Third Party Payments,Private Contractor Fees,73374-SUPPORTED & OTHER ACCOMMODATION,"1,739.85",Revenue,06/05/2015,Social Care & Inclusion
WC56-0821,REDACTED,Third Party Payments,Private Contractor Fees,73374-SUPPORTED & OTHER ACCOMMODATION,"4,912.20",Revenue,14/05/2015,Social Care & Inclusion
WC56-0822,REDACTED,Transfer Payments,Transfer Payments,76422-DIRECT PAYMENTS TO SOCIAL SERVICES CLIENTS,450.00,Revenue,12/05/2015,Social Care & Inclusion
WC56-0823,REDACTED,Transfer Payments,Transfer Payments,76422-DIRECT PAYMENTS TO SOCIAL SERVICES CLIENTS,700.00,Revenue,12/05/2015,Social Care & Inclusion
WC56-0824,REDACTED,Third Party Payments,Private Contractor Fees,74006-HOLIDAY/CHRISTMAS ALLOWANCE-FOSTER CARERS-OTH AGENCY PROVISION,469.80,Revenue,25/05/2015,Childrens
WC56-0825,REDACTED,Supplies & Services,Other Supplies & Services,62515-MISCELLANEOUS SUPPLIES,540.20,Revenue,25/05/2015,Childrens
WC56-0826,REDACTED,Third Party Payments,Private Contractor Fees,74006-HOLIDAY/CHRISTMAS ALLOWANCE-FOSTER CARERS-OTH AGENCY PROVISION,365.60,Revenue,11/05/2015,Childrens
WC56-0827,CARTER SYNERGY LTD,Premises,Premises-Repairs & Maintenance,"40000-REPAIRS,ALTERATIONS & MAINTENANCE-PREM","6,539.24",Revenue,15/05/2015,Neighbourhood Services
WC56-0828,CARTER SYNERGY LTD,Premises,Premises-Repairs & Maintenance,40216-OTHER-PLAN MTCE,"9,939.41",Revenue,15/05/2015,Neighbourhood Services
WC56-0829,REDACTED,Third Party Payments,Private Contractor Fees,74507-MISCELLANEOUS ALLOWANCES-FOSTER CARERS,282.00,Revenue,22/05/2015,Childrens
WC56-0830,REDACTED,Transfer Payments,Transfer Payments,76422-DIRECT PAYMENTS TO SOCIAL SERVICES CLIENTS,622.68,Revenue,12/05/2015,Social Care & Inclusion
WC56-0831,REDACTED,Transfer Payments,Transfer Payments,76422-DIRECT PAYMENTS TO SOCIAL SERVICES CLIENTS,690.48,Revenue,12/05/2015,Social Care & Inclusion
WC56-0832,REDACTED,Third Party Payments,Private Contractor Fees,74006-HOLIDAY/CHRISTMAS ALLOWANCE-FOSTER CARERS-OTH AGENCY PROVISION,425.08,Revenue,11/05/2015,Childrens
WC56-0833,REDACTED,Transfer Payments,Transfer Payments,76422-DIRECT PAYMENTS TO SOCIAL SERVICES CLIENTS,388.40,Revenue,12/05/2015,Social Care & Inclusion
WC56-0834,REDACTED,Transfer Payments,Transfer Payments,76422-DIRECT PAYMENTS TO SOCIAL SERVICES CLIENTS,"1,014.26",Revenue,12/05/2015,Childrens
WC56-0835,REDACTED,Third Party Payments,Private Contractor Fees,74006-HOLIDAY/CHRISTMAS ALLOWANCE-FOSTER CARERS-OTH AGENCY PROVISION,425.08,Revenue,11/05/2015,Childrens
WC56-0836,CE RISK SAFETY AND SECURITY LTD,Third Party Payments,Private Contractor Fees,73002-SECURITY-PRIV CONTRACTOR FEES,"5,270.40",Revenue,14/05/2015,Resources
WC56-0837,CE RISK SAFETY AND SECURITY LTD,Third Party Payments,Private Contractor Fees,73002-SECURITY-PRIV CONTRACTOR FEES,"6,100.00",Revenue,22/05/2015,Resources
WC56-0838,CENTRAL MOSQUE COMMITTEE AND COMMUNITY CENTRE,Third Party Payments,Grants to Other Orgs,66500-GRANTS TO OTHER ORGS,"3,000.00",Revenue,11/05/2015,Neighbourhood Services
WC56-0839,CENTRO WMPTA,Transfer Payments,Transfer Payments,76000-TRANSFER PAYMENTS - SOCIAL SERVICES CLIENTS,550.00,Revenue,12/05/2015,Social Care & Inclusion
WC56-0840,REDACTED,Third Party Payments,Private Contractor Fees,74006-HOLIDAY/CHRISTMAS ALLOWANCE-FOSTER CARERS-OTH AGENCY PROVISION,861.80,Revenue,11/05/2015,Childrens
WC56-0841,CERTAS ENERGY UK LIMITED,Transport,Other Transport,50301-FUEL-TRANSPORT RUN COSTS,472.10,Revenue,18/05/2015,Neighbourhood Services
WC56-0842,CERTAS ENERGY UK LIMITED,Transport,Other Transport,50301-FUEL-TRANSPORT RUN COSTS,709.65,Revenue,18/05/2015,Neighbourhood Services
WC56-0843,CERTAS ENERGY UK LIMITED,Transport,Other Transport,50301-FUEL-TRANSPORT RUN COSTS,"1,423.55",Revenue,18/05/2015,Neighbourhood Services
WC56-0844,CERTAS ENERGY UK LIMITED,Transport,Other Transport,50301-FUEL-TRANSPORT RUN COSTS,"2,340.50",Revenue,12/05/2015,Neighbourhood Services
WC56-0845,CERTAS ENERGY UK LIMITED,Transport,Other Transport,50301-FUEL-TRANSPORT RUN COSTS,"18,213.99",Revenue,01/05/2015,Neighbourhood Services
WC56-0846,CERTAS ENERGY UK LIMITED,Transport,Other Transport,50301-FUEL-TRANSPORT RUN COSTS,"18,571.92",Revenue,12/05/2015,Neighbourhood Services
WC56-0847,CERTAS ENERGY UK LIMITED,Transport,Other Transport,50301-FUEL-TRANSPORT RUN COSTS,"18,665.07",Revenue,18/05/2015,Neighbourhood Services
WC56-0848,CEXC LIMITED,Supplies & Services,Communications & Computing,63800-COMPUTER EQUIPMENT AND SUPPLIES,"1,332.35",Revenue,15/05/2015,Resources
WC56-0849,CF ASSET FINANCE LIMITED,Supplies & Services,"Equip,Furniture & Materials",60009-LEASING/HIRE/RENTAL-EQUIPMENT,272.86,Revenue,19/05/2015,Resources
WC56-0850,CF CORPORATE FINANCE LTD,Supplies & Services,"Equip,Furniture & Materials",60009-LEASING/HIRE/RENTAL-EQUIPMENT,"1,290.34",Revenue,12/05/2015,Childrens
WC56-0851,CFT FOSTERING LIMITED,Third Party Payments,Private Contractor Fees,74037-INDEPENDENT FOSTER CARE-OTH AGENCY PROVISION,276.90,Revenue,18/05/2015,Childrens
WC56-0852,CFT FOSTERING LIMITED,Third Party Payments,Private Contractor Fees,74037-INDEPENDENT FOSTER CARE-OTH AGENCY PROVISION,286.13,Revenue,11/05/2015,Childrens
WC56-0853,CFT FOSTERING LIMITED,Third Party Payments,Private Contractor Fees,74037-INDEPENDENT FOSTER CARE-OTH AGENCY PROVISION,286.13,Revenue,18/05/2015,Childrens
WC56-0854,CFT FOSTERING LIMITED,Third Party Payments,Private Contractor Fees,74037-INDEPENDENT FOSTER CARE-OTH AGENCY PROVISION,"5,850.32",Revenue,21/05/2015,Childrens
WC56-0855,REDACTED,Transfer Payments,Transfer Payments,76422-DIRECT PAYMENTS TO SOCIAL SERVICES CLIENTS,748.00,Revenue,12/05/2015,Social Care & Inclusion
WC56-0856,REDACTED,Third Party Payments,Private Contractor Fees,74006-HOLIDAY/CHRISTMAS ALLOWANCE-FOSTER CARERS-OTH AGENCY PROVISION,"1,085.52",Revenue,11/05/2015,Childrens
WC56-0857,CHARLES CODDY WALKER ACADEMY,Third Party Payments,Grants to Other Orgs,66505-OTHER-GRANTS TO OTHER ORGS,"9,485.58",Revenue,08/05/2015,Childrens
WC56-0858,CHARLES CODDY WALKER ACADEMY,Third Party Payments,Grants to Other Orgs,66505-OTHER-GRANTS TO OTHER ORGS,"9,485.58",Revenue,08/05/2015,Childrens
WC56-0859,REDACTED,Transfer Payments,Transfer Payments,76422-DIRECT PAYMENTS TO SOCIAL SERVICES CLIENTS,258.96,Revenue,12/05/2015,Childrens
WC56-0860,CHARMEND LTD,Third Party Payments,Private Contractor Fees,73373-RESIDENTIAL & NURSING CARE PLACEMENTS,"2,075.96",Revenue,20/05/2015,Social Care & Inclusion
WC56-0861,CHARMEND LTD,Third Party Payments,Private Contractor Fees,73373-RESIDENTIAL & NURSING CARE PLACEMENTS,"2,145.16",Revenue,13/05/2015,Social Care & Inclusion
WC56-0862,CHARMEND LTD,Third Party Payments,Private Contractor Fees,73373-RESIDENTIAL & NURSING CARE PLACEMENTS,"2,145.16",Revenue,13/05/2015,Social Care & Inclusion
WC56-0863,CHARMEND LTD,Third Party Payments,Private Contractor Fees,73373-RESIDENTIAL & NURSING CARE PLACEMENTS,"2,145.16",Revenue,13/05/2015,Social Care & Inclusion
WC56-0864,CHARMEND LTD,Third Party Payments,Private Contractor Fees,73019-PSE'S-PRIV CONTRACTOR FEES,"25,714.29",Revenue,15/05/2015,Social Care & Inclusion
WC56-0865,CHARMEND LTD,Third Party Payments,Private Contractor Fees,73019-PSE'S-PRIV CONTRACTOR FEES,"26,571.43",Revenue,14/05/2015,Social Care & Inclusion
WC56-0866,CHARTER CARE,Third Party Payments,Private Contractor Fees,73372-DOMICILIARY CARE,"36,987.24",Revenue,19/05/2015,Social Care & Inclusion
WC56-0867,CHARTERED INSTITUTE OF HOUSIN,Employees,Training,30030-EXTERNAL TRAINING,899.00,Revenue,22/05/2015,Resources
WC56-0868,CHARTERED INSTITUTE OF HOUSIN,Employees,Training,30030-EXTERNAL TRAINING,899.00,Revenue,22/05/2015,Resources
WC56-0869,CHASE HOUSE AND PARTNER,Third Party Payments,Private Contractor Fees,73373-RESIDENTIAL & NURSING CARE PLACEMENTS,"4,445.68",Revenue,13/05/2015,Social Care & Inclusion
WC56-0870,CHASE HOUSE AND PARTNER,Third Party Payments,Private Contractor Fees,73373-RESIDENTIAL & NURSING CARE PLACEMENTS,"4,445.68",Revenue,20/05/2015,Social Care & Inclusion
WC56-0871,CHASE HOUSE AND PARTNER,Third Party Payments,Private Contractor Fees,73373-RESIDENTIAL & NURSING CARE PLACEMENTS,"4,455.44",Revenue,13/05/2015,Social Care & Inclusion
WC56-0872,CHASE HOUSE AND PARTNER,Third Party Payments,Private Contractor Fees,73373-RESIDENTIAL & NURSING CARE PLACEMENTS,"4,455.44",Revenue,20/05/2015,Social Care & Inclusion
WC56-0873,CHASE HOUSE AND PARTNER,Third Party Payments,Private Contractor Fees,73373-RESIDENTIAL & NURSING CARE PLACEMENTS,"4,562.48",Revenue,13/05/2015,Social Care & Inclusion
WC56-0874,CHASE HOUSE AND PARTNER,Third Party Payments,Private Contractor Fees,73373-RESIDENTIAL & NURSING CARE PLACEMENTS,"4,562.48",Revenue,20/05/2015,Social Care & Inclusion
WC56-0875,CHASE HOUSE AND PARTNER,Third Party Payments,Private Contractor Fees,73373-RESIDENTIAL & NURSING CARE PLACEMENTS,"4,753.76",Revenue,13/05/2015,Social Care & Inclusion
WC56-0876,CHASE HOUSE AND PARTNER,Third Party Payments,Private Contractor Fees,73373-RESIDENTIAL & NURSING CARE PLACEMENTS,"4,753.76",Revenue,20/05/2015,Social Care & Inclusion
WC56-0877,CHEMTECH WASTE MANAGEMENT LTD,Third Party Payments,Private Contractor Fees,73025-PROFESSIONAL SERVICES-PRIV CONTRACTOR & OTHER AGENCIES,695.00,Revenue,15/05/2015,Neighbourhood Services
WC56-0878,CHERISH HOME CARE,Third Party Payments,Private Contractor Fees,73372-DOMICILIARY CARE,286.47,Revenue,06/05/2015,Social Care & Inclusion
WC56-0879,CHERISH HOME CARE,Third Party Payments,Private Contractor Fees,73372-DOMICILIARY CARE,307.69,Revenue,15/05/2015,Social Care & Inclusion
WC56-0880,CHERISH HOME CARE,Third Party Payments,Private Contractor Fees,73372-DOMICILIARY CARE,334.53,Revenue,06/05/2015,Social Care & Inclusion
WC56-0881,CHERISH HOME CARE,Third Party Payments,Private Contractor Fees,73372-DOMICILIARY CARE,334.53,Revenue,15/05/2015,Social Care & Inclusion
WC56-0882,CHERISH HOME CARE,Third Party Payments,Private Contractor Fees,73372-DOMICILIARY CARE,355.52,Revenue,06/05/2015,Social Care & Inclusion
WC56-0883,CHERISH HOME CARE,Third Party Payments,Private Contractor Fees,73372-DOMICILIARY CARE,594.72,Revenue,15/05/2015,Social Care & Inclusion
WC56-0884,CHERISH HOME CARE,Third Party Payments,Private Contractor Fees,73372-DOMICILIARY CARE,600.03,Revenue,06/05/2015,Social Care & Inclusion
WC56-0885,CHERISH HOME CARE,Third Party Payments,Private Contractor Fees,73372-DOMICILIARY CARE,615.52,Revenue,15/05/2015,Social Care & Inclusion
WC56-0886,CHERISH HOME CARE,Third Party Payments,Private Contractor Fees,73372-DOMICILIARY CARE,743.12,Revenue,06/05/2015,Social Care & Inclusion
WC56-0887,CHERISH HOME CARE,Third Party Payments,Private Contractor Fees,73372-DOMICILIARY CARE,743.12,Revenue,15/05/2015,Social Care & Inclusion
WC56-0888,CHESTER UNIVERSITY,Third Party Payments,Private Contractor Fees,73374-SUPPORTED & OTHER ACCOMMODATION,"3,816.40",Revenue,18/05/2015,Social Care & Inclusion
WC56-0889,REDACTED,Transfer Payments,Transfer Payments,76422-DIRECT PAYMENTS TO SOCIAL SERVICES CLIENTS,"1,601.60",Revenue,12/05/2015,Social Care & Inclusion
WC56-0890,CHILD CONNECTIONS (UK) LIMITED,Transport,Car Allowances,53001-OTHER/VOLUNTEERS-CAR ALLOWANCES,72.41,Revenue,12/05/2015,Childrens
WC56-0891,CHILD CONNECTIONS (UK) LIMITED,Transport,Car Allowances,53001-OTHER/VOLUNTEERS-CAR ALLOWANCES,96.84,Revenue,12/05/2015,Childrens
WC56-0892,CHILD CONNECTIONS (UK) LIMITED,Transport,Car Allowances,53003-OTHER-TRAVEL ALLOWANCES,101.89,Revenue,12/05/2015,Childrens
WC56-0893,CHILD CONNECTIONS (UK) LIMITED,Transport,Car Allowances,53001-OTHER/VOLUNTEERS-CAR ALLOWANCES,105.73,Revenue,12/05/2015,Childrens
WC56-0894,CHILD CONNECTIONS (UK) LIMITED,Transport,Car Allowances,53003-OTHER-TRAVEL ALLOWANCES,108.62,Revenue,12/05/2015,Childrens
WC56-0895,CHILD CONNECTIONS (UK) LIMITED,Transport,Car Allowances,53003-OTHER-TRAVEL ALLOWANCES,110.11,Revenue,14/05/2015,Childrens
WC56-0896,CHILD CONNECTIONS (UK) LIMITED,Third Party Payments,Private Contractor Fees,76003-SECTION 34 (CONTACT),127.16,Revenue,12/05/2015,Childrens
WC56-0897,CHILD CONNECTIONS (UK) LIMITED,Transport,Car Allowances,53003-OTHER-TRAVEL ALLOWANCES,128.38,Revenue,12/05/2015,Childrens
WC56-0898,CHILD CONNECTIONS (UK) LIMITED,Transport,Car Allowances,53001-OTHER/VOLUNTEERS-CAR ALLOWANCES,164.05,Revenue,14/05/2015,Childrens
WC56-0899,CHILD CONNECTIONS (UK) LIMITED,Third Party Payments,Private Contractor Fees,76003-SECTION 34 (CONTACT),166.14,Revenue,12/05/2015,Childrens
WC56-0900,CHILD CONNECTIONS (UK) LIMITED,Third Party Payments,Private Contractor Fees,76003-SECTION 34 (CONTACT),181.02,Revenue,12/05/2015,Childrens
WC56-0901,CHILD CONNECTIONS (UK) LIMITED,Third Party Payments,Private Contractor Fees,76003-SECTION 34 (CONTACT),820.53,Revenue,14/05/2015,Childrens
WC56-0902,CHILDCARE BUREAU LTD,Third Party Payments,Private Contractor Fees,74037-INDEPENDENT FOSTER CARE-OTH AGENCY PROVISION,"1,894.17",Revenue,27/05/2015,Childrens
WC56-0903,CHILDCARE BUREAU LTD,Third Party Payments,Private Contractor Fees,74037-INDEPENDENT FOSTER CARE-OTH AGENCY PROVISION,"3,715.00",Revenue,19/05/2015,Childrens
WC56-0904,CHILDCARE BUREAU LTD,Third Party Payments,Private Contractor Fees,74037-INDEPENDENT FOSTER CARE-OTH AGENCY PROVISION,"3,731.00",Revenue,19/05/2015,Childrens
WC56-0905,CHILDCARE BUREAU LTD,Third Party Payments,Private Contractor Fees,74037-INDEPENDENT FOSTER CARE-OTH AGENCY PROVISION,"3,731.00",Revenue,19/05/2015,Childrens
WC56-0906,CHILDLINK,Transport,Car Allowances,53001-OTHER/VOLUNTEERS-CAR ALLOWANCES,16.00,Revenue,05/05/2015,Childrens
WC56-0907,CHILDLINK,Supplies & Services,Other Supplies & Services,63128-HIRE OF ROOM-SERVICES-FEES,22.00,Revenue,13/05/2015,Childrens
WC56-0908,CHILDLINK,Supplies & Services,Other Supplies & Services,63128-HIRE OF ROOM-SERVICES-FEES,40.00,Revenue,13/05/2015,Childrens
WC56-0909,CHILDLINK,Supplies & Services,Other Supplies & Services,63128-HIRE OF ROOM-SERVICES-FEES,40.00,Revenue,19/05/2015,Childrens
WC56-0910,CHILDLINK,Transport,Car Allowances,53003-OTHER-TRAVEL ALLOWANCES,58.50,Revenue,05/05/2015,Childrens
WC56-0911,CHILDLINK,Transport,Car Allowances,53001-OTHER/VOLUNTEERS-CAR ALLOWANCES,70.00,Revenue,13/05/2015,Childrens
WC56-0912,CHILDLINK,Transport,Car Allowances,53003-OTHER-TRAVEL ALLOWANCES,117.00,Revenue,13/05/2015,Childrens
WC56-0913,CHILDLINK,Third Party Payments,Private Contractor Fees,76003-SECTION 34 (CONTACT),143.00,Revenue,13/05/2015,Childrens
WC56-0914,CHILDLINK,Third Party Payments,Private Contractor Fees,76003-SECTION 34 (CONTACT),247.00,Revenue,05/05/2015,Childrens
WC56-0915,CHILDLINK,Third Party Payments,Private Contractor Fees,76003-SECTION 34 (CONTACT),260.00,Revenue,13/05/2015,Childrens
WC56-0916,CHILDLINK,Third Party Payments,Private Contractor Fees,76003-SECTION 34 (CONTACT),260.00,Revenue,19/05/2015,Childrens
WC56-0917,CHILDREN'S UNIVERSITY,Supplies & Services,Subscriptions,64500-PUBLICATIONS/ORGANISATIONS-SUBSCRIPTIONS,"1,350.00",Revenue,11/05/2015,Childrens
WC56-0918,CHOICECARE 2000 LIMITED,Third Party Payments,Private Contractor Fees,73373-RESIDENTIAL & NURSING CARE PLACEMENTS,"2,672.00",Revenue,05/05/2015,Social Care & Inclusion
WC56-0919,CHOICECARE 2000 LIMITED,Third Party Payments,Private Contractor Fees,73373-RESIDENTIAL & NURSING CARE PLACEMENTS,"3,040.24",Revenue,05/05/2015,Social Care & Inclusion
WC56-0920,CHOICECARE 2000 LIMITED,Third Party Payments,Private Contractor Fees,73373-RESIDENTIAL & NURSING CARE PLACEMENTS,"4,008.00",Revenue,05/05/2015,Social Care & Inclusion
WC56-0921,CHOICECARE 2000 LIMITED,Third Party Payments,Private Contractor Fees,73373-RESIDENTIAL & NURSING CARE PLACEMENTS,"4,156.44",Revenue,05/05/2015,Social Care & Inclusion
WC56-0922,CHRISTADELPHIAN CARE HOMES,Third Party Payments,Private Contractor Fees,73373-RESIDENTIAL & NURSING CARE PLACEMENTS,"1,806.86",Revenue,05/05/2015,Social Care & Inclusion
WC56-0923,REDACTED,Transfer Payments,Transfer Payments,76422-DIRECT PAYMENTS TO SOCIAL SERVICES CLIENTS,"1,489.62",Revenue,12/05/2015,Social Care & Inclusion
WC56-0924,REDACTED,Transfer Payments,Transfer Payments,76422-DIRECT PAYMENTS TO SOCIAL SERVICES CLIENTS,755.30,Revenue,12/05/2015,Social Care & Inclusion
WC56-0925,REDACTED,Transfer Payments,Transfer Payments,76422-DIRECT PAYMENTS TO SOCIAL SERVICES CLIENTS,489.60,Revenue,12/05/2015,Social Care & Inclusion
WC56-0926,REDACTED,Third Party Payments,Private Contractor Fees,74006-HOLIDAY/CHRISTMAS ALLOWANCE-FOSTER CARERS-OTH AGENCY PROVISION,256.36,Revenue,11/05/2015,Childrens
WC56-0927,REDACTED,Transfer Payments,Transfer Payments,76422-DIRECT PAYMENTS TO SOCIAL SERVICES CLIENTS,"1,125.97",Revenue,12/05/2015,Social Care & Inclusion
WC56-0928,REDACTED,Third Party Payments,Private Contractor Fees,74006-HOLIDAY/CHRISTMAS ALLOWANCE-FOSTER CARERS-OTH AGENCY PROVISION,840.92,Revenue,11/05/2015,Childrens
WC56-0929,REDACTED,Transfer Payments,Transfer Payments,76422-DIRECT PAYMENTS TO SOCIAL SERVICES CLIENTS,276.00,Revenue,12/05/2015,Social Care & Inclusion
WC56-0930,REDACTED,Transfer Payments,Transfer Payments,76422-DIRECT PAYMENTS TO SOCIAL SERVICES CLIENTS,822.16,Revenue,12/05/2015,Social Care & Inclusion
WC56-0931,REDACTED,Transfer Payments,Transfer Payments,76422-DIRECT PAYMENTS TO SOCIAL SERVICES CLIENTS,588.00,Revenue,12/05/2015,Social Care & Inclusion
WC56-0932,CHUBB ELECTRONIC SECURITY LTD,Third Party Payments,Private Contractor Fees,63239-EXTERNAL WORKS-PAYMENT TO CONTRACTOR,862.36,Revenue,11/05/2015,Childrens
WC56-0933,CHUBB FIRE & SECURITY LTD,Premises,Premises-Repairs & Maintenance,"40000-REPAIRS,ALTERATIONS & MAINTENANCE-PREM",500.00,Revenue,15/05/2015,Regeneration
WC56-0934,CHUBB FIRE & SECURITY LTD,Third Party Payments,Private Contractor Fees,73002-SECURITY-PRIV CONTRACTOR FEES,642.08,Revenue,20/05/2015,Regeneration
WC56-0935,CHUBB FIRE & SECURITY LTD,Third Party Payments,Private Contractor Fees,73002-SECURITY-PRIV CONTRACTOR FEES,"1,136.25",Revenue,20/05/2015,Regeneration
WC56-0936,CHUBB FIRE & SECURITY LTD,Third Party Payments,Private Contractor Fees,73002-SECURITY-PRIV CONTRACTOR FEES,"1,148.60",Revenue,20/05/2015,Regeneration
WC56-0937,CHUBB FIRE & SECURITY LTD,Third Party Payments,Private Contractor Fees,73002-SECURITY-PRIV CONTRACTOR FEES,"1,685.50",Revenue,20/05/2015,Regeneration
WC56-0938,CHUBB FIRE & SECURITY LTD,Third Party Payments,Private Contractor Fees,73002-SECURITY-PRIV CONTRACTOR FEES,"3,140.00",Revenue,19/05/2015,Regeneration
WC56-0939,CHUBB FIRE & SECURITY LTD,Third Party Payments,Private Contractor Fees,73002-SECURITY-PRIV CONTRACTOR FEES,"4,489.00",Revenue,20/05/2015,Regeneration
WC56-0940,REDACTED,Third Party Payments,Private Contractor Fees,73374-SUPPORTED & OTHER ACCOMMODATION,"1,452.12",Revenue,14/05/2015,Social Care & Inclusion
WC56-0941,CIPFA 001,Supplies & Services,"Equip,Furniture & Materials",60501-LIBRARY BOOKS,325.00,Revenue,06/05/2015,Neighbourhood Services
WC56-0942,CIPFA 001,Supplies & Services,Services,63000-PROFESSIONAL FEES AND SERVICES,500.00,Revenue,15/05/2015,Resources
WC56-0943,CITY & GUILDS,Supplies & Services,Other Supplies & Services,63013-EXAMINATIONS-SERVICES,327.50,Revenue,20/05/2015,Neighbourhood Services
WC56-0944,CITY ELECTRICAL FACTORS LTD (BIRMINGHAM & NORTH WALES),Premises,Premises-Repairs & Maintenance,"40000-REPAIRS,ALTERATIONS & MAINTENANCE-PREM",412.16,Revenue,05/05/2015,Regeneration
WC56-0945,CIVICA UK LIMITED,Supplies & Services,Services,63102-CONSULTANTS FEES - CORPORATE,975.00,Revenue,06/05/2015,Resources
WC56-0946,CIVICARE MIDLANDS LTD,Third Party Payments,Private Contractor Fees,73374-SUPPORTED & OTHER ACCOMMODATION,443.52,Revenue,08/05/2015,Social Care & Inclusion
WC56-0947,CIVICARE MIDLANDS LTD,Third Party Payments,Private Contractor Fees,73374-SUPPORTED & OTHER ACCOMMODATION,443.52,Revenue,08/05/2015,Social Care & Inclusion
WC56-0948,CIVICARE MIDLANDS LTD,Third Party Payments,Private Contractor Fees,73372-DOMICILIARY CARE,"1,121.25",Revenue,19/05/2015,Social Care & Inclusion
WC56-0949,CIVICARE MIDLANDS LTD,Third Party Payments,Private Contractor Fees,73372-DOMICILIARY CARE,"13,658.77",Revenue,27/05/2015,Social Care & Inclusion
WC56-0950,CIVICARE MIDLANDS LTD,Third Party Payments,Private Contractor Fees,73372-DOMICILIARY CARE,"22,014.22",Revenue,19/05/2015,Social Care & Inclusion
WC56-0951,CJP SAFETY,Supplies & Services,Services,63102-CONSULTANTS FEES - CORPORATE,909.00,Revenue,19/05/2015,Childrens
WC56-0952,REDACTED,Transfer Payments,Transfer Payments,76422-DIRECT PAYMENTS TO SOCIAL SERVICES CLIENTS,"1,088.00",Revenue,12/05/2015,Social Care & Inclusion
WC56-0953,REDACTED,Transfer Payments,Transfer Payments,76422-DIRECT PAYMENTS TO SOCIAL SERVICES CLIENTS,"6,189.24",Revenue,12/05/2015,Social Care & Inclusion
WC56-0954,REDACTED,Transfer Payments,Transfer Payments,76422-DIRECT PAYMENTS TO SOCIAL SERVICES CLIENTS,504.90,Revenue,12/05/2015,Social Care & Inclusion
WC56-0955,REDACTED,Third Party Payments,Private Contractor Fees,74006-HOLIDAY/CHRISTMAS ALLOWANCE-FOSTER CARERS-OTH AGENCY PROVISION,474.64,Revenue,11/05/2015,Childrens
WC56-0956,CLIFFORD HOUSE FOSTERING LTD,Third Party Payments,Private Contractor Fees,74037-INDEPENDENT FOSTER CARE-OTH AGENCY PROVISION,728.10,Revenue,21/05/2015,Childrens
WC56-0957,CLIFFORD HOUSE FOSTERING LTD,Third Party Payments,Private Contractor Fees,74037-INDEPENDENT FOSTER CARE-OTH AGENCY PROVISION,728.10,Revenue,21/05/2015,Childrens
WC56-0958,CLIFFORD HOUSE FOSTERING LTD,Third Party Payments,Private Contractor Fees,74037-INDEPENDENT FOSTER CARE-OTH AGENCY PROVISION,728.10,Revenue,21/05/2015,Childrens
WC56-0959,CLIFFORD HOUSE FOSTERING LTD,Third Party Payments,Private Contractor Fees,74037-INDEPENDENT FOSTER CARE-OTH AGENCY PROVISION,767.70,Revenue,21/05/2015,Childrens
WC56-0960,CLIFFORD HOUSE FOSTERING LTD,Third Party Payments,Private Contractor Fees,74037-INDEPENDENT FOSTER CARE-OTH AGENCY PROVISION,"1,013.13",Revenue,21/05/2015,Childrens
WC56-0961,CLIFFORD HOUSE FOSTERING LTD,Third Party Payments,Private Contractor Fees,74037-INDEPENDENT FOSTER CARE-OTH AGENCY PROVISION,"2,522.80",Revenue,21/05/2015,Childrens
WC56-0962,CLIFFORD HOUSE FOSTERING LTD,Third Party Payments,Private Contractor Fees,74037-INDEPENDENT FOSTER CARE-OTH AGENCY PROVISION,"2,522.80",Revenue,26/05/2015,Childrens
WC56-0963,CLIFFORD HOUSE FOSTERING LTD,Third Party Payments,Private Contractor Fees,74037-INDEPENDENT FOSTER CARE-OTH AGENCY PROVISION,"2,949.56",Revenue,21/05/2015,Childrens
WC56-0964,CLIFFORD HOUSE FOSTERING LTD,Third Party Payments,Private Contractor Fees,74037-INDEPENDENT FOSTER CARE-OTH AGENCY PROVISION,"2,949.56",Revenue,26/05/2015,Childrens
WC56-0965,CLIFFORD HOUSE FOSTERING LTD,Third Party Payments,Private Contractor Fees,74037-INDEPENDENT FOSTER CARE-OTH AGENCY PROVISION,"3,006.00",Revenue,21/05/2015,Childrens
WC56-0966,CLIFFORD HOUSE FOSTERING LTD,Third Party Payments,Private Contractor Fees,74037-INDEPENDENT FOSTER CARE-OTH AGENCY PROVISION,"3,006.00",Revenue,26/05/2015,Childrens
WC56-0967,REDACTED,Transfer Payments,Transfer Payments,76422-DIRECT PAYMENTS TO SOCIAL SERVICES CLIENTS,572.94,Revenue,12/05/2015,Social Care & Inclusion
WC56-0968,REDACTED,Third Party Payments,Private Contractor Fees,74006-HOLIDAY/CHRISTMAS ALLOWANCE-FOSTER CARERS-OTH AGENCY PROVISION,"2,763.08",Revenue,11/05/2015,Childrens
WC56-0969,COMMERCIAL & DOMESTIC,Premises,Premises-Repairs & Maintenance,40705-TESTING-ELEC SERVICES,1.00,Revenue,21/05/2015,Regeneration
WC56-0970,COMMERCIAL & DOMESTIC,Premises,Premises-Repairs & Maintenance,40705-TESTING-ELEC SERVICES,1.00,Revenue,21/05/2015,Regeneration
WC56-0971,COMMERCIAL & DOMESTIC,Premises,Premises-Repairs & Maintenance,40705-TESTING-ELEC SERVICES,1.00,Revenue,21/05/2015,Regeneration
WC56-0972,COMMERCIAL & DOMESTIC,Premises,Premises-Repairs & Maintenance,40705-TESTING-ELEC SERVICES,1.00,Revenue,21/05/2015,Regeneration
WC56-0973,COMMERCIAL & DOMESTIC,Premises,Premises-Repairs & Maintenance,40705-TESTING-ELEC SERVICES,1.00,Revenue,21/05/2015,Regeneration
WC56-0974,COMMERCIAL & DOMESTIC,Premises,Premises-Repairs & Maintenance,40705-TESTING-ELEC SERVICES,1.00,Revenue,21/05/2015,Regeneration
WC56-0975,COMMERCIAL & DOMESTIC,Premises,Premises-Repairs & Maintenance,40705-TESTING-ELEC SERVICES,1.00,Revenue,21/05/2015,Regeneration
WC56-0976,COMMERCIAL & DOMESTIC,Premises,Premises-Repairs & Maintenance,40705-TESTING-ELEC SERVICES,1.00,Revenue,21/05/2015,Regeneration
WC56-0977,COMMERCIAL & DOMESTIC,Premises,Premises-Repairs & Maintenance,40705-TESTING-ELEC SERVICES,1.00,Revenue,21/05/2015,Regeneration
WC56-0978,COMMERCIAL & DOMESTIC,Premises,Premises-Repairs & Maintenance,40705-TESTING-ELEC SERVICES,1.00,Revenue,21/05/2015,Regeneration
WC56-0979,COMMERCIAL & DOMESTIC,Premises,Premises-Repairs & Maintenance,40705-TESTING-ELEC SERVICES,2.00,Revenue,21/05/2015,Regeneration
WC56-0980,COMMERCIAL & DOMESTIC,Premises,Premises-Repairs & Maintenance,40705-TESTING-ELEC SERVICES,2.00,Revenue,21/05/2015,Regeneration
WC56-0981,COMMERCIAL & DOMESTIC,Premises,Premises-Repairs & Maintenance,40705-TESTING-ELEC SERVICES,4.00,Revenue,21/05/2015,Regeneration
WC56-0982,COMMERCIAL & DOMESTIC,Premises,Premises-Repairs & Maintenance,40705-TESTING-ELEC SERVICES,4.00,Revenue,21/05/2015,Regeneration
WC56-0983,COMMERCIAL & DOMESTIC,Premises,Premises-Repairs & Maintenance,40705-TESTING-ELEC SERVICES,5.00,Revenue,21/05/2015,Regeneration
WC56-0984,COMMERCIAL & DOMESTIC,Supplies & Services,"Equip,Furniture & Materials",60007-REPAIR OF EQUIPMENT-EQUIPMENT,15.00,Revenue,21/05/2015,Regeneration
WC56-0985,COMMERCIAL & DOMESTIC,Supplies & Services,"Equip,Furniture & Materials",60007-REPAIR OF EQUIPMENT-EQUIPMENT,15.00,Revenue,21/05/2015,Regeneration
WC56-0986,COMMERCIAL & DOMESTIC,Supplies & Services,"Equip,Furniture & Materials",60007-REPAIR OF EQUIPMENT-EQUIPMENT,15.00,Revenue,21/05/2015,Regeneration
WC56-0987,COMMERCIAL & DOMESTIC,Supplies & Services,"Equip,Furniture & Materials",60007-REPAIR OF EQUIPMENT-EQUIPMENT,15.00,Revenue,21/05/2015,Regeneration
WC56-0988,COMMERCIAL & DOMESTIC,Supplies & Services,"Equip,Furniture & Materials",60007-REPAIR OF EQUIPMENT-EQUIPMENT,20.00,Revenue,21/05/2015,Regeneration
WC56-0989,COMMERCIAL & DOMESTIC,Supplies & Services,"Equip,Furniture & Materials",60007-REPAIR OF EQUIPMENT-EQUIPMENT,20.00,Revenue,21/05/2015,Regeneration
WC56-0990,COMMERCIAL & DOMESTIC,Supplies & Services,"Equip,Furniture & Materials",60007-REPAIR OF EQUIPMENT-EQUIPMENT,20.00,Revenue,21/05/2015,Regeneration
WC56-0991,COMMERCIAL & DOMESTIC,Supplies & Services,"Equip,Furniture & Materials",60007-REPAIR OF EQUIPMENT-EQUIPMENT,20.00,Revenue,21/05/2015,Regeneration
WC56-0992,COMMERCIAL & DOMESTIC,Supplies & Services,"Equip,Furniture & Materials",60007-REPAIR OF EQUIPMENT-EQUIPMENT,20.00,Revenue,21/05/2015,Regeneration
WC56-0993,COMMERCIAL & DOMESTIC,Supplies & Services,"Equip,Furniture & Materials",60007-REPAIR OF EQUIPMENT-EQUIPMENT,20.00,Revenue,21/05/2015,Regeneration
WC56-0994,COMMERCIAL & DOMESTIC,Supplies & Services,"Equip,Furniture & Materials",60007-REPAIR OF EQUIPMENT-EQUIPMENT,30.00,Revenue,21/05/2015,Regeneration
WC56-0995,COMMERCIAL & DOMESTIC,Supplies & Services,"Equip,Furniture & Materials",60007-REPAIR OF EQUIPMENT-EQUIPMENT,35.00,Revenue,21/05/2015,Regeneration
WC56-0996,COMMERCIAL & DOMESTIC,Supplies & Services,"Equip,Furniture & Materials",60007-REPAIR OF EQUIPMENT-EQUIPMENT,40.00,Revenue,21/05/2015,Regeneration
WC56-0997,COMMERCIAL & DOMESTIC,Supplies & Services,"Equip,Furniture & Materials",60007-REPAIR OF EQUIPMENT-EQUIPMENT,75.00,Revenue,21/05/2015,Regeneration
WC56-0998,COMMERCIAL & DOMESTIC,Supplies & Services,"Equip,Furniture & Materials",60007-REPAIR OF EQUIPMENT-EQUIPMENT,95.00,Revenue,21/05/2015,Regeneration
WC56-0999,COMMERCIAL & DOMESTIC,Supplies & Services,"Equip,Furniture & Materials",60007-REPAIR OF EQUIPMENT-EQUIPMENT,100.00,Revenue,21/05/2015,Regeneration
WC56-1000,COMPLETE CARE SERVICES,Third Party Payments,Private Contractor Fees,73372-DOMICILIARY CARE,614.46,Revenue,20/05/2015,Social Care & Inclusion
WC56-1001,COMPLETE CARE SERVICES,Third Party Payments,Private Contractor Fees,73372-DOMICILIARY CARE,636.02,Revenue,20/05/2015,Social Care & Inclusion
WC56-1002,COMPLETE CARE SERVICES,Third Party Payments,Private Contractor Fees,73372-DOMICILIARY CARE,646.80,Revenue,20/05/2015,Social Care & Inclusion
WC56-1003,COMPUTERWORLD BUSINESS SOLUTIONS,Supplies & Services,Communications & Computing,63601-COSTS (NOT INTERNAL RECHARGES)-TELEPHONES,349.00,Revenue,22/05/2015,Resources
WC56-1004,CONCEPT ELEVATORS (UK) LIMITED,Third Party Payments,Private Contractor Fees,73025-PROFESSIONAL SERVICES-PRIV CONTRACTOR & OTHER AGENCIES,"1,002.00",Revenue,01/05/2015,Regeneration
WC56-1005,CONDOVER COLLEGE LTD,Third Party Payments,Private Contractor Fees,73373-RESIDENTIAL & NURSING CARE PLACEMENTS,"6,642.86",Revenue,13/05/2015,Social Care & Inclusion
WC56-1006,CONDOVER COLLEGE LTD,Third Party Payments,Private Contractor Fees,73373-RESIDENTIAL & NURSING CARE PLACEMENTS,"8,038.92",Revenue,13/05/2015,Social Care & Inclusion
WC56-1007,CONNAUGHT COMMUNICATION SYSTEMS LTD,Supplies & Services,Communications & Computing,63601-COSTS (NOT INTERNAL RECHARGES)-TELEPHONES,452.65,Revenue,12/05/2015,Resources
WC56-1008,CONNOLLY MUSICAL INSTRUMENT REPAIRS,Supplies & Services,"Equip,Furniture & Materials",60008-MAINTENANCE-FURNITURE & EQUIPMENT,"1,115.00",Revenue,06/05/2015,Neighbourhood Services
WC56-1009,CONTEMPORARY ART SOCIETY,Supplies & Services,Subscriptions,64500-PUBLICATIONS/ORGANISATIONS-SUBSCRIPTIONS,"1,000.00",Revenue,12/05/2015,Neighbourhood Services
WC56-1010,CONWY COUNTY BOROUGH COUNCIL,Third Party Payments,Grants to Other Orgs,66502-TOP UP FUNDING -GRANTS TO SCHOOLS,"40,731.62",Revenue,01/05/2015,Childrens
WC56-1011,CO-OPERATIVE FUNERAL SERVICES,Supplies & Services,Other Supplies & Services,63110-BURIAL & CREMATION-SERVICES-FEES,500.00,Revenue,27/05/2015,Neighbourhood Services
WC56-1012,COPPERDOWN RESIDENTIAL CARE HOME,Third Party Payments,Private Contractor Fees,73373-RESIDENTIAL & NURSING CARE PLACEMENTS,"1,495.44",Revenue,05/05/2015,Social Care & Inclusion
WC56-1013,CORAM VOICE,Transport,Car Allowances,53003-OTHER-TRAVEL ALLOWANCES,332.80,Revenue,27/05/2015,Childrens
WC56-1014,CORE ASSETS CHILDRENS SERVICES LIMITED,Supplies & Services,Services,63000-PROFESSIONAL FEES AND SERVICES,420.00,Revenue,22/05/2015,Childrens
WC56-1015,CORE ASSETS CHILDRENS SERVICES LIMITED,Supplies & Services,Services,63000-PROFESSIONAL FEES AND SERVICES,735.00,Revenue,14/05/2015,Childrens
WC56-1016,CORE ASSETS CHILDRENS SERVICES LIMITED,Supplies & Services,Services,63000-PROFESSIONAL FEES AND SERVICES,946.40,Revenue,14/05/2015,Childrens
WC56-1017,CORE ASSETS CHILDRENS SERVICES LIMITED,Supplies & Services,Services,63000-PROFESSIONAL FEES AND SERVICES,"2,500.00",Revenue,21/05/2015,Childrens
WC56-1018,CORY ENVIRONMENTAL (CENTRAL) LTD,Third Party Payments,Private Contractor Fees,73005-LANDFILL PTYS-PRIV CONTRACTOR FEES,350.23,Revenue,05/05/2015,Neighbourhood Services
WC56-1019,CORY ENVIRONMENTAL (CENTRAL) LTD,Third Party Payments,Private Contractor Fees,73005-LANDFILL PTYS-PRIV CONTRACTOR FEES,375.24,Revenue,22/05/2015,Neighbourhood Services
WC56-1020,CORY ENVIRONMENTAL (CENTRAL) LTD,Third Party Payments,Private Contractor Fees,73005-LANDFILL PTYS-PRIV CONTRACTOR FEES,441.52,Revenue,08/05/2015,Neighbourhood Services
WC56-1021,CORY ENVIRONMENTAL (CENTRAL) LTD,Third Party Payments,Private Contractor Fees,73005-LANDFILL PTYS-PRIV CONTRACTOR FEES,491.66,Revenue,15/05/2015,Neighbourhood Services
WC56-1022,CORY ENVIRONMENTAL (CENTRAL) LTD,Third Party Payments,Private Contractor Fees,73005-LANDFILL PTYS-PRIV CONTRACTOR FEES,787.63,Revenue,08/05/2015,Neighbourhood Services
WC56-1023,CORY ENVIRONMENTAL (CENTRAL) LTD,Third Party Payments,Private Contractor Fees,73039-LANDFILL TAX-PRIV CONTRACTOR FEES,"1,911.20",Revenue,05/05/2015,Neighbourhood Services
WC56-1024,CORY ENVIRONMENTAL (CENTRAL) LTD,Third Party Payments,Private Contractor Fees,73039-LANDFILL TAX-PRIV CONTRACTOR FEES,"2,052.61",Revenue,22/05/2015,Neighbourhood Services
WC56-1025,CORY ENVIRONMENTAL (CENTRAL) LTD,Third Party Payments,Private Contractor Fees,73039-LANDFILL TAX-PRIV CONTRACTOR FEES,"2,415.23",Revenue,08/05/2015,Neighbourhood Services
WC56-1026,CORY ENVIRONMENTAL (CENTRAL) LTD,Third Party Payments,Private Contractor Fees,73039-LANDFILL TAX-PRIV CONTRACTOR FEES,"2,689.46",Revenue,15/05/2015,Neighbourhood Services
WC56-1027,CORY ENVIRONMENTAL (CENTRAL) LTD,Third Party Payments,Private Contractor Fees,73039-LANDFILL TAX-PRIV CONTRACTOR FEES,"4,308.42",Revenue,08/05/2015,Neighbourhood Services
WC56-1028,COUGAR,Third Party Payments,Private Contractor Fees,63239-EXTERNAL WORKS-PAYMENT TO CONTRACTOR,330.00,Revenue,26/05/2015,Neighbourhood Services
WC56-1029,COUNT UP LTD,Supplies & Services,"Printing, Stationery & Office Exp",62001-STATIONERY & GENERAL SUPPLIES-OFFICE EXP,459.00,Revenue,11/05/2015,Resources
WC56-1030,COUNTRYWIDE CARE HOMES T/A ROSE LODGE CARE HOME,Third Party Payments,Private Contractor Fees,73373-RESIDENTIAL & NURSING CARE PLACEMENTS,"2,003.56",Revenue,20/05/2015,Social Care & Inclusion
WC56-1031,COVENTRY AND WARWICKSHIRE PARTNERSHIP NHS TRUST,Third Party Payments,Private Contractor Fees,73375-IN PATIENT BEDS,577.90,Revenue,01/05/2015,Social Care & Inclusion
WC56-1032,CRAEGMOOR,Third Party Payments,Private Contractor Fees,73373-RESIDENTIAL & NURSING CARE PLACEMENTS,"7,899.86",Revenue,05/05/2015,Social Care & Inclusion
WC56-1033,CREATIVE JOINERY & INTERIORS LIMITED,Premises,Premises-Repairs & Maintenance,"40000-REPAIRS,ALTERATIONS & MAINTENANCE-PREM",325.00,Revenue,11/05/2015,Childrens
WC56-1034,CREATIVITY TEAM LIMITED,Employees,Other Staff Costs,32000-MISC FEES AND EXPENSES,250.00,Revenue,05/05/2015,Neighbourhood Services
WC56-1035,CREATIVITY TEAM LIMITED,Employees,Other Staff Costs,32000-MISC FEES AND EXPENSES,250.00,Revenue,05/05/2015,Neighbourhood Services
WC56-1036,CRI,Supplies & Services,Services,63000-PROFESSIONAL FEES AND SERVICES,"66,052.00",Revenue,11/05/2015,Neighbourhood Services
WC56-1037,CROFT ACADEMY,Third Party Payments,Grants to Other Orgs,66505-OTHER-GRANTS TO OTHER ORGS,"8,437.63",Revenue,08/05/2015,Childrens
WC56-1038,CROFT ACADEMY,Third Party Payments,Grants to Other Orgs,66505-OTHER-GRANTS TO OTHER ORGS,"8,437.63",Revenue,08/05/2015,Childrens
WC56-1039,CROMWELL HOUSE,Third Party Payments,Private Contractor Fees,73373-RESIDENTIAL & NURSING CARE PLACEMENTS,"5,903.44",Revenue,05/05/2015,Social Care & Inclusion
WC56-1040,CROMWELL HOUSE,Third Party Payments,Private Contractor Fees,73373-RESIDENTIAL & NURSING CARE PLACEMENTS,"5,903.44",Revenue,27/05/2015,Social Care & Inclusion
WC56-1041,CROSS LANE CHILDRENS HOME,Third Party Payments,Private Contractor Fees,74036-EXTERNAL RESIDENTIAL CARE-OTH AGENCY PROVISION,"8,414.00",Revenue,20/05/2015,Childrens
WC56-1042,CROSSWAYS RESIDENTIAL HOME,Third Party Payments,Private Contractor Fees,73373-RESIDENTIAL & NURSING CARE PLACEMENTS,"1,655.44",Revenue,13/05/2015,Social Care & Inclusion
WC56-1043,CROSSWAYS RESIDENTIAL HOME,Third Party Payments,Private Contractor Fees,73373-RESIDENTIAL & NURSING CARE PLACEMENTS,"1,655.44",Revenue,13/05/2015,Social Care & Inclusion
WC56-1044,CROSSWAYS RESIDENTIAL HOME,Third Party Payments,Private Contractor Fees,73373-RESIDENTIAL & NURSING CARE PLACEMENTS,"1,655.45",Revenue,13/05/2015,Social Care & Inclusion
WC56-1045,CROSSWAYS RESIDENTIAL HOME,Third Party Payments,Private Contractor Fees,73373-RESIDENTIAL & NURSING CARE PLACEMENTS,"1,681.08",Revenue,13/05/2015,Social Care & Inclusion
WC56-1046,CROSSWAYS RESIDENTIAL HOME,Third Party Payments,Private Contractor Fees,73373-RESIDENTIAL & NURSING CARE PLACEMENTS,"1,698.49",Revenue,13/05/2015,Social Care & Inclusion
WC56-1047,CROSSWAYS RESIDENTIAL HOME,Third Party Payments,Private Contractor Fees,73373-RESIDENTIAL & NURSING CARE PLACEMENTS,"1,698.49",Revenue,13/05/2015,Social Care & Inclusion
WC56-1048,CROSSWAYS RESIDENTIAL HOME,Third Party Payments,Private Contractor Fees,73373-RESIDENTIAL & NURSING CARE PLACEMENTS,"1,895.43",Revenue,13/05/2015,Social Care & Inclusion
WC56-1049,CROSSWAYS RESIDENTIAL HOME,Third Party Payments,Private Contractor Fees,73373-RESIDENTIAL & NURSING CARE PLACEMENTS,"3,181.58",Revenue,27/05/2015,Social Care & Inclusion
WC56-1050,CROWN COMPUTING,Supplies & Services,Communications & Computing,63820-RECHARGE FOR MAINTENANCE/APPLICATION COSTS-COMPUTER,"-5,260.00",Revenue,05/05/2015,Resources
WC56-1051,CROWN COMPUTING,Supplies & Services,Communications & Computing,63820-RECHARGE FOR MAINTENANCE/APPLICATION COSTS-COMPUTER,"10,421.00",Revenue,05/05/2015,Resources
WC56-1052,CROWN FINE ART,Third Party Payments,Private Contractor Fees,73032-TRANSPORTATION-PRIV CONTRACTOR FEES,"2,240.00",Revenue,22/05/2015,Neighbourhood Services
WC56-1053,CRUCKTON HALL SCHOOL (SHREWS.) LTD,Third Party Payments,Grants to Other Orgs,66502-TOP UP FUNDING -GRANTS TO SCHOOLS,"-7,465.67",Revenue,12/05/2015,Childrens
WC56-1054,CRUCKTON HALL SCHOOL (SHREWS.) LTD,Third Party Payments,Grants to Other Orgs,66502-TOP UP FUNDING -GRANTS TO SCHOOLS,"-1,394.33",Revenue,12/05/2015,Childrens
WC56-1055,CRUCKTON HALL SCHOOL (SHREWS.) LTD,Third Party Payments,Grants to Other Orgs,66502-TOP UP FUNDING -GRANTS TO SCHOOLS,"25,244.33",Revenue,06/05/2015,Childrens
WC56-1056,CRUCKTON HALL SCHOOL (SHREWS.) LTD,Third Party Payments,Grants to Other Orgs,66502-TOP UP FUNDING -GRANTS TO SCHOOLS,"29,439.00",Revenue,06/05/2015,Childrens
WC56-1057,CRUCKTON HALL SCHOOL (SHREWS.) LTD,Third Party Payments,Grants to Other Orgs,66502-TOP UP FUNDING -GRANTS TO SCHOOLS,"29,439.00",Revenue,06/05/2015,Childrens
WC56-1058,CRUCKTON HALL SCHOOL (SHREWS.) LTD,Third Party Payments,Grants to Other Orgs,66502-TOP UP FUNDING -GRANTS TO SCHOOLS,"29,458.33",Revenue,06/05/2015,Childrens
WC56-1059,CUMMINS-ALLISON LTD,Supplies & Services,"Equip,Furniture & Materials",60008-MAINTENANCE-FURNITURE & EQUIPMENT,717.00,Revenue,21/05/2015,Neighbourhood Services
WC56-1060,CUNDALL JOHNSTON&PARTNERS LLP,Supplies & Services,Services,63000-PROFESSIONAL FEES AND SERVICES,316.25,Revenue,05/05/2015,Regeneration
WC56-1061,REDACTED,Transfer Payments,Transfer Payments,76422-DIRECT PAYMENTS TO SOCIAL SERVICES CLIENTS,"1,775.10",Revenue,12/05/2015,Social Care & Inclusion
WC56-1062,REDACTED,Supplies & Services,Other Supplies & Services,62515-MISCELLANEOUS SUPPLIES,540.20,Revenue,25/05/2015,Childrens
WC56-1063,REDACTED,Third Party Payments,Private Contractor Fees,74006-HOLIDAY/CHRISTMAS ALLOWANCE-FOSTER CARERS-OTH AGENCY PROVISION,571.44,Revenue,25/05/2015,Childrens
WC56-1064,REDACTED,Third Party Payments,Private Contractor Fees,74006-HOLIDAY/CHRISTMAS ALLOWANCE-FOSTER CARERS-OTH AGENCY PROVISION,813.65,Revenue,11/05/2015,Childrens
WC56-1065,REDACTED,Third Party Payments,Private Contractor Fees,74006-HOLIDAY/CHRISTMAS ALLOWANCE-FOSTER CARERS-OTH AGENCY PROVISION,"1,952.76",Revenue,11/05/2015,Childrens
WC56-1066,REDACTED,Third Party Payments,Private Contractor Fees,74006-HOLIDAY/CHRISTMAS ALLOWANCE-FOSTER CARERS-OTH AGENCY PROVISION,"1,142.88",Revenue,25/05/2015,Childrens
WC56-1067,REDACTED,Supplies & Services,Other Supplies & Services,62515-MISCELLANEOUS SUPPLIES,"1,445.32",Revenue,25/05/2015,Childrens
WC56-1068,REDACTED,Supplies & Services,Other Supplies & Services,62515-MISCELLANEOUS SUPPLIES,540.20,Revenue,25/05/2015,Childrens
WC56-1069,REDACTED,Third Party Payments,Private Contractor Fees,74006-HOLIDAY/CHRISTMAS ALLOWANCE-FOSTER CARERS-OTH AGENCY PROVISION,752.44,Revenue,25/05/2015,Childrens
WC56-1070,DAISYBROOK LTD,Supplies & Services,Services,63000-PROFESSIONAL FEES AND SERVICES,"3,752.00",Revenue,20/05/2015,Childrens
WC56-1071,REDACTED,Transfer Payments,Transfer Payments,76422-DIRECT PAYMENTS TO SOCIAL SERVICES CLIENTS,"1,492.80",Revenue,12/05/2015,Social Care & Inclusion
WC56-1072,REDACTED,Transfer Payments,Transfer Payments,76422-DIRECT PAYMENTS TO SOCIAL SERVICES CLIENTS,"1,622.36",Revenue,12/05/2015,Social Care & Inclusion
WC56-1073,REDACTED,Transfer Payments,Transfer Payments,76422-DIRECT PAYMENTS TO SOCIAL SERVICES CLIENTS,"1,294.80",Revenue,12/05/2015,Childrens
WC56-1074,REDACTED,Transfer Payments,Transfer Payments,76422-DIRECT PAYMENTS TO SOCIAL SERVICES CLIENTS,"1,890.00",Revenue,12/05/2015,Social Care & Inclusion
WC56-1075,REDACTED,Transfer Payments,Transfer Payments,76422-DIRECT PAYMENTS TO SOCIAL SERVICES CLIENTS,755.30,Revenue,12/05/2015,Social Care & Inclusion
WC56-1076,REDACTED,Transfer Payments,Transfer Payments,76422-DIRECT PAYMENTS TO SOCIAL SERVICES CLIENTS,923.48,Revenue,12/05/2015,Social Care & Inclusion
WC56-1077,DANSHELL GROUP,Third Party Payments,Private Contractor Fees,73373-RESIDENTIAL & NURSING CARE PLACEMENTS,"10,185.71",Revenue,13/05/2015,Social Care & Inclusion
WC56-1078,DANSHELL GROUP,Third Party Payments,Private Contractor Fees,73373-RESIDENTIAL & NURSING CARE PLACEMENTS,"12,090.00",Revenue,13/05/2015,Social Care & Inclusion
WC56-1079,DARLASTON BOYS CLUB,Supplies & Services,Other Supplies & Services,63128-HIRE OF ROOM-SERVICES-FEES,"2,100.00",Revenue,18/05/2015,Childrens
WC56-1080,DARLASTON FELLOWSHIP DISABLED,Transport,Hire,52000-WITH DRIVER-HIRE OF VEHICLES,344.00,Revenue,20/05/2015,Childrens
WC56-1081,DARLASTON FELLOWSHIP DISABLED,Transport,Hire,52000-WITH DRIVER-HIRE OF VEHICLES,344.00,Revenue,20/05/2015,Childrens
WC56-1082,DARLASTON FELLOWSHIP DISABLED,Transport,Hire,52000-WITH DRIVER-HIRE OF VEHICLES,344.00,Revenue,20/05/2015,Childrens
WC56-1083,DARLASTON FELLOWSHIP DISABLED,Transport,Hire,52000-WITH DRIVER-HIRE OF VEHICLES,368.00,Revenue,20/05/2015,Childrens
WC56-1084,DARLASTON FELLOWSHIP DISABLED,Transport,Hire,52000-WITH DRIVER-HIRE OF VEHICLES,430.00,Revenue,01/05/2015,Childrens
WC56-1085,DARLASTON FELLOWSHIP DISABLED,Transport,Hire,52000-WITH DRIVER-HIRE OF VEHICLES,430.00,Revenue,01/05/2015,Childrens
WC56-1086,DARLASTON FELLOWSHIP DISABLED,Transport,Hire,52000-WITH DRIVER-HIRE OF VEHICLES,430.00,Revenue,01/05/2015,Childrens
WC56-1087,DARLASTON FELLOWSHIP DISABLED,Transport,Hire,52000-WITH DRIVER-HIRE OF VEHICLES,430.00,Revenue,11/05/2015,Childrens
WC56-1088,DARLASTON FELLOWSHIP DISABLED,Transport,Hire,52000-WITH DRIVER-HIRE OF VEHICLES,430.00,Revenue,11/05/2015,Childrens
WC56-1089,DARLASTON FELLOWSHIP DISABLED,Transport,Hire,52000-WITH DRIVER-HIRE OF VEHICLES,430.00,Revenue,11/05/2015,Childrens
WC56-1090,DARLASTON FELLOWSHIP DISABLED,Transport,Hire,52000-WITH DRIVER-HIRE OF VEHICLES,430.00,Revenue,15/05/2015,Childrens
WC56-1091,DARLASTON FELLOWSHIP DISABLED,Transport,Hire,52000-WITH DRIVER-HIRE OF VEHICLES,430.00,Revenue,15/05/2015,Childrens
WC56-1092,DARLASTON FELLOWSHIP DISABLED,Transport,Hire,52000-WITH DRIVER-HIRE OF VEHICLES,430.00,Revenue,15/05/2015,Childrens
WC56-1093,DARLASTON FELLOWSHIP DISABLED,Transport,Hire,52000-WITH DRIVER-HIRE OF VEHICLES,440.00,Revenue,20/05/2015,Childrens
WC56-1094,DARLASTON FELLOWSHIP DISABLED,Transport,Hire,52000-WITH DRIVER-HIRE OF VEHICLES,448.00,Revenue,20/05/2015,Childrens
WC56-1095,DARLASTON FELLOWSHIP DISABLED,Transport,Hire,52000-WITH DRIVER-HIRE OF VEHICLES,460.00,Revenue,01/05/2015,Childrens
WC56-1096,DARLASTON FELLOWSHIP DISABLED,Transport,Hire,52000-WITH DRIVER-HIRE OF VEHICLES,460.00,Revenue,11/05/2015,Childrens
WC56-1097,DARLASTON FELLOWSHIP DISABLED,Transport,Hire,52000-WITH DRIVER-HIRE OF VEHICLES,460.00,Revenue,15/05/2015,Childrens
WC56-1098,DARLASTON FELLOWSHIP DISABLED,Transport,Hire,52000-WITH DRIVER-HIRE OF VEHICLES,550.00,Revenue,01/05/2015,Childrens
WC56-1099,DARLASTON FELLOWSHIP DISABLED,Transport,Hire,52000-WITH DRIVER-HIRE OF VEHICLES,550.00,Revenue,08/05/2015,Childrens
WC56-1100,DARLASTON FELLOWSHIP DISABLED,Transport,Hire,52000-WITH DRIVER-HIRE OF VEHICLES,550.00,Revenue,15/05/2015,Childrens
WC56-1101,DARLASTON FELLOWSHIP DISABLED,Transport,Hire,52000-WITH DRIVER-HIRE OF VEHICLES,560.00,Revenue,01/05/2015,Childrens
WC56-1102,DARLASTON FELLOWSHIP DISABLED,Transport,Hire,52000-WITH DRIVER-HIRE OF VEHICLES,560.00,Revenue,08/05/2015,Childrens
WC56-1103,DARLASTON FELLOWSHIP DISABLED,Transport,Hire,52000-WITH DRIVER-HIRE OF VEHICLES,560.00,Revenue,15/05/2015,Childrens
WC56-1104,REDACTED,Transfer Payments,Transfer Payments,76422-DIRECT PAYMENTS TO SOCIAL SERVICES CLIENTS,595.00,Revenue,12/05/2015,Social Care & Inclusion
WC56-1105,REDACTED,Transfer Payments,Transfer Payments,76422-DIRECT PAYMENTS TO SOCIAL SERVICES CLIENTS,251.84,Revenue,12/05/2015,Social Care & Inclusion
WC56-1106,REDACTED,Transfer Payments,Transfer Payments,76422-DIRECT PAYMENTS TO SOCIAL SERVICES CLIENTS,338.38,Revenue,12/05/2015,Social Care & Inclusion
WC56-1107,REDACTED,Transfer Payments,Transfer Payments,76422-DIRECT PAYMENTS TO SOCIAL SERVICES CLIENTS,"6,123.61",Revenue,12/05/2015,Social Care & Inclusion
WC56-1108,DARWIN COURT CARE CENTRE,Third Party Payments,Private Contractor Fees,73373-RESIDENTIAL & NURSING CARE PLACEMENTS,"12,455.36",Revenue,20/05/2015,Social Care & Inclusion
WC56-1109,DATA SAVE LTD,Supplies & Services,"Equip,Furniture & Materials",60500-GENERAL MATERIALS,353.86,Revenue,05/05/2015,Regeneration
WC56-1110,REDACTED,Transfer Payments,Transfer Payments,76000-TRANSFER PAYMENTS - SOCIAL SERVICES CLIENTS,464.00,Revenue,13/05/2015,Childrens
WC56-1111,REDACTED,Transfer Payments,Transfer Payments,76000-TRANSFER PAYMENTS - SOCIAL SERVICES CLIENTS,464.00,Revenue,27/05/2015,Childrens
WC56-1112,REDACTED,Supplies & Services,Other Supplies & Services,62515-MISCELLANEOUS SUPPLIES,706.76,Revenue,25/05/2015,Childrens
WC56-1113,REDACTED,Third Party Payments,Private Contractor Fees,74006-HOLIDAY/CHRISTMAS ALLOWANCE-FOSTER CARERS-OTH AGENCY PROVISION,985.76,Revenue,25/05/2015,Childrens
WC56-1114,REDACTED,Transfer Payments,Transfer Payments,76422-DIRECT PAYMENTS TO SOCIAL SERVICES CLIENTS,"1,617.56",Revenue,12/05/2015,Social Care & Inclusion
WC56-1115,REDACTED,Supplies & Services,Other Supplies & Services,62515-MISCELLANEOUS SUPPLIES,540.20,Revenue,25/05/2015,Childrens
WC56-1116,REDACTED,Third Party Payments,Private Contractor Fees,74006-HOLIDAY/CHRISTMAS ALLOWANCE-FOSTER CARERS-OTH AGENCY PROVISION,985.76,Revenue,25/05/2015,Childrens
WC56-1117,REDACTED,Transfer Payments,Transfer Payments,76422-DIRECT PAYMENTS TO SOCIAL SERVICES CLIENTS,"1,054.00",Revenue,12/05/2015,Social Care & Inclusion
WC56-1118,REDACTED,Transfer Payments,Transfer Payments,76422-DIRECT PAYMENTS TO SOCIAL SERVICES CLIENTS,"1,071.00",Revenue,12/05/2015,Social Care & Inclusion
WC56-1119,REDACTED,Transfer Payments,Transfer Payments,76422-DIRECT PAYMENTS TO SOCIAL SERVICES CLIENTS,"1,343.84",Revenue,12/05/2015,Social Care & Inclusion
WC56-1120,REDACTED,Transfer Payments,Transfer Payments,76422-DIRECT PAYMENTS TO SOCIAL SERVICES CLIENTS,"1,103.45",Revenue,22/05/2015,Social Care & Inclusion
WC56-1121,REDACTED,Transfer Payments,Transfer Payments,76422-DIRECT PAYMENTS TO SOCIAL SERVICES CLIENTS,"1,584.00",Revenue,12/05/2015,Social Care & Inclusion
WC56-1122,REDACTED,Transfer Payments,Transfer Payments,76422-DIRECT PAYMENTS TO SOCIAL SERVICES CLIENTS,519.24,Revenue,12/05/2015,Social Care & Inclusion
WC56-1123,REDACTED,Transfer Payments,Transfer Payments,76422-DIRECT PAYMENTS TO SOCIAL SERVICES CLIENTS,"1,242.50",Revenue,12/05/2015,Social Care & Inclusion
WC56-1124,REDACTED,Transfer Payments,Transfer Payments,76422-DIRECT PAYMENTS TO SOCIAL SERVICES CLIENTS,"2,280.68",Revenue,12/05/2015,Social Care & Inclusion
WC56-1125,DAVID WILSON PARTNERSHIP LIMITED,Capital,Capital,01045-PRIVATE GRANTS,300.00,Capital,20/05/2015,Resources
WC56-1126,REDACTED,Transfer Payments,Transfer Payments,76422-DIRECT PAYMENTS TO SOCIAL SERVICES CLIENTS,880.00,Revenue,12/05/2015,Social Care & Inclusion
WC56-1127,REDACTED,Transfer Payments,Transfer Payments,76422-DIRECT PAYMENTS TO SOCIAL SERVICES CLIENTS,437.00,Revenue,12/05/2015,Social Care & Inclusion
WC56-1128,DAWNUS CONSTRUCTION LTD,Capital,Capital,01001-OTHER CONSULTANTS FEES,"974,368.91",Capital,15/05/2015,Regeneration
WC56-1129,DAWSON RENTALS SWEEPERS,Transport,Hire,52001-HIRE OF VEHICLES,"1,627.52",Revenue,22/05/2015,Neighbourhood Services
WC56-1130,DAWSON RENTALS SWEEPERS,Transport,Hire,52001-HIRE OF VEHICLES,"1,999.28",Revenue,22/05/2015,Neighbourhood Services
WC56-1131,DAWSON RENTALS SWEEPERS,Transport,Hire,52001-HIRE OF VEHICLES,"1,999.28",Revenue,22/05/2015,Neighbourhood Services
WC56-1132,DAWSON RENTALS SWEEPERS,Transport,Hire,52001-HIRE OF VEHICLES,"1,999.28",Revenue,22/05/2015,Neighbourhood Services
WC56-1133,DAWSON RENTALS SWEEPERS,Transport,Hire,52001-HIRE OF VEHICLES,"1,999.28",Revenue,22/05/2015,Neighbourhood Services
WC56-1134,DAWSON RENTALS SWEEPERS,Transport,Hire,52001-HIRE OF VEHICLES,"1,999.28",Revenue,22/05/2015,Neighbourhood Services
WC56-1135,DAWSON RENTALS SWEEPERS,Transport,Hire,52001-HIRE OF VEHICLES,"1,999.28",Revenue,22/05/2015,Neighbourhood Services
WC56-1136,DAWSON RENTALS SWEEPERS,Transport,Hire,52001-HIRE OF VEHICLES,"2,064.46",Revenue,22/05/2015,Neighbourhood Services
WC56-1137,DDC DOLPHIN LTD,Supplies & Services,"Equip,Furniture & Materials",60007-REPAIR OF EQUIPMENT-EQUIPMENT,573.00,Revenue,06/05/2015,Social Care & Inclusion
WC56-1138,REDACTED,Supplies & Services,Other Supplies & Services,62515-MISCELLANEOUS SUPPLIES,897.51,Revenue,25/05/2015,Childrens
WC56-1139,REDACTED,Third Party Payments,Private Contractor Fees,74006-HOLIDAY/CHRISTMAS ALLOWANCE-FOSTER CARERS-OTH AGENCY PROVISION,"1,683.04",Revenue,25/05/2015,Childrens
WC56-1140,REDACTED,Supplies & Services,Other Supplies & Services,62515-MISCELLANEOUS SUPPLIES,540.20,Revenue,25/05/2015,Childrens
WC56-1141,REDACTED,Third Party Payments,Private Contractor Fees,74006-HOLIDAY/CHRISTMAS ALLOWANCE-FOSTER CARERS-OTH AGENCY PROVISION,571.44,Revenue,25/05/2015,Childrens
WC56-1142,REDACTED,Third Party Payments,Private Contractor Fees,74006-HOLIDAY/CHRISTMAS ALLOWANCE-FOSTER CARERS-OTH AGENCY PROVISION,976.38,Revenue,11/05/2015,Childrens
WC56-1143,REDACTED,Supplies & Services,Other Supplies & Services,62515-MISCELLANEOUS SUPPLIES,990.40,Revenue,25/05/2015,Childrens
WC56-1144,REDACTED,Third Party Payments,Private Contractor Fees,74006-HOLIDAY/CHRISTMAS ALLOWANCE-FOSTER CARERS-OTH AGENCY PROVISION,"1,554.22",Revenue,25/05/2015,Childrens
WC56-1145,REDACTED,Transfer Payments,Transfer Payments,76422-DIRECT PAYMENTS TO SOCIAL SERVICES CLIENTS,977.76,Revenue,12/05/2015,Social Care & Inclusion
WC56-1146,DEBORAH MCVEY LTD,Employees,Training,30030-EXTERNAL TRAINING,"3,165.25",Revenue,07/05/2015,Neighbourhood Services
WC56-1147,DELL COMPUTER CORPORATION LTD,Supplies & Services,Communications & Computing,63800-COMPUTER EQUIPMENT AND SUPPLIES,940.48,Revenue,22/05/2015,Resources
WC56-1148,DELL COMPUTER CORPORATION LTD,Supplies & Services,Communications & Computing,63800-COMPUTER EQUIPMENT AND SUPPLIES,"1,791.98",Revenue,15/05/2015,Resources
WC56-1149,REDACTED,Transfer Payments,Transfer Payments,76422-DIRECT PAYMENTS TO SOCIAL SERVICES CLIENTS,575.40,Revenue,12/05/2015,Social Care & Inclusion
WC56-1150,REDACTED,Transfer Payments,Transfer Payments,76422-DIRECT PAYMENTS TO SOCIAL SERVICES CLIENTS,"1,530.00",Revenue,12/05/2015,Social Care & Inclusion
WC56-1151,DEP HEALTH & SAFETY LIMITED,Capital,Capital,01006-SITE WORKS MAIN CONTRACTORS,600.00,Capital,22/05/2015,Childrens
WC56-1152,REDACTED,Transfer Payments,Transfer Payments,76422-DIRECT PAYMENTS TO SOCIAL SERVICES CLIENTS,492.00,Revenue,12/05/2015,Social Care & Inclusion
WC56-1153,REDACTED,Transfer Payments,Transfer Payments,76422-DIRECT PAYMENTS TO SOCIAL SERVICES CLIENTS,820.04,Revenue,12/05/2015,Social Care & Inclusion
WC56-1154,REDACTED,Transfer Payments,Transfer Payments,76422-DIRECT PAYMENTS TO SOCIAL SERVICES CLIENTS,416.16,Revenue,12/05/2015,Social Care & Inclusion
WC56-1155,DERWEN COLLEGE,Third Party Payments,Grants to Other Orgs,66502-TOP UP FUNDING -GRANTS TO SCHOOLS,"2,165.87",Revenue,06/05/2015,Childrens
WC56-1156,DERWEN COLLEGE,Third Party Payments,Grants to Other Orgs,66502-TOP UP FUNDING -GRANTS TO SCHOOLS,"6,607.22",Revenue,06/05/2015,Childrens
WC56-1157,REDACTED,Third Party Payments,Private Contractor Fees,74006-HOLIDAY/CHRISTMAS ALLOWANCE-FOSTER CARERS-OTH AGENCY PROVISION,425.08,Revenue,11/05/2015,Childrens
WC56-1158,REDACTED,Third Party Payments,Private Contractor Fees,74006-HOLIDAY/CHRISTMAS ALLOWANCE-FOSTER CARERS-OTH AGENCY PROVISION,"1,317.88",Revenue,25/05/2015,Childrens
WC56-1159,REDACTED,Supplies & Services,Other Supplies & Services,62515-MISCELLANEOUS SUPPLIES,"1,445.32",Revenue,25/05/2015,Childrens
WC56-1160,REDACTED,Transfer Payments,Transfer Payments,76422-DIRECT PAYMENTS TO SOCIAL SERVICES CLIENTS,250.00,Revenue,12/05/2015,Childrens
WC56-1161,REDACTED,Transfer Payments,Transfer Payments,76422-DIRECT PAYMENTS TO SOCIAL SERVICES CLIENTS,"1,035.62",Revenue,12/05/2015,Social Care & Inclusion
WC56-1162,REDACTED,Supplies & Services,Other Supplies & Services,62515-MISCELLANEOUS SUPPLIES,"1,656.80",Revenue,25/05/2015,Childrens
WC56-1163,REDACTED,Third Party Payments,Private Contractor Fees,74006-HOLIDAY/CHRISTMAS ALLOWANCE-FOSTER CARERS-OTH AGENCY PROVISION,"1,873.28",Revenue,25/05/2015,Childrens
WC56-1164,DIGIAN TRANSPORT LTD,Supplies & Services,"Equip,Furniture & Materials",60104-REMOVAL OF FURNITURE,400.00,Revenue,21/05/2015,Childrens
WC56-1165,DIGNUS HEALTHCARE LTD T/A HIGHCROFT HOUSE,Third Party Payments,Private Contractor Fees,73373-RESIDENTIAL & NURSING CARE PLACEMENTS,"8,228.73",Revenue,13/05/2015,Social Care & Inclusion
WC56-1166,DIGNUS HEALTHCARE T/A EBENEZER HOUSE,Third Party Payments,Private Contractor Fees,73373-RESIDENTIAL & NURSING CARE PLACEMENTS,"4,382.82",Revenue,13/05/2015,Social Care & Inclusion
WC56-1167,DIGNUS HEALTHCARE T/A EBENEZER HOUSE,Third Party Payments,Private Contractor Fees,73373-RESIDENTIAL & NURSING CARE PLACEMENTS,"4,382.82",Revenue,13/05/2015,Social Care & Inclusion
WC56-1168,DIGNUS HEALTHCARE T/A EBENEZER HOUSE,Third Party Payments,Private Contractor Fees,73373-RESIDENTIAL & NURSING CARE PLACEMENTS,"4,382.82",Revenue,13/05/2015,Social Care & Inclusion
WC56-1169,DIMENSIONS (UK) LTD,Third Party Payments,Private Contractor Fees,73373-RESIDENTIAL & NURSING CARE PLACEMENTS,"5,960.90",Revenue,27/05/2015,Social Care & Inclusion
WC56-1170,DIRECT LINE INSURANCE,Supplies & Services,Other Supplies & Services,67001-MISC INSURANCES - PAYMENT OF CLAIMS,475.07,Revenue,11/05/2015,Holding Accounts
WC56-1171,DIRECT SECURITY SYSTEMS,Supplies & Services,"Equip,Furniture & Materials",60008-MAINTENANCE-FURNITURE & EQUIPMENT,465.00,Revenue,06/05/2015,Neighbourhood Services
WC56-1172,DISCLOSURE & BARRING SERVICE,Supplies & Services,Other Supplies & Services,63103-CRIMINAL RECORDS BUREAU-SERVICES-FEES,"12,494.00",Revenue,12/05/2015,Resources
WC56-1173,DIWALI NIVAS,Third Party Payments,Private Contractor Fees,73373-RESIDENTIAL & NURSING CARE PLACEMENTS,"1,930.86",Revenue,13/05/2015,Social Care & Inclusion
WC56-1174,DOLPHIN LTD,Capital,Capital,01045-PRIVATE GRANTS,"-1,446.80",Capital,26/05/2015,Resources
WC56-1175,DOLPHIN LTD,Capital,Capital,01006-SITE WORKS MAIN CONTRACTORS,440.00,Capital,11/05/2015,Resources
WC56-1176,DOLPHIN LTD,Capital,Capital,01006-SITE WORKS MAIN CONTRACTORS,486.00,Capital,20/05/2015,Resources
WC56-1177,DOLPHIN LTD,Capital,Capital,01006-SITE WORKS MAIN CONTRACTORS,726.00,Capital,20/05/2015,Resources
WC56-1178,DOLPHIN LTD,Capital,Capital,01045-PRIVATE GRANTS,975.73,Capital,13/05/2015,Resources
WC56-1179,DOLPHIN LTD,Capital,Capital,01006-SITE WORKS MAIN CONTRACTORS,990.00,Capital,06/05/2015,Social Care & Inclusion
WC56-1180,DOLPHIN LTD,Capital,Capital,01045-PRIVATE GRANTS,"1,150.00",Capital,15/05/2015,Resources
WC56-1181,DOLPHIN LTD,Capital,Capital,01045-PRIVATE GRANTS,"1,150.00",Capital,20/05/2015,Resources
WC56-1182,DOLPHIN LTD,Capital,Capital,01006-SITE WORKS MAIN CONTRACTORS,"1,174.46",Capital,06/05/2015,Social Care & Inclusion
WC56-1183,DOLPHIN LTD,Capital,Capital,01006-SITE WORKS MAIN CONTRACTORS,"1,225.00",Capital,21/05/2015,Resources
WC56-1184,DOLPHIN LTD,Capital,Capital,01045-PRIVATE GRANTS,"1,300.00",Capital,21/05/2015,Resources
WC56-1185,DOLPHIN LTD,Capital,Capital,01006-SITE WORKS MAIN CONTRACTORS,"1,436.68",Capital,06/05/2015,Social Care & Inclusion
WC56-1186,DOLPHIN LTD,Capital,Capital,01006-SITE WORKS MAIN CONTRACTORS,"1,446.90",Capital,06/05/2015,Social Care & Inclusion
WC56-1187,DOLPHIN LTD,Capital,Capital,01006-SITE WORKS MAIN CONTRACTORS,"2,448.00",Capital,20/05/2015,Resources
WC56-1188,DOLPHIN LTD,Capital,Capital,01006-SITE WORKS MAIN CONTRACTORS,"2,827.20",Capital,20/05/2015,Resources
WC56-1189,DOLPHIN LTD,Capital,Capital,01045-PRIVATE GRANTS,"3,270.00",Capital,15/05/2015,Resources
WC56-1190,DOLPHIN LTD,Capital,Capital,01006-SITE WORKS MAIN CONTRACTORS,"3,385.20",Capital,20/05/2015,Resources
WC56-1191,DOLPHIN LTD,Capital,Capital,01045-PRIVATE GRANTS,"7,219.00",Capital,26/05/2015,Resources
WC56-1192,REDACTED,Transfer Payments,Transfer Payments,76422-DIRECT PAYMENTS TO SOCIAL SERVICES CLIENTS,"5,854.60",Revenue,12/05/2015,Social Care & Inclusion
WC56-1193,REDACTED,Third Party Payments,Private Contractor Fees,74006-HOLIDAY/CHRISTMAS ALLOWANCE-FOSTER CARERS-OTH AGENCY PROVISION,672.20,Revenue,11/05/2015,Childrens
WC56-1194,REDACTED,Transfer Payments,Transfer Payments,76422-DIRECT PAYMENTS TO SOCIAL SERVICES CLIENTS,"1,800.00",Revenue,12/05/2015,Social Care & Inclusion
WC56-1195,REDACTED,Supplies & Services,Other Supplies & Services,62515-MISCELLANEOUS SUPPLIES,540.20,Revenue,25/05/2015,Childrens
WC56-1196,REDACTED,Third Party Payments,Private Contractor Fees,74006-HOLIDAY/CHRISTMAS ALLOWANCE-FOSTER CARERS-OTH AGENCY PROVISION,650.92,Revenue,25/05/2015,Childrens
WC56-1197,REDACTED,Third Party Payments,Private Contractor Fees,74006-HOLIDAY/CHRISTMAS ALLOWANCE-FOSTER CARERS-OTH AGENCY PROVISION,"1,336.12",Revenue,11/05/2015,Childrens
WC56-1198,REDACTED,Transfer Payments,Transfer Payments,76422-DIRECT PAYMENTS TO SOCIAL SERVICES CLIENTS,679.20,Revenue,12/05/2015,Social Care & Inclusion
WC56-1199,DORCHESTER DEVELOPMENTS,Premises,Rent,43000-RENTS,403.67,Revenue,07/05/2015,Childrens
WC56-1200,REDACTED,Transfer Payments,Transfer Payments,76422-DIRECT PAYMENTS TO SOCIAL SERVICES CLIENTS,506.00,Revenue,12/05/2015,Social Care & Inclusion
WC56-1201,REDACTED,Transfer Payments,Transfer Payments,76422-DIRECT PAYMENTS TO SOCIAL SERVICES CLIENTS,616.00,Revenue,12/05/2015,Social Care & Inclusion
WC56-1202,REDACTED,Transfer Payments,Transfer Payments,76422-DIRECT PAYMENTS TO SOCIAL SERVICES CLIENTS,629.00,Revenue,12/05/2015,Social Care & Inclusion
WC56-1203,REDACTED,Transfer Payments,Transfer Payments,76422-DIRECT PAYMENTS TO SOCIAL SERVICES CLIENTS,"1,416.00",Revenue,12/05/2015,Social Care & Inclusion
WC56-1204,REDACTED,Transfer Payments,Transfer Payments,76422-DIRECT PAYMENTS TO SOCIAL SERVICES CLIENTS,300.00,Revenue,12/05/2015,Social Care & Inclusion
WC56-1205,REDACTED,Transfer Payments,Transfer Payments,76422-DIRECT PAYMENTS TO SOCIAL SERVICES CLIENTS,625.56,Revenue,12/05/2015,Social Care & Inclusion
WC56-1206,REDACTED,Transfer Payments,Transfer Payments,76422-DIRECT PAYMENTS TO SOCIAL SERVICES CLIENTS,700.40,Revenue,12/05/2015,Social Care & Inclusion
WC56-1207,REDACTED,Transfer Payments,Transfer Payments,76422-DIRECT PAYMENTS TO SOCIAL SERVICES CLIENTS,814.24,Revenue,12/05/2015,Social Care & Inclusion
WC56-1208,REDACTED,Transfer Payments,Transfer Payments,76422-DIRECT PAYMENTS TO SOCIAL SERVICES CLIENTS,"1,349.88",Revenue,12/05/2015,Social Care & Inclusion
WC56-1209,DOVEDALE COURT CARE HOME,Third Party Payments,Private Contractor Fees,73373-RESIDENTIAL & NURSING CARE PLACEMENTS,"1,120.50",Revenue,20/05/2015,Social Care & Inclusion
WC56-1210,DOVEDALE COURT CARE HOME,Third Party Payments,Private Contractor Fees,73373-RESIDENTIAL & NURSING CARE PLACEMENTS,"1,494.00",Revenue,05/05/2015,Social Care & Inclusion
WC56-1211,REDACTED,Supplies & Services,Services,63000-PROFESSIONAL FEES AND SERVICES,870.00,Revenue,13/05/2015,Social Care & Inclusion
WC56-1212,REDACTED,Supplies & Services,Other Supplies & Services,64002-OTHER EXPENSES-EXPENSES,"1,184.00",Revenue,13/05/2015,Neighbourhood Services
WC56-1213,REDACTED,Supplies & Services,Services,63000-PROFESSIONAL FEES AND SERVICES,"2,088.00",Revenue,13/05/2015,Social Care & Inclusion
WC56-1214,REDACTED,Supplies & Services,Services,63000-PROFESSIONAL FEES AND SERVICES,870.00,Revenue,13/05/2015,Social Care & Inclusion
WC56-1215,REDACTED,Transfer Payments,Transfer Payments,76001-SECTION 1/17CHILD CARE ACT 1989-ASSISTANCE TO S/S CLIENTS,500.00,Revenue,27/05/2015,Childrens
WC56-1216,REDACTED,Transfer Payments,Transfer Payments,76010-ACCOMMODATION AND RELATED COSTS-ASSISTANCE TO S/S CLIENTS,"3,740.00",Revenue,06/05/2015,Childrens
WC56-1217,REDACTED,Supplies & Services,Other Supplies & Services,63110-BURIAL & CREMATION-SERVICES-FEES,629.00,Revenue,13/05/2015,Neighbourhood Services
WC56-1218,REDACTED,Supplies & Services,Services,63000-PROFESSIONAL FEES AND SERVICES,"1,137.70",Revenue,20/05/2015,Neighbourhood Services
WC56-1219,REDACTED,Supplies & Services,Services,63000-PROFESSIONAL FEES AND SERVICES,522.00,Revenue,13/05/2015,Social Care & Inclusion
WC56-1220,REDACTED,Supplies & Services,Services,63000-PROFESSIONAL FEES AND SERVICES,"2,436.00",Revenue,13/05/2015,Social Care & Inclusion
WC56-1221,REDACTED,Supplies & Services,Services,63000-PROFESSIONAL FEES AND SERVICES,700.00,Revenue,06/05/2015,Neighbourhood Services
WC56-1222,REDACTED,Supplies & Services,Other Supplies & Services,64002-OTHER EXPENSES-EXPENSES,"1,091.50",Revenue,13/05/2015,Neighbourhood Services
WC56-1223,REDACTED,Supplies & Services,Services,63000-PROFESSIONAL FEES AND SERVICES,"1,392.00",Revenue,13/05/2015,Social Care & Inclusion
WC56-1224,REDACTED,Supplies & Services,Services,63000-PROFESSIONAL FEES AND SERVICES,290.40,Revenue,06/05/2015,Neighbourhood Services
WC56-1225,REDACTED,Supplies & Services,Services,63000-PROFESSIONAL FEES AND SERVICES,870.00,Revenue,13/05/2015,Social Care & Inclusion
WC56-1226,REDACTED,Supplies & Services,Services,63000-PROFESSIONAL FEES AND SERVICES,595.90,Revenue,20/05/2015,Neighbourhood Services
WC56-1227,REDACTED,Supplies & Services,Services,63000-PROFESSIONAL FEES AND SERVICES,"2,050.00",Revenue,21/05/2015,Neighbourhood Services
WC56-1228,DRAKE COURT RESIDENTIAL HOME,Third Party Payments,Private Contractor Fees,73373-RESIDENTIAL & NURSING CARE PLACEMENTS,"1,458.16",Revenue,05/05/2015,Social Care & Inclusion
WC56-1229,DRAKE COURT RESIDENTIAL HOME,Third Party Payments,Private Contractor Fees,73373-RESIDENTIAL & NURSING CARE PLACEMENTS,"1,458.16",Revenue,05/05/2015,Social Care & Inclusion
WC56-1230,DRAKE COURT RESIDENTIAL HOME,Third Party Payments,Private Contractor Fees,73373-RESIDENTIAL & NURSING CARE PLACEMENTS,"1,458.16",Revenue,05/05/2015,Social Care & Inclusion
WC56-1231,DRAKE COURT RESIDENTIAL HOME,Third Party Payments,Private Contractor Fees,73373-RESIDENTIAL & NURSING CARE PLACEMENTS,"1,458.16",Revenue,05/05/2015,Social Care & Inclusion
WC56-1232,DRAKE COURT RESIDENTIAL HOME,Third Party Payments,Private Contractor Fees,73373-RESIDENTIAL & NURSING CARE PLACEMENTS,"1,460.40",Revenue,05/05/2015,Social Care & Inclusion
WC56-1233,DRAKE COURT RESIDENTIAL HOME,Third Party Payments,Private Contractor Fees,73373-RESIDENTIAL & NURSING CARE PLACEMENTS,"1,460.40",Revenue,05/05/2015,Social Care & Inclusion
WC56-1234,DRAKE COURT RESIDENTIAL HOME,Third Party Payments,Private Contractor Fees,73373-RESIDENTIAL & NURSING CARE PLACEMENTS,"1,460.40",Revenue,05/05/2015,Social Care & Inclusion
WC56-1235,DRAKE COURT RESIDENTIAL HOME,Third Party Payments,Private Contractor Fees,73373-RESIDENTIAL & NURSING CARE PLACEMENTS,"1,460.40",Revenue,05/05/2015,Social Care & Inclusion
WC56-1236,DRAKE COURT RESIDENTIAL HOME,Third Party Payments,Private Contractor Fees,73373-RESIDENTIAL & NURSING CARE PLACEMENTS,"1,460.40",Revenue,05/05/2015,Social Care & Inclusion
WC56-1237,DRAKE COURT RESIDENTIAL HOME,Third Party Payments,Private Contractor Fees,73373-RESIDENTIAL & NURSING CARE PLACEMENTS,"1,460.40",Revenue,05/05/2015,Social Care & Inclusion
WC56-1238,DRAKE COURT RESIDENTIAL HOME,Third Party Payments,Private Contractor Fees,73373-RESIDENTIAL & NURSING CARE PLACEMENTS,"1,460.40",Revenue,05/05/2015,Social Care & Inclusion
WC56-1239,DRAKE COURT RESIDENTIAL HOME,Third Party Payments,Private Contractor Fees,73373-RESIDENTIAL & NURSING CARE PLACEMENTS,"1,460.40",Revenue,05/05/2015,Social Care & Inclusion
WC56-1240,DRAKE COURT RESIDENTIAL HOME,Third Party Payments,Private Contractor Fees,73373-RESIDENTIAL & NURSING CARE PLACEMENTS,"1,460.40",Revenue,13/05/2015,Social Care & Inclusion
WC56-1241,DRAKE COURT RESIDENTIAL HOME,Third Party Payments,Private Contractor Fees,73373-RESIDENTIAL & NURSING CARE PLACEMENTS,"1,521.56",Revenue,05/05/2015,Social Care & Inclusion
WC56-1242,DRAKE COURT RESIDENTIAL HOME,Third Party Payments,Private Contractor Fees,73373-RESIDENTIAL & NURSING CARE PLACEMENTS,"1,521.56",Revenue,05/05/2015,Social Care & Inclusion
WC56-1243,DRAKE COURT RESIDENTIAL HOME,Third Party Payments,Private Contractor Fees,73373-RESIDENTIAL & NURSING CARE PLACEMENTS,"1,540.40",Revenue,05/05/2015,Social Care & Inclusion
